Ref No,Fund Type,Dept,Cost Centre Description    ,Description    ,Creditor Name    ,GL Code Net Amount,Payment date        
2,Revenue,CCHD,Bed Purchasing - South,Permanent Nursing,.,1328.15, 14-Apr-2015
3,Revenue,CCHD,Bed Purchasing - South,Permanent Residential,.,5121.16, 14-Apr-2015
4,Revenue,CCHD,18-25 Year Olds,Permanent Residential,1 St Georges House,13314.21, 14-Apr-2015
5,Revenue,CCHD,Supporting People Programme,Grants to Voluntary Bodies,1625 Independent People,16872.78, 08-Apr-2015
6,Revenue,CCHD,Home Care - Elderly - South,Day Care / Social Activities,3 Trees Community Support Ltd,196.68, 02-Apr-2015
7,Revenue,CCHD,Home Care - Elderly - North,Day Care / Social Activities,3 Trees Community Support Ltd,2717.76, 02-Apr-2015
8,Revenue,CCHD,Home Care - Elderly - North,Other Small Contracts,3 Trees Community Support Ltd,107.28, 02-Apr-2015
9,Revenue,CCHD,Home Care - Elderly - North,Supported Living,3 Trees Community Support Ltd,8574.36, 02-Apr-2015
10,Revenue,CCHD,Home Care - Elderly - South,Day Care / Social Activities,3 Trees Community Support Ltd,196.68, 02-Apr-2015
11,Revenue,CCHD,Home Care - Elderly - North,Day Care / Social Activities,3 Trees Community Support Ltd,2838.45, 02-Apr-2015
12,Revenue,CCHD,Home Care - Elderly - North,Other Small Contracts,3 Trees Community Support Ltd,107.28, 02-Apr-2015
13,Revenue,CCHD,Home Care - Elderly - North,Supported Living,3 Trees Community Support Ltd,8414.97, 02-Apr-2015
14,Revenue,CCHD,Home Care - Elderly - South,Day Care / Social Activities,3 Trees Community Support Ltd,196.68, 30-Apr-2015
15,Revenue,CCHD,Home Care - Elderly - North,Day Care / Social Activities,3 Trees Community Support Ltd,2606.01, 30-Apr-2015
16,Revenue,CCHD,Home Care - Elderly - North,Other Small Contracts,3 Trees Community Support Ltd,107.28, 30-Apr-2015
17,Revenue,CCHD,Home Care - Elderly - North,Supported Living,3 Trees Community Support Ltd,8580.05, 30-Apr-2015
18,Revenue,CCHD,Bed Purchasing - South,Permanent Residential,5Th Floor Harlech Court,12177.42, 14-Apr-2015
19,Revenue,CCHD,Bed Purchasing - South,Permanent Residential,5Th Floor Harlech Court,4015.55, 14-Apr-2015
20,Revenue,CCHD,18-25 Year Olds,Permanent Residential,5Th Floor Harlech Court,10378.35, 14-Apr-2015
21,Revenue,CCHD,18-25 Year Olds,Permanent Residential,5Th Floor Harlech Court,3422.27, 14-Apr-2015
22,Revenue,CCHD,18-25 Year Olds,Permanent Residential,5Th Floor Harlech Court,10081.48, 14-Apr-2015
23,Revenue,CCHD,18-25 Year Olds,Permanent Residential,5Th Floor Harlech Court,3490.57, 14-Apr-2015
24,Revenue,CCHD,18-25 Year Olds,Permanent Residential,5Th Floor Harlech Court,504.08, 14-Apr-2015
25,Revenue,CCHD,18-25 Year Olds,Permanent Residential,5Th Floor Harlech Court,9492.24, 14-Apr-2015
26,Revenue,CCHD,18-25 Year Olds,Permanent Residential,5Th Floor Harlech Court,3129.97, 14-Apr-2015
27,Revenue,CCHD,Bed Purchasing - North,Permanent Residential,5Th Floor Harlech Court,12576.90, 14-Apr-2015
28,Revenue,CCHD,Bed Purchasing - North,Permanent Residential,5Th Floor Harlech Court,4147.43, 14-Apr-2015
29,Revenue,CCHD,18-25 Year Olds,Permanent Residential,5Th Floor Harlech Court,11943.81, 14-Apr-2015
30,Revenue,CCHD,18-25 Year Olds,Permanent Residential,5Th Floor Harlech Court,3938.53, 14-Apr-2015
31,Revenue,CCHD,Bed Purchasing - South,Permanent Residential,5Th Floor Harlech Court,6716.68, 14-Apr-2015
32,Revenue,CCHD,Bed Purchasing - South,Permanent Residential,5Th Floor Harlech Court,2325.46, 14-Apr-2015
33,Revenue,CCHD,Bed purchasing - S28A Under 65 - South,Permanent Residential,5Th Floor Harlech Court,7632.37, 14-Apr-2015
34,Revenue,CCHD,Bed purchasing - S28A Under 65 - South,Permanent Residential,5Th Floor Harlech Court,2642.54, 14-Apr-2015
35,Revenue,CCHD,Bed purchasing - S28A Under 65 - South,Permanent Residential,5Th Floor Harlech Court,7738.77, 14-Apr-2015
36,Revenue,CCHD,Bed purchasing - S28A Under 65 - South,Permanent Residential,5Th Floor Harlech Court,2679.37, 14-Apr-2015
37,Revenue,CCHD,Bed Purchasing - South,Permanent Nursing,5Th Floor Harlech Court,7394.65, 14-Apr-2015
38,Revenue,CCHD,Bed Purchasing - South,Permanent Nursing,5Th Floor Harlech Court,2560.22, 14-Apr-2015
39,Revenue,CCHD,Bed Purchasing - North,Permanent Nursing,ABI Development Limited,7027.39, 23-Apr-2015
40,Revenue,CCHD,Housing Needs,Storage & Removal,Ablemove-Wottons,720.00, 16-Apr-2015
41,Revenue,CCHD,Day Care - North,Day Care / Social Activities,About Me Care and Support Limited,781.28, 10-Apr-2015
42,Revenue,CCHD,Older People's Commissioned Se,Grants to Voluntary Bodies,Action for Blind People,24242.25, 17-Apr-2015
43,Revenue,CCHD,Home Care - Elderly - South,Day Care / Social Activities,Action on Hearing Loss,596.96, 17-Apr-2015
44,Revenue,CCHD,Mental Health and Emotional Wellbeing,Other Small Contracts,Age UK South Gloucestershire,14475.00, 17-Apr-2015
45,Revenue,CCHD,Home Care - Elderly - South,Other Small Contracts,Agincare Chippenham,1846.80, 23-Apr-2015
46,Revenue,CCHD,Home Care - Elderly - North,Other Small Contracts,Agincare Chippenham,163.40, 23-Apr-2015
47,Revenue,CCHD,Home Care - Elderly - South,Other Small Contracts,Agincare Chippenham,1808.80, 30-Apr-2015
48,Revenue,CCHD,Home Care - Elderly - North,Other Small Contracts,Agincare Chippenham,148.20, 30-Apr-2015
49,Revenue,CCHD,Home Care - Elderly - South,Other Small Contracts,Agincare Chippenham,1817.20, 30-Apr-2015
50,Revenue,CCHD,Home Care - Elderly - North,Other Small Contracts,Agincare Chippenham,157.85, 30-Apr-2015
51,Revenue,CCHD,Home Care - Elderly - South,Other Small Contracts,Agincare Chippenham,1832.60, 30-Apr-2015
52,Revenue,CCHD,Home Care - Elderly - North,Other Small Contracts,Agincare Chippenham,161.70, 30-Apr-2015
53,Revenue,CCHD,Home Care - Elderly - North,Other Small Contracts,Agincare UK Nutfield,1744.20, 02-Apr-2015
54,Revenue,CCHD,Supported Living - South,Private & Voluntary Home Care,Alexandra Homes (Bristol) Limited,3036.00, 17-Apr-2015
55,Revenue,CCHD,Supported Living - South,Private & Voluntary Home Care,Alexandra Homes (Bristol) Limited,2737.00, 17-Apr-2015
56,Revenue,CCHD,Supported Living - South,Private & Voluntary Home Care,Alexandra Homes (Bristol) Limited,3036.00, 17-Apr-2015
57,Revenue,CCHD,Home Care - Elderly - South,Other Small Contracts,AliMo Care Ltd,1288.56, 01-Apr-2015
58,Revenue,CCHD,Home Care - Elderly - South,Other Small Contracts,AliMo Care Ltd,1156.40, 08-Apr-2015
59,Revenue,CCHD,Home Care - Elderly - South,Other Small Contracts,AliMo Care Ltd,1197.70, 15-Apr-2015
60,Revenue,CCHD,Home Care - Elderly - South,Other Small Contracts,AliMo Care Ltd,1276.17, 29-Apr-2015
61,Revenue,CCHD,Home Care - Elderly - South,Other Small Contracts,AliMo Care Ltd,1317.47, 29-Apr-2015
62,Revenue,CCHD,Mental Health and Emotional Wellbeing,Other Small Contracts,Alzheimers Society,10983.75, 17-Apr-2015
63,Revenue,CCHD,Bed Purchasing - South,Permanent Nursing,Ambleside Nusing Ho!,20769.38, 14-Apr-2015
64,Revenue,CCHD,Supporting People Programme,Grants to Voluntary Bodies,Anchor Housing,905.17, 08-Apr-2015
65,Revenue,CCHD,Alexandra Way,Prop.Serv. General Repairs,Apre Surfacing Limited,420.00, 30-Apr-2015
66,Revenue,CCHD,Bed Purchasing - North,Permanent Residential,Ark Care Homes Ltd,10398.97, 14-Apr-2015
67,Revenue,CCHD,Older People's Commissioned Se,Grants to Voluntary Bodies,Armadillo Senior Cinema,1000.00, 24-Apr-2015
68,Revenue,CCHD,Mental Capacity Act - Advocacy,Other Supplies & Services,Armadillo Youth Venue & Cafe,1280.00, 30-Apr-2015
69,Revenue,CCHD,S117 Placements PCT,Permanent Residential,Ash View House,5289.57, 14-Apr-2015
70,Revenue,CCHD,S117 Placements PCT,Permanent Residential,Ash View House,1744.35, 14-Apr-2015
71,Revenue,CCHD,18-25 Year Olds,Permanent Residential,Ash View House,6208.95, 14-Apr-2015
72,Revenue,CCHD,Section 117 Placements MH Younger,Permanent Residential,Ash View House,4924.32, 14-Apr-2015
73,Revenue,CCHD,Section 117 Placements MH Younger,Permanent Residential,Ash View House,1623.90, 14-Apr-2015
74,Revenue,CCHD,Bed purchasing - Elderly S117 - South,Permanent Residential,Ash View House,4461.97, 14-Apr-2015
75,Revenue,CCHD,Bed purchasing - Elderly S117 - South,Permanent Residential,Ash View House,1545.00, 14-Apr-2015
76,Revenue,CCHD,Bed Purchasing - South,Permanent Residential,Ashbourne House,1131.50, 14-Apr-2015
77,Revenue,CCHD,Bed Purchasing - North,Permanent Residential,Ashbourne House,3825.61, 14-Apr-2015
78,Revenue,CCHD,Home Care - Elderly - South,Other Small Contracts,Ashley Commercial Finance Ltd,587.56, 09-Apr-2015
79,Revenue,CCHD,Home Care - Elderly - North,Other Small Contracts,Ashley Commercial Finance Ltd,5459.31, 09-Apr-2015
80,Revenue,CCHD,Home Care - Elderly - South,Other Small Contracts,Ashley Commercial Finance Ltd,619.32, 13-Apr-2015
81,Revenue,CCHD,Home Care - Elderly - North,Other Small Contracts,Ashley Commercial Finance Ltd,5253.76, 13-Apr-2015
82,Revenue,CCHD,Home Care - Elderly - South,Other Small Contracts,Ashley Commercial Finance Ltd,631.23, 20-Apr-2015
83,Revenue,CCHD,Home Care - Elderly - North,Other Small Contracts,Ashley Commercial Finance Ltd,5154.51, 20-Apr-2015
84,Revenue,CCHD,Bed and Breakfast,Bed & Breakfast,Ashley Guest Houses Limited,730.00, 01-Apr-2015
85,Revenue,CCHD,Bed and Breakfast,Bed & Breakfast,Ashley Guest Houses Limited,700.00, 08-Apr-2015
86,Revenue,CCHD,Bed and Breakfast,Bed & Breakfast,Ashley Guest Houses Limited,790.00, 23-Apr-2015
87,Revenue,CCHD,Bed Purchasing - North,Permanent Residential,Aspects 2 Limited,6410.73, 14-Apr-2015
88,Revenue,CCHD,Supporting People Programme,Grants to Voluntary Bodies,Aspects and Milestones Trust,3254.35, 08-Apr-2015
89,Revenue,CCHD,Supporting People Programme,Grants to Voluntary Bodies,Aspects and Milestones Trust,1631.60, 08-Apr-2015
90,Revenue,CCHD,Supporting People Programme,Grants to Voluntary Bodies,Aspects and Milestones Trust,1987.32, 08-Apr-2015
91,Revenue,CCHD,Supporting People Programme,Grants to Voluntary Bodies,Aspects and Milestones Trust,2476.54, 08-Apr-2015
92,Revenue,CCHD,Supported Living - South,Private & Voluntary Home Care,Aspirations Support Bristol Limited,872.80, 15-Apr-2015
93,Revenue,CCHD,MH Purchasing - Younger,Independent Living,Aspirations Support Bristol Limited,42168.00, 16-Apr-2015
94,Revenue,CCHD,Purchase of Non-Res Care - South,Day Care / Social Activities,Aspirations Support Bristol Limited,2499.48, 15-Apr-2015
95,Revenue,CCHD,Supported Living - South,Private & Voluntary Home Care,Aspirations Support Bristol Limited,596.44, 09-Apr-2015
96,Revenue,CCHD,Bed Purchasing - South,Permanent Residential,Autism Specialised Care Homes,5657.27, 14-Apr-2015
97,Revenue,CCHD,Alexandra Way,Prop.Serv. General Repairs,Avon Armour Limited,1988.00, 22-Apr-2015
98,Revenue,CCHD,S75 CCG Interim Beds,Permanent Nursing,Avon Lodge Care Centre,10200.00, 24-Apr-2015
99,Revenue,CCHD,Senior Management,Agency Staff (Admin/Support Staff) Pay,Baltimore Consulting Group,2352.00, 02-Apr-2015
100,Revenue,CCHD,Senior Management,Agency Staff (Admin/Support Staff) Pay,Baltimore Consulting Group,2352.00, 09-Apr-2015
101,Revenue,CCHD,Senior Management,Agency Staff (Admin/Support Staff) Pay,Baltimore Consulting Group,2352.00, 16-Apr-2015
102,Revenue,CCHD,Senior Management,Agency Staff (Admin/Support Staff) Pay,Baltimore Consulting Group,2352.00, 30-Apr-2015
103,Revenue,CCHD,Sexual Health,Other Supplies & Services,Barts Health NHS Trust,733.48, 02-Apr-2015
104,Revenue,CCHD,Purchase of RAC places,Other L.A.'s - General,Bath & North East Somerset Dist Council,5282.92, 01-Apr-2015
105,Revenue,CCHD,Bed Purchasing - Southmead Hospital,Permanent Nursing,Bayview Nursing & Residential Home,1491.37, 14-Apr-2015
106,Revenue,CCHD,Bed Purchasing - Elderly S117- North,Permanent Nursing,Beaufort Grange Care Home,5840.96, 14-Apr-2015
107,Revenue,CCHD,Bed Purchasing - North,Permanent Nursing,Beaufort Grange Care Home,726.93, 14-Apr-2015
108,Revenue,CCHD,Bed Purchasing - North,Permanent Residential,Beaufort House,1375.17, 14-Apr-2015
109,Revenue,CCHD,Bed Purchasing - North,Permanent Residential,Beaufort House,1204.60, 14-Apr-2015
110,Revenue,CCHD,Bed Purchasing - North,Permanent Residential,Beaufort House,1314.17, 14-Apr-2015
111,Revenue,CCHD,Bed Purchasing - North,Permanent Residential,Beaufort House,1644.20, 14-Apr-2015
112,Revenue,CCHD,Bed Purchasing - North,Permanent Residential,Beaufort House,1245.54, 14-Apr-2015
113,Revenue,CCHD,Bed Purchasing - North,Permanent Residential,Beaufort House,1046.76, 14-Apr-2015
114,Revenue,CCHD,Bed Purchasing - South,Permanent Residential,Beaufort House,1030.66, 14-Apr-2015
115,Revenue,CCHD,Bed Purchasing - North,Permanent Residential,Beaufort House,1302.03, 14-Apr-2015
116,Revenue,CCHD,Bed Purchasing - Southmead Hospital,Permanent Residential,Beaufort House,952.86, 14-Apr-2015
117,Revenue,CCHD,Bed Purchasing - North,Permanent Residential,Beaufort House,975.12, 14-Apr-2015
118,Revenue,CCHD,Bed Purchasing - North,Permanent Residential,Beaufort House,1340.48, 14-Apr-2015
119,Revenue,CCHD,Bed Purchasing - North,Permanent Residential,Beaufort House,1270.08, 14-Apr-2015
120,Revenue,CCHD,Bed Purchasing - North,Permanent Residential,Beaufort House,1290.60, 14-Apr-2015
121,Revenue,CCHD,Bed Purchasing - South,Permanent Residential,Bedrock Lodge,2276.34, 14-Apr-2015
122,Revenue,CCHD,Bed Purchasing - South,Permanent Residential,Bedrock Lodge,787.95, 14-Apr-2015
123,Revenue,CCHD,Bed Purchasing - South,Permanent Residential,Bedrock Lodge,2126.40, 14-Apr-2015
124,Revenue,CCHD,Bed Purchasing - South,Permanent Residential,Bedrock Lodge,737.36, 14-Apr-2015
125,Revenue,CCHD,Section 117 Placements MH Younger,Permanent Residential,Bedrock Lodge,1880.00, 14-Apr-2015
126,Revenue,CCHD,Bed Purchasing - North,Permanent Nursing,Beech House,1714.11, 14-Apr-2015
127,Revenue,CCHD,Bed Purchasing - North,Permanent Nursing,Beech House,594.62, 14-Apr-2015
128,Revenue,CCHD,Bed Purchasing - South,Permanent Residential,Beech House,953.10, 14-Apr-2015
129,Revenue,CCHD,Bed Purchasing - North,Permanent Nursing,Beech House,998.10, 14-Apr-2015
130,Revenue,CCHD,Bed Purchasing - North,Permanent Nursing,Beech House,1247.94, 14-Apr-2015
131,Revenue,CCHD,Bed Purchasing - North,Permanent Residential,Beech House,1082.10, 14-Apr-2015
132,Revenue,CCHD,Bed Purchasing - North,Permanent Nursing,Beech House,1831.34, 14-Apr-2015
133,Revenue,CCHD,Bed Purchasing - North,Permanent Nursing,Beech House,638.16, 14-Apr-2015
134,Revenue,CCHD,South Glos Users in South Glos Homes,Permanent Nursing,Beech House,887.12, 14-Apr-2015
135,Revenue,CCHD,Bed Purchasing - North,Permanent Nursing,Beech House,662.70, 14-Apr-2015
136,Revenue,CCHD,Bed Purchasing - North,Permanent Residential,Beech House,1443.54, 14-Apr-2015
137,Revenue,CCHD,Bed Purchasing - Southmead Hospital,Permanent Nursing,Beech House,7386.77, 14-Apr-2015
138,Revenue,CCHD,Bed Purchasing - Southmead Hospital,Permanent Nursing,Beech House,603.19, 14-Apr-2015
139,Revenue,CCHD,Bed Purchasing - North,Permanent Residential,Beech House,1060.17, 14-Apr-2015
140,Revenue,CCHD,Bed Purchasing - North,Permanent Nursing,Blossom Field,1376.25, 14-Apr-2015
141,Revenue,CCHD,Bed Purchasing - North,Permanent Nursing,Blossom Field,1138.94, 14-Apr-2015
142,Revenue,CCHD,Bed Purchasing - North,Permanent Nursing,Blossom Field,745.16, 14-Apr-2015
143,Revenue,CCHD,Bed Purchasing - Elderly S117- North,Permanent Nursing,Blossom Field,1509.00, 14-Apr-2015
144,Revenue,CCHD,South Glos Users in South Glos Homes,Permanent Nursing,Blossom Field,1108.90, 14-Apr-2015
145,Revenue,CCHD,Bed Purchasing - North,Permanent Nursing,Blossom Field,1045.08, 14-Apr-2015
146,Revenue,CCHD,South Glos Users in South Glos Homes,Permanent Nursing,Blossom Field,2534.63, 14-Apr-2015
147,Revenue,CCHD,South Glos Users in South Glos Homes,Permanent Nursing,Blossom Field,1631.67, 14-Apr-2015
148,Revenue,CCHD,Bed Purchasing - North,Permanent Nursing,Blossom Field,1923.71, 14-Apr-2015
149,Revenue,CCHD,Bed Purchasing - North,Permanent Nursing,Blossom Field,668.79, 14-Apr-2015
150,Revenue,CCHD,Bed Purchasing - North,Permanent Nursing,Blossom Field,1774.02, 14-Apr-2015
151,Revenue,CCHD,Bed Purchasing - North,Permanent Nursing,Blossom Field,584.25, 14-Apr-2015
152,Revenue,CCHD,Bed Purchasing - North,Permanent Nursing,Blossom Field,1949.45, 14-Apr-2015
153,Revenue,CCHD,Bed Purchasing - North,Permanent Nursing,Blossom Field,674.27, 14-Apr-2015
154,Revenue,CCHD,Bed Purchasing - South,Permanent Nursing,Blossom Field,1444.83, 14-Apr-2015
155,Revenue,CCHD,Bed Purchasing - Southmead Hospital,Permanent Nursing,Blossom Field,1838.68, 14-Apr-2015
156,Revenue,CCHD,Bed Purchasing - Southmead Hospital,Permanent Nursing,Blossom Field,636.36, 14-Apr-2015
157,Revenue,CCHD,Training - Adult Services,Training Expenses,Bob Dawson,1800.00, 17-Apr-2015
158,Revenue,CCHD,Sexual Health,Other Small Contracts,Boots UK Ltd,510.00, 10-Apr-2015
159,Revenue,CCHD,Sexual Health,Other Small Contracts,Boots UK Ltd,2178.81, 10-Apr-2015
160,Revenue,CCHD,18-25 Year Olds,Permanent Residential,Bradbury House,8831.77, 14-Apr-2015
161,Revenue,CCHD,Bed Purchasing - North,Permanent Residential,Bradley House,1543.19, 14-Apr-2015
162,Revenue,CCHD,Home Care - Elderly - North,Other Small Contracts,Bradley House Home Care Services,584.99, 08-Apr-2015
163,Revenue,CCHD,Day Care - North,Day Care / Social Activities,Bradley House Home Care Services,102.48, 08-Apr-2015
164,Revenue,CCHD,Home Care - Elderly - North,Other Small Contracts,Bradley House Home Care Services,529.48, 30-Apr-2015
165,Revenue,CCHD,Day Care - North,Day Care / Social Activities,Bradley House Home Care Services,102.48, 30-Apr-2015
166,Revenue,CCHD,Home Care - Elderly - North,Other Small Contracts,Bradley House Home Care Services,743.04, 30-Apr-2015
167,Revenue,CCHD,Home Care - Elderly - North,Other Small Contracts,Bradley House Home Care Services,807.84, 30-Apr-2015
168,Revenue,CCHD,Alexandra Way,"Provisions (Food, etc)",Brake Bros,644.98, 21-Apr-2015
169,Revenue,CCHD,Woodleaze,"Provisions (Food, etc)",Brake Bros,1108.44, 15-Apr-2015
170,Revenue,CCHD,Alexandra Way,"Provisions (Food, etc)",Brake Bros,594.60, 28-Apr-2015
171,Revenue,CCHD,Woodleaze,"Provisions (Food, etc)",Brake Bros,940.45, 22-Apr-2015
172,Revenue,CCHD,Bed Purchasing - South,Permanent Nursing,Brandon Trust,3637.34, 14-Apr-2015
173,Revenue,CCHD,Bed Purchasing - South,Permanent Nursing,Brandon Trust,1259.21, 14-Apr-2015
174,Revenue,CCHD,Bed Purchasing - S28A - Over 65- North,Permanent Residential,Brandon Trust,2233.20, 14-Apr-2015
175,Revenue,CCHD,Bed Purchasing - S28A - Over 65- North,Permanent Residential,Brandon Trust,774.27, 14-Apr-2015
176,Revenue,CCHD,Bed Purchasing - South,Permanent Residential,Brandon Trust,10352.41, 14-Apr-2015
177,Revenue,CCHD,Bed Purchasing - South,Permanent Residential,Brandon Trust,2914.83, 14-Apr-2015
178,Revenue,CCHD,Bed Purchasing - South,Permanent Residential,Brandon Trust,1009.03, 14-Apr-2015
179,Revenue,CCHD,Bed Purchasing - South,Permanent Residential,Brandon Trust,2495.17, 14-Apr-2015
180,Revenue,CCHD,Bed Purchasing - South,Permanent Residential,Brandon Trust,864.98, 14-Apr-2015
181,Revenue,CCHD,Bed Purchasing - Southmead Hospital,Permanent Nursing,Brandon Trust,3265.60, 14-Apr-2015
182,Revenue,CCHD,Bed Purchasing - Southmead Hospital,Permanent Nursing,Brandon Trust,1135.27, 14-Apr-2015
183,Revenue,CCHD,Bed Purchasing - LD S28A- Over 65- South,Permanent Nursing,Brandon Trust,3506.34, 14-Apr-2015
184,Revenue,CCHD,Bed Purchasing - LD S28A- Over 65- South,Permanent Nursing,Brandon Trust,1215.11, 14-Apr-2015
185,Revenue,CCHD,Bed Purchasing - South,Permanent Nursing,Brandon Trust,3637.49, 14-Apr-2015
186,Revenue,CCHD,Bed Purchasing - South,Permanent Nursing,Brandon Trust,1259.21, 14-Apr-2015
187,Revenue,CCHD,Bed purchasing - S28A Under 65 - South,Permanent Nursing,Brandon Trust,3870.03, 14-Apr-2015
188,Revenue,CCHD,Bed purchasing - S28A Under 65 - South,Permanent Nursing,Brandon Trust,1339.78, 14-Apr-2015
189,Revenue,CCHD,Bed purchasing - S28A Under 65 - South,Permanent Residential,Brandon Trust,3540.43, 14-Apr-2015
190,Revenue,CCHD,Bed purchasing - S28A Under 65 - South,Permanent Residential,Brandon Trust,1225.29, 14-Apr-2015
191,Revenue,CCHD,Bed Purchasing - LD S28A- Over 65- South,Permanent Nursing,Brandon Trust,3739.03, 14-Apr-2015
192,Revenue,CCHD,Bed Purchasing - LD S28A- Over 65- South,Permanent Nursing,Brandon Trust,1295.68, 14-Apr-2015
193,Revenue,CCHD,Bed Purchasing - LD S28A- Over 65- South,Permanent Nursing,Brandon Trust,3503.43, 14-Apr-2015
194,Revenue,CCHD,Bed Purchasing - LD S28A- Over 65- South,Permanent Nursing,Brandon Trust,1212.44, 14-Apr-2015
195,Revenue,CCHD,Bed Purchasing - South,Permanent Residential,Brandon Trust,2364.20, 14-Apr-2015
196,Revenue,CCHD,Bed Purchasing - South,Permanent Residential,Brandon Trust,818.37, 14-Apr-2015
197,Revenue,CCHD,Bed purchasing - S28A Under 65 - South,Permanent Residential,Brandon Trust,3757.14, 14-Apr-2015
198,Revenue,CCHD,Bed purchasing - S28A Under 65 - South,Permanent Residential,Brandon Trust,1300.69, 14-Apr-2015
199,Revenue,CCHD,Bed purchasing - S28A Under 65 - South,Permanent Residential,Brandon Trust,3797.34, 14-Apr-2015
200,Revenue,CCHD,Bed purchasing - S28A Under 65 - South,Permanent Residential,Brandon Trust,1314.61, 14-Apr-2015
201,Revenue,CCHD,Bed purchasing - S28A Under 65 - South,Permanent Nursing,Brandon Trust,3898.75, 14-Apr-2015
202,Revenue,CCHD,Bed purchasing - S28A Under 65 - South,Permanent Nursing,Brandon Trust,1349.78, 14-Apr-2015
203,Revenue,CCHD,Bed purchasing - S28A Under 65 - South,Permanent Nursing,Brandon Trust,3870.03, 14-Apr-2015
204,Revenue,CCHD,Bed purchasing - S28A Under 65 - South,Permanent Nursing,Brandon Trust,1339.78, 14-Apr-2015
205,Revenue,CCHD,Bed purchasing -S28A  Under 65 - North,Permanent Nursing,Brandon Trust,4822.70, 14-Apr-2015
206,Revenue,CCHD,Bed purchasing - S28A Under 65 - South,Permanent Residential,Brandon Trust,3797.34, 14-Apr-2015
207,Revenue,CCHD,Bed purchasing - S28A Under 65 - South,Permanent Residential,Brandon Trust,1314.61, 14-Apr-2015
208,Revenue,CCHD,Bed Purchasing - LD S28A- Over 65- South,Permanent Residential,Brandon Trust,3425.31, 14-Apr-2015
209,Revenue,CCHD,Bed Purchasing - LD S28A- Over 65- South,Permanent Residential,Brandon Trust,1187.05, 14-Apr-2015
210,Revenue,CCHD,Bed Purchasing - North,Permanent Residential,Bridge House Care Home,1150.20, 14-Apr-2015
211,Revenue,CCHD,Bed Purchasing - North,Permanent Residential,Bridge House Care Home,879.84, 14-Apr-2015
212,Revenue,CCHD,Bed Purchasing - North,Permanent Residential,Bridge House Care Home,1093.92, 14-Apr-2015
213,Revenue,CCHD,Bed Purchasing - South,Permanent Residential,Brightbow,1509.91, 14-Apr-2015
214,Revenue,CCHD,Bed Purchasing - South,Permanent Residential,Brightbow,523.82, 14-Apr-2015
215,Revenue,CCHD,MH Purchasing - Younger,Permanent Residential,Brightbow,1074.23, 14-Apr-2015
216,Revenue,CCHD,Health Inequalities,Other Small Contracts,Bristol & Avon Chinese Womens Group,500.00, 17-Apr-2015
217,Revenue,CCHD,Older People's Commissioned Se,Grants to Voluntary Bodies,Bristol Area Stroke Foundation,15749.00, 17-Apr-2015
218,Revenue,CCHD,Sexual Health,Other Small Contracts,Bristol City Council,61811.26, 02-Apr-2015
219,Revenue,CCHD,Supported Living - North,Private & Voluntary Home Care,Bristol Houses UK Limited,1510.06, 29-Apr-2015
220,Revenue,CCHD,Supported Living - North,Private & Voluntary Home Care,Bristol Houses UK Limited,620.80, 29-Apr-2015
221,Revenue,CCHD,Supporting People Programme,Grants to Voluntary Bodies,Bristol Missing Link,2012.42, 08-Apr-2015
222,Revenue,CCHD,Supporting People Programme,Grants to Voluntary Bodies,Bristol Missing Link,1464.82, 08-Apr-2015
223,Revenue,CCHD,Health Inequalities,Other Supplies & Services,Bristol Playbus,3100.00, 08-Apr-2015
224,Revenue,CCHD,Newton House,Water Charges,Bristol Wessex Billing Services Limited,1192.04, 08-Apr-2015
225,Revenue,CCHD,Home Care - Elderly - North,Day Care / Social Activities,Britannia House,922.32, 14-Apr-2015
226,Revenue,CCHD,Home Care - Elderly - South,Day Care / Social Activities,Britannia House,922.32, 14-Apr-2015
227,Revenue,CCHD,Home Care - Elderly - North,Day Care / Social Activities,Britannia House,2172.84, 14-Apr-2015
228,Revenue,CCHD,Home Care - Elderly - North,Day Care / Social Activities,Britannia House,691.74, 14-Apr-2015
229,Revenue,CCHD,Home Care - Elderly - North,Day Care / Social Activities,Britannia House,922.32, 14-Apr-2015
230,Revenue,CCHD,Home Care - Elderly - South,Day Care / Social Activities,Britannia House,691.74, 14-Apr-2015
231,Revenue,CCHD,Home Care - Elderly - North,Day Care / Social Activities,Britannia House,922.32, 14-Apr-2015
232,Revenue,CCHD,Home Care - Elderly - South,Day Care / Social Activities,Britannia House,1152.90, 14-Apr-2015
233,Revenue,CCHD,Home Care - Elderly - South,Day Care / Social Activities,Britannia House,691.74, 14-Apr-2015
234,Revenue,CCHD,Home Care - Elderly - South,Day Care / Social Activities,Britannia House,691.74, 14-Apr-2015
235,Revenue,CCHD,Home Care - Elderly - South,Day Care / Social Activities,Britannia House,691.74, 14-Apr-2015
236,Revenue,CCHD,Bed Purchasing - North,Permanent Residential,Broadgate House,1425.60, 14-Apr-2015
237,Revenue,CCHD,Supporting People Programme,Grants to Voluntary Bodies,Bromford Housing Group,14201.99, 08-Apr-2015
238,Revenue,CCHD,Sexual Health,Other Supplies & Services,Brook Advisory Centre (Avon),29337.00, 09-Apr-2015
239,Revenue,CCHD,South Glos Users in South Glos Homes,Permanent Nursing,Brunel Care  Saffron Gardens,1108.90, 14-Apr-2015
240,Revenue,CCHD,Bed Purchasing - Southmead Hospital,Permanent Nursing,Brunel Care  Saffron Gardens,2069.48, 14-Apr-2015
241,Revenue,CCHD,Bed Purchasing - Southmead Hospital,Permanent Nursing,Brunel Care  Saffron Gardens,875.10, 14-Apr-2015
242,Revenue,CCHD,Bed Purchasing - Southmead Hospital,Permanent Nursing,Brunel Care  Saffron Gardens,1448.07, 14-Apr-2015
243,Revenue,CCHD,Bed Purchasing - Southmead Hospital,Permanent Nursing,Brunel Care  Saffron Gardens,4408.47, 14-Apr-2015
244,Revenue,CCHD,Bed purchasing - Elderly S117 - South,Permanent Nursing,Brunel Care  Saffron Gardens,1770.18, 14-Apr-2015
245,Revenue,CCHD,Bed purchasing - Elderly S117 - South,Permanent Nursing,Brunel Care  Saffron Gardens,583.76, 14-Apr-2015
246,Revenue,CCHD,18-25 Year Olds,Permanent Nursing,Brunel Care  Saffron Gardens,2122.68, 14-Apr-2015
247,Revenue,CCHD,18-25 Year Olds,Permanent Nursing,Brunel Care  Saffron Gardens,700.00, 14-Apr-2015
248,Revenue,CCHD,Bed Purchasing - South,Permanent Nursing,Brunel Care  Saffron Gardens,1493.31, 14-Apr-2015
249,Revenue,CCHD,Bed Purchasing - South,Permanent Nursing,Brunel Care  Saffron Gardens,518.08, 14-Apr-2015
250,Revenue,CCHD,Bed Purchasing - Southmead Hospital,Permanent Nursing,Brunel Care  Saffron Gardens,1056.96, 14-Apr-2015
251,Revenue,CCHD,Bed Purchasing - South,Permanent Residential,Brunel Care  Saffron Gardens,981.42, 14-Apr-2015
252,Revenue,CCHD,Home Care - Elderly - North,Private & Voluntary Home Care,Brunelcare,23503.00, 07-Apr-2015
253,Revenue,CCHD,Home Care - Elderly - North,Private & Voluntary Home Care,Brunelcare,23503.00, 13-Apr-2015
254,Revenue,CCHD,Home Care - Elderly - North,Private & Voluntary Home Care,Brunelcare,23503.00, 20-Apr-2015
255,Revenue,CCHD,Home Care - Elderly - North,Private & Voluntary Home Care,Brunelcare,23503.00, 27-Apr-2015
256,Revenue,CCHD,S75 CCG Interim Beds,Permanent Nursing,Brunelcare,54600.00, 14-Apr-2015
257,Revenue,CCHD,S75 CCG Interim Beds,Permanent Nursing,Brunelcare,20000.00, 13-Apr-2015
258,Revenue,CCHD,Bed Purchasing - Elderly S117- North,Permanent Nursing,Brunelcare,4261.34, 02-Apr-2015
259,Revenue,CCHD,Bed Purchasing - South,Permanent Nursing,Brunelcare,9416.00, 02-Apr-2015
260,Revenue,CCHD,Bed Purchasing - Southmead Hospital,Permanent Nursing,Brunelcare,6686.94, 02-Apr-2015
261,Revenue,CCHD,Bed Purchasing - South,Permanent Nursing,Brunelcare,1938.03, 23-Apr-2015
262,Revenue,CCHD,Bed Purchasing - Southmead Hospital,Permanent Nursing,Brunelcare,583.76, 23-Apr-2015
263,Revenue,CCHD,Bed Purchasing - Southmead Hospital,Permanent Nursing,Brunelcare,1834.67, 23-Apr-2015
264,Revenue,CCHD,Bed Purchasing - South,Permanent Nursing,Brunelcare,1616.74, 23-Apr-2015
265,Revenue,CCHD,Bed Purchasing - South,Permanent Nursing,Brunelcare,1978.73, 23-Apr-2015
266,Revenue,CCHD,Bed Purchasing - South,Permanent Nursing,Brunelcare,2036.30, 23-Apr-2015
267,Revenue,CCHD,Bed Purchasing - Southmead Hospital,Permanent Nursing,Brunelcare,1810.13, 23-Apr-2015
268,Revenue,CCHD,Bed Purchasing - South,Permanent Nursing,Brunelcare,2021.02, 23-Apr-2015
269,Revenue,CCHD,Bed Purchasing - North,Permanent Nursing,Brunelcare,1657.48, 23-Apr-2015
270,Revenue,CCHD,Bed Purchasing - Elderly S117- North,Permanent Nursing,Brunelcare,2585.22, 23-Apr-2015
271,Revenue,CCHD,Bed Purchasing - Elderly S117- North,Permanent Nursing,Brunelcare,2585.22, 23-Apr-2015
272,Revenue,CCHD,Bed Purchasing - South,Permanent Nursing,Brunelcare,2036.30, 23-Apr-2015
273,Revenue,CCHD,Bed Purchasing - Southmead Hospital,Permanent Nursing,Brunelcare,1736.75, 23-Apr-2015
274,Revenue,CCHD,Bed Purchasing - Southmead Hospital,Permanent Nursing,Brunelcare,913.97, 23-Apr-2015
275,Revenue,CCHD,Bed Purchasing - Southmead Hospital,Permanent Nursing,Brunelcare,1693.71, 23-Apr-2015
276,Revenue,CCHD,Bed Purchasing - South,Permanent Nursing,Brunelcare,1810.13, 23-Apr-2015
277,Revenue,CCHD,Bed Purchasing - South,Permanent Nursing,Brunelcare,1517.23, 23-Apr-2015
278,Revenue,CCHD,Bed purchasing - Elderly S117 - South,Permanent Nursing,Brunelcare,2585.22, 23-Apr-2015
279,Revenue,CCHD,Bed Purchasing - North,Permanent Nursing,Brunelcare,1965.71, 23-Apr-2015
280,Revenue,CCHD,Bed Purchasing - Southmead Hospital,Permanent Nursing,Brunelcare,1639.01, 23-Apr-2015
281,Revenue,CCHD,Bed Purchasing - South,Permanent Nursing,Brunelcare,2036.30, 23-Apr-2015
282,Revenue,CCHD,Bed Purchasing - North,Permanent Nursing,Brunelcare,1970.14, 23-Apr-2015
283,Revenue,CCHD,Bed Purchasing - South,Permanent Nursing,Brunelcare,2036.30, 23-Apr-2015
284,Revenue,CCHD,Bed Purchasing - North,Permanent Nursing,Brunelcare,1810.13, 23-Apr-2015
285,Revenue,CCHD,Bed Purchasing - Southmead Hospital,Permanent Nursing,Brunelcare,1810.13, 23-Apr-2015
286,Revenue,CCHD,Bed Purchasing - Southmead Hospital,Permanent Nursing,Brunelcare,1703.14, 23-Apr-2015
287,Revenue,CCHD,Bed Purchasing - Elderly S117- North,Permanent Nursing,Brunelcare,2585.22, 23-Apr-2015
288,Revenue,CCHD,Bed Purchasing - Southmead Hospital,Permanent Nursing,Brunelcare,1477.86, 23-Apr-2015
289,Revenue,CCHD,Bed Purchasing - South,Permanent Nursing,Brunelcare,1810.13, 23-Apr-2015
290,Revenue,CCHD,Bed Purchasing - South,Respite Planned - Nursing,Brunelcare,1369.77, 23-Apr-2015
291,Revenue,CCHD,Bed Purchasing - South,Respite Planned - Nursing,Brunelcare,681.71, 23-Apr-2015
292,Revenue,CCHD,Bed Purchasing - South,Respite Planned - Nursing,Brunelcare,596.50, 23-Apr-2015
293,Revenue,CCHD,S75 CCG Interim Beds,Permanent Nursing,Brunelcare,15200.00, 24-Apr-2015
294,Revenue,CCHD,Home Care - Elderly - South,Other Small Contracts,Brunelcare,3002.88, 30-Apr-2015
295,Revenue,CCHD,Home Care - Elderly - North,Other Small Contracts,Brunelcare,2933.52, 30-Apr-2015
296,Revenue,CCHD,Day Care - South,Day Care / Social Activities,Brunelcare,32.64, 30-Apr-2015
297,Revenue,CCHD,Home Care - Elderly - South,Other Small Contracts,Brunelcare,2917.20, 30-Apr-2015
298,Revenue,CCHD,Home Care - Elderly - North,Other Small Contracts,Brunelcare,2847.84, 30-Apr-2015
299,Revenue,CCHD,Day Care - South,Day Care / Social Activities,Brunelcare,32.64, 30-Apr-2015
300,Revenue,CCHD,Home Care - Elderly - South,Other Small Contracts,Brunelcare,2423.52, 30-Apr-2015
301,Revenue,CCHD,Home Care - Elderly - North,Other Small Contracts,Brunelcare,2900.88, 30-Apr-2015
302,Revenue,CCHD,Information Systems - Software,Computer Equipment - Purchase,BT Global Services Solutions,984.77, 23-Apr-2015
303,Revenue,CCHD,Bed Purchasing - Southmead Hospital,Permanent Nursing,Bupa Care Services  Bridge House,1374.77, 14-Apr-2015
304,Revenue,CCHD,Bed Purchasing - Southmead Hospital,Permanent Nursing,Bupa Care Services  Bridge House,1211.66, 14-Apr-2015
305,Revenue,CCHD,Bed Purchasing - North,Permanent Nursing,Bupa Care Services  Bridge House,5986.37, 14-Apr-2015
306,Revenue,CCHD,South Glos Users in all other LA Homes,Permanent Nursing,Bupa Care Services  Bridge House,616.12, 14-Apr-2015
307,Revenue,CCHD,Bed Purchasing - North,Permanent Residential,Bupa Care Services  Bridge House,2003.35, 14-Apr-2015
308,Revenue,CCHD,Supported Living - North,Private & Voluntary Home Care,Camphill Communities Thornbury Limited,998.40, 01-Apr-2015
309,Revenue,CCHD,Supported Living - North,Private & Voluntary Home Care,Camphill Communities Thornbury Limited,599.04, 01-Apr-2015
310,Revenue,CCHD,Supported Living - North,Private & Voluntary Home Care,Camphill Communities Thornbury Limited,599.04, 01-Apr-2015
311,Revenue,CCHD,Supported Living - North,Private & Voluntary Home Care,Camphill Communities Thornbury Limited,773.76, 01-Apr-2015
312,Revenue,CCHD,Supported Living - North,Private & Voluntary Home Care,Camphill Communities Thornbury Limited,1223.04, 01-Apr-2015
313,Revenue,CCHD,Supported Living - North,Private & Voluntary Home Care,Camphill Communities Thornbury Limited,511.68, 01-Apr-2015
314,Revenue,CCHD,Supported Living - North,Private & Voluntary Home Care,Camphill Communities Thornbury Limited,698.88, 01-Apr-2015
315,Revenue,CCHD,Supported Living - North,Private & Voluntary Home Care,Camphill Communities Thornbury Limited,549.12, 01-Apr-2015
316,Revenue,CCHD,Supported Living - North,Private & Voluntary Home Care,Camphill Communities Thornbury Limited,1148.16, 01-Apr-2015
317,Revenue,CCHD,Supported Living - North,Private & Voluntary Home Care,Camphill Communities Thornbury Limited,998.40, 29-Apr-2015
318,Revenue,CCHD,Supported Living - North,Private & Voluntary Home Care,Camphill Communities Thornbury Limited,599.04, 29-Apr-2015
319,Revenue,CCHD,Supported Living - North,Private & Voluntary Home Care,Camphill Communities Thornbury Limited,599.04, 29-Apr-2015
320,Revenue,CCHD,Supported Living - North,Private & Voluntary Home Care,Camphill Communities Thornbury Limited,773.76, 29-Apr-2015
321,Revenue,CCHD,Supported Living - North,Private & Voluntary Home Care,Camphill Communities Thornbury Limited,1223.04, 29-Apr-2015
322,Revenue,CCHD,Supported Living - North,Private & Voluntary Home Care,Camphill Communities Thornbury Limited,511.68, 29-Apr-2015
323,Revenue,CCHD,Supported Living - North,Private & Voluntary Home Care,Camphill Communities Thornbury Limited,698.88, 29-Apr-2015
324,Revenue,CCHD,Supported Living - North,Private & Voluntary Home Care,Camphill Communities Thornbury Limited,549.12, 29-Apr-2015
325,Revenue,CCHD,Supported Living - North,Private & Voluntary Home Care,Camphill Communities Thornbury Limited,1148.16, 29-Apr-2015
326,Revenue,CCHD,Bed Purchasing - Elderly S117- North,Permanent Residential,Canjayor,2352.94, 14-Apr-2015
327,Revenue,CCHD,Information Systems - Software,Computer Equipment - Purchase,Capita Business Services Ltd,181816.45, 02-Apr-2015
328,Revenue,CCHD,Information Systems - Software,Software Support & Maintenance,Capita Business Services Ltd,1950.00, 02-Apr-2015
329,Revenue,CCHD,Information Systems - Software,Software Support & Maintenance,Capita Business Services Ltd,2600.00, 09-Apr-2015
330,Revenue,CCHD,Home Care - Elderly - South,Other Small Contracts,Care 1st Homecare,4208.40, 28-Apr-2015
331,Revenue,CCHD,Home Care - Elderly - North,Other Small Contracts,Care 1st Homecare,3389.40, 28-Apr-2015
332,Revenue,CCHD,Home Care - Elderly - South,Other Small Contracts,Care 1st Homecare,4011.00, 28-Apr-2015
333,Revenue,CCHD,Home Care - Elderly - North,Other Small Contracts,Care 1st Homecare,3238.20, 28-Apr-2015
334,Revenue,CCHD,Home Care - Elderly - South,Other Small Contracts,Care 1st Homecare,3906.00, 28-Apr-2015
335,Revenue,CCHD,Home Care - Elderly - North,Other Small Contracts,Care 1st Homecare,3284.40, 28-Apr-2015
336,Revenue,CCHD,Purchase of Non-Res Care - South,Day Care / Social Activities,Care Futures,2203.54, 14-Apr-2015
337,Revenue,CCHD,Supported Living - North,Private & Voluntary Home Care,Care Horizons Limited,5453.31, 30-Apr-2015
338,Revenue,CCHD,Supported Living - North,Private & Voluntary Home Care,Care Horizons Limited,5931.87, 30-Apr-2015
339,Revenue,CCHD,Purchase of Non-Res Care - North,Day Care / Social Activities,Care Horizons Limited,1749.20, 27-Apr-2015
340,Revenue,CCHD,Purchase of Non-Res Care - North,Day Care / Social Activities,Care Horizons Limited,1682.09, 30-Apr-2015
341,Revenue,CCHD,Electronic Home Care Monitoring,Other Supplies & Services,Care Monitoring 2000 Limited,9714.50, 13-Apr-2015
342,Revenue,CCHD,Home Care - Elderly - South,Other Small Contracts,Care UK,4131.68, 07-Apr-2015
343,Revenue,CCHD,Home Care - Elderly - North,Other Small Contracts,Care UK,1524.88, 07-Apr-2015
344,Revenue,CCHD,Home care - Elderly MH - North,Other Small Contracts,Care UK,497.84, 07-Apr-2015
345,Revenue,CCHD,Elderly MH Day Care North,Day Care / Social Activities,Care UK,141.12, 07-Apr-2015
346,Revenue,CCHD,Home Care - Elderly - South,Other Small Contracts,Care UK,3806.32, 07-Apr-2015
347,Revenue,CCHD,Home Care - Elderly - North,Other Small Contracts,Care UK,1544.48, 07-Apr-2015
348,Revenue,CCHD,Home care - Elderly MH - North,Other Small Contracts,Care UK,478.24, 07-Apr-2015
349,Revenue,CCHD,Elderly MH Day Care North,Day Care / Social Activities,Care UK,145.04, 07-Apr-2015
350,Revenue,CCHD,Home Care - Elderly - South,Other Small Contracts,Care UK,3849.44, 20-Apr-2015
351,Revenue,CCHD,Home Care - Elderly - North,Other Small Contracts,Care UK,1517.04, 20-Apr-2015
352,Revenue,CCHD,Home care - Elderly MH - North,Other Small Contracts,Care UK,525.28, 20-Apr-2015
353,Revenue,CCHD,Elderly MH Day Care North,Day Care / Social Activities,Care UK,94.08, 20-Apr-2015
354,Revenue,CCHD,Home Care - Elderly - South,Other Small Contracts,Care UK,4243.93, 23-Apr-2015
355,Revenue,CCHD,Home Care - Elderly - North,Other Small Contracts,Care UK,1850.02, 23-Apr-2015
356,Revenue,CCHD,Home Care - Elderly - South,Other Small Contracts,Care UK,4192.32, 30-Apr-2015
357,Revenue,CCHD,Home Care - Elderly - North,Other Small Contracts,Care UK,1889.72, 30-Apr-2015
358,Revenue,CCHD,SLA Grants - Support Serv,Grants to Voluntary Bodies,Carers Support Centre,12275.00, 17-Apr-2015
359,Revenue,CCHD,SLA Grants - Support Serv,Grants to Voluntary Bodies,Carers Support Centre,24775.00, 17-Apr-2015
360,Revenue,CCHD,Health Inequalities,Other Small Contracts,Carers Support Centre,59557.75, 17-Apr-2015
361,Revenue,CCHD,Social Lettings Agency,Fees - General,Individual,10.10, 01-Apr-2015
362,Revenue,CCHD,Social Lettings Agency,Fees & Charges Income - General,Individual,570.66, 01-Apr-2015
363,Revenue,CCHD,Bed Purchasing - North,Permanent Residential,Charlton House,768.28, 14-Apr-2015
364,Revenue,CCHD,Bed Purchasing - North,Permanent Residential,Charlton House,907.71, 14-Apr-2015
365,Revenue,CCHD,Home Care - Elderly - South,Other Small Contracts,Cherish Able Care Limited,5158.29, 01-Apr-2015
366,Revenue,CCHD,Home Care - Elderly - North,Other Small Contracts,Cherish Able Care Limited,1032.97, 01-Apr-2015
367,Revenue,CCHD,Home Care - Elderly - South,Other Small Contracts,Cherish Able Care Limited,5654.52, 09-Apr-2015
368,Revenue,CCHD,Home Care - Elderly - North,Other Small Contracts,Cherish Able Care Limited,1144.05, 09-Apr-2015
369,Revenue,CCHD,Home Care - Elderly - South,Other Small Contracts,Cherish Able Care Limited,5458.53, 16-Apr-2015
370,Revenue,CCHD,Home Care - Elderly - North,Other Small Contracts,Cherish Able Care Limited,1156.56, 16-Apr-2015
371,Revenue,CCHD,Home Care - Elderly - South,Other Small Contracts,Cherish Able Care Limited,5446.02, 22-Apr-2015
372,Revenue,CCHD,Home Care - Elderly - North,Other Small Contracts,Cherish Able Care Limited,1152.39, 22-Apr-2015
373,Revenue,CCHD,Home Care - Elderly - South,Other Small Contracts,Cherish Able Care Limited,5687.88, 29-Apr-2015
374,Revenue,CCHD,Home Care - Elderly - North,Other Small Contracts,Cherish Able Care Limited,1160.73, 29-Apr-2015
375,Revenue,CCHD,Supported Living - South,Private & Voluntary Home Care,Cherry Orchards,1554.00, 24-Apr-2015
376,Revenue,CCHD,Supported Living - South,Private & Voluntary Home Care,Cherry Orchards,1926.08, 24-Apr-2015
377,Revenue,CCHD,Supported Living - South,Private & Voluntary Home Care,Cherry Orchards,1926.08, 24-Apr-2015
378,Revenue,CCHD,Supported Living - South,Private & Voluntary Home Care,Cherry Orchards,1926.08, 24-Apr-2015
379,Revenue,CCHD,Bed purchasing -S28A  Under 65 - North,Permanent Residential,Chescombe Lodge,8768.22, 14-Apr-2015
380,Revenue,CCHD,"Physical Activity, Nutrition & Obesity",Other Small Contracts,Children`s Food Trust,13000.00, 02-Apr-2015
381,Revenue,CCHD,Bed Purchasing - Southmead Hospital,Permanent Nursing,Cholwell House Nursing Home Ltd,1421.25, 14-Apr-2015
382,Revenue,CCHD,Bed Purchasing - North,Permanent Nursing,Cholwell House Nursing Home Ltd,1076.28, 14-Apr-2015
383,Revenue,CCHD,Bed Purchasing - North,Permanent Residential,Church House,7965.87, 14-Apr-2015
384,Revenue,CCHD,Bed Purchasing - North,Permanent Residential,Church House,2626.92, 14-Apr-2015
385,Revenue,CCHD,Bed Purchasing - North,Permanent Residential,Church House,4484.82, 14-Apr-2015
386,Revenue,CCHD,Bed Purchasing - North,Permanent Residential,Church House,1478.74, 14-Apr-2015
387,Revenue,CCHD,Section 117 Placements MH Younger,Permanent Residential,Church House,5463.60, 14-Apr-2015
388,Revenue,CCHD,Section 117 Placements MH Younger,Permanent Residential,Church House,1891.83, 14-Apr-2015
389,Revenue,CCHD,Section 117 Placements MH Younger,Permanent Residential,Church House,5275.71, 14-Apr-2015
390,Revenue,CCHD,Section 117 Placements MH Younger,Permanent Residential,Church House,1826.77, 14-Apr-2015
391,Revenue,CCHD,18-25 Year Olds,Permanent Residential,Citibase Watford,5316.45, 14-Apr-2015
392,Revenue,CCHD,18-25 Year Olds,Permanent Residential,Citibase Watford,1753.00, 14-Apr-2015
393,Revenue,CCHD,Bed Purchasing - Elderly S117- North,Permanent Residential,Citibase Watford,6771.45, 14-Apr-2015
394,Revenue,CCHD,Bed Purchasing - Elderly S117- North,Permanent Residential,Citibase Watford,2233.03, 14-Apr-2015
395,Revenue,CCHD,18-25 Year Olds,Permanent Residential,Citibase Watford,3938.89, 14-Apr-2015
396,Revenue,CCHD,18-25 Year Olds,Permanent Residential,Citibase Watford,1560.60, 14-Apr-2015
397,Revenue,CCHD,Home Care - Elderly - South,Other Small Contracts,Cleeve Care Group,490.00, 10-Apr-2015
398,Revenue,CCHD,Home Care - Elderly - North,Other Small Contracts,Cleeve Care Group,462.00, 10-Apr-2015
399,Revenue,CCHD,Home Care - Elderly - South,Other Small Contracts,Cleeve Care Group,745.50, 23-Apr-2015
400,Revenue,CCHD,Home Care - Elderly - North,Day Care / Social Activities,Cleeve Care Group,28.00, 23-Apr-2015
401,Revenue,CCHD,Home Care - Elderly - North,Other Small Contracts,Cleeve Care Group,56.00, 23-Apr-2015
402,Revenue,CCHD,Home Care - Elderly - South,Other Small Contracts,Cleeve Care Group,584.50, 10-Apr-2015
403,Revenue,CCHD,Home Care - Elderly - South,Other Small Contracts,Cleeve Care Group,570.50, 10-Apr-2015
404,Revenue,CCHD,Home Care - Elderly - South,Other Small Contracts,Cleeve Care Group,584.50, 23-Apr-2015
405,Revenue,CCHD,Home Care - Elderly - South,Other Small Contracts,Cleeve Care Group,577.50, 22-Apr-2015
406,Revenue,CCHD,Home Care - Elderly - South,Other Small Contracts,Cleeve Care Group,605.50, 30-Apr-2015
407,Revenue,CCHD,Bed Purchasing - Southmead Hospital,Permanent Residential,Cleeve Lodge,1054.15, 14-Apr-2015
408,Revenue,CCHD,Bed Purchasing - South,Respite Planned - Residential,Cleeve Lodge,1142.14, 14-Apr-2015
409,Revenue,CCHD,Bed Purchasing - South,Permanent Residential,Cleeve Lodge,853.86, 14-Apr-2015
410,Revenue,CCHD,Bed Purchasing - North,Permanent Residential,Cleeve Lodge,1316.20, 14-Apr-2015
411,Revenue,CCHD,Bed Purchasing - South,Permanent Residential,Cleeve Lodge,1737.48, 14-Apr-2015
412,Revenue,CCHD,Bed Purchasing - South,Permanent Residential,Cleeve Lodge,572.97, 14-Apr-2015
413,Revenue,CCHD,Bed Purchasing - South,Permanent Residential,Cleeve Lodge,1305.54, 14-Apr-2015
414,Revenue,CCHD,Bed Purchasing - South,Permanent Residential,Collingwood Residential Home,1033.49, 14-Apr-2015
415,Revenue,CCHD,Bed Purchasing - South,Permanent Residential,Collingwood Residential Home,1047.17, 14-Apr-2015
416,Revenue,CCHD,Bed Purchasing - South,Permanent Residential,Collingwood Residential Home,809.34, 14-Apr-2015
417,Revenue,CCHD,Bed Purchasing - South,Permanent Residential,Collingwood Residential Home,999.96, 14-Apr-2015
418,Revenue,CCHD,Bed Purchasing - South,Permanent Residential,Collingwood Residential Home,968.10, 14-Apr-2015
419,Revenue,CCHD,Learning Difficulties Development Fund,Other Supplies & Services,Coniston Community Association,2500.00, 07-Apr-2015
420,Revenue,CCHD,Learning Difficulties Development Fund,Other Supplies & Services,Coniston Community Association,1250.00, 29-Apr-2015
421,Revenue,CCHD,Bed and Breakfast,Bed & Breakfast,Connolly & Callaghan Limited,585.90, 30-Apr-2015
422,Revenue,CCHD,Bed and Breakfast,Bed & Breakfast,Connolly & Callaghan Limited,560.70, 23-Apr-2015
423,Revenue,CCHD,Bed and Breakfast,Bed & Breakfast,Connolly & Callaghan Limited,1901.90, 28-Apr-2015
424,Revenue,CCHD,Bed and Breakfast,Bed & Breakfast,Connolly & Callaghan Limited,868.00, 23-Apr-2015
425,Revenue,CCHD,Bed and Breakfast,Bed & Breakfast,Connolly & Callaghan Limited,630.00, 23-Apr-2015
426,Revenue,CCHD,Bed and Breakfast,Bed & Breakfast,Connolly & Callaghan Limited,602.00, 23-Apr-2015
427,Revenue,CCHD,Bed and Breakfast,Bed & Breakfast,Connolly & Callaghan Limited,1148.00, 23-Apr-2015
428,Revenue,CCHD,Bed and Breakfast,Bed & Breakfast,Connolly & Callaghan Limited,1218.00, 23-Apr-2015
429,Revenue,CCHD,Bed and Breakfast,Bed & Breakfast,Connolly & Callaghan Limited,686.00, 09-Apr-2015
430,Revenue,CCHD,Bed and Breakfast,Bed & Breakfast,Connolly & Callaghan Limited,700.00, 09-Apr-2015
431,Revenue,CCHD,Bed and Breakfast,Bed & Breakfast,Connolly & Callaghan Limited,648.90, 09-Apr-2015
432,Revenue,CCHD,Bed and Breakfast,Bed & Breakfast,Connolly & Callaghan Limited,581.00, 21-Apr-2015
433,Revenue,CCHD,Bed and Breakfast,Bed & Breakfast,Connolly & Callaghan Limited,522.90, 21-Apr-2015
434,Revenue,CCHD,Bed and Breakfast,Bed & Breakfast,Connolly & Callaghan Limited,546.00, 21-Apr-2015
435,Revenue,CCHD,Bed and Breakfast,Bed & Breakfast,Connolly & Callaghan Limited,522.90, 23-Apr-2015
436,Revenue,CCHD,Bed and Breakfast,Bed & Breakfast,Connolly & Callaghan Limited,490.00, 21-Apr-2015
437,Revenue,CCHD,Bed and Breakfast,Bed & Breakfast,Connolly & Callaghan Limited,441.00, 23-Apr-2015
438,Revenue,CCHD,Bed and Breakfast,Bed & Breakfast,Connolly & Callaghan Limited,630.00, 21-Apr-2015
439,Revenue,CCHD,Bed and Breakfast,Bed & Breakfast,Connolly & Callaghan Limited,686.00, 09-Apr-2015
440,Revenue,CCHD,Bed and Breakfast,Bed & Breakfast,Connolly & Callaghan Limited,700.00, 09-Apr-2015
441,Revenue,CCHD,Bed and Breakfast,Bed & Breakfast,Connolly & Callaghan Limited,648.90, 09-Apr-2015
442,Revenue,CCHD,Bed and Breakfast,Bed & Breakfast,Connolly & Callaghan Limited,522.90, 09-Apr-2015
443,Revenue,CCHD,Bed and Breakfast,Bed & Breakfast,Connolly & Callaghan Limited,522.90, 21-Apr-2015
444,Revenue,CCHD,Bed and Breakfast,Bed & Breakfast,Connolly & Callaghan Limited,522.90, 21-Apr-2015
445,Revenue,CCHD,Bed and Breakfast,Bed & Breakfast,Connolly & Callaghan Limited,441.00, 21-Apr-2015
446,Revenue,CCHD,Bed and Breakfast,Bed & Breakfast,Connolly & Callaghan Limited,490.00, 21-Apr-2015
447,Revenue,CCHD,Bed and Breakfast,Bed & Breakfast,Connolly & Callaghan Limited,441.00, 21-Apr-2015
448,Revenue,CCHD,Bed and Breakfast,Bed & Breakfast,Connolly & Callaghan Limited,630.00, 21-Apr-2015
449,Revenue,CCHD,Bed and Breakfast,Bed & Breakfast,Connolly & Callaghan Limited,686.00, 21-Apr-2015
450,Revenue,CCHD,Bed and Breakfast,Bed & Breakfast,Connolly & Callaghan Limited,700.00, 21-Apr-2015
451,Revenue,CCHD,Bed and Breakfast,Bed & Breakfast,Connolly & Callaghan Limited,648.90, 24-Apr-2015
452,Revenue,CCHD,Bed and Breakfast,Bed & Breakfast,Connolly & Callaghan Limited,616.00, 21-Apr-2015
453,Revenue,CCHD,Bed and Breakfast,Bed & Breakfast,Connolly & Callaghan Limited,522.90, 21-Apr-2015
454,Revenue,CCHD,Bed and Breakfast,Bed & Breakfast,Connolly & Callaghan Limited,522.90, 21-Apr-2015
455,Revenue,CCHD,Bed and Breakfast,Bed & Breakfast,Connolly & Callaghan Limited,522.90, 23-Apr-2015
456,Revenue,CCHD,Bed and Breakfast,Bed & Breakfast,Connolly & Callaghan Limited,441.00, 23-Apr-2015
457,Revenue,CCHD,Bed and Breakfast,Bed & Breakfast,Connolly & Callaghan Limited,441.00, 23-Apr-2015
458,Revenue,CCHD,Bed and Breakfast,Bed & Breakfast,Connolly & Callaghan Limited,630.00, 23-Apr-2015
459,Revenue,CCHD,Bed and Breakfast,Bed & Breakfast,Connolly & Callaghan Limited,441.00, 21-Apr-2015
460,Revenue,CCHD,Bed and Breakfast,Bed & Breakfast,Connolly & Callaghan Limited,686.00, 23-Apr-2015
461,Revenue,CCHD,Bed and Breakfast,Bed & Breakfast,Connolly & Callaghan Limited,700.00, 23-Apr-2015
462,Revenue,CCHD,Bed and Breakfast,Bed & Breakfast,Connolly & Callaghan Limited,648.90, 24-Apr-2015
463,Revenue,CCHD,Bed and Breakfast,Bed & Breakfast,Connolly & Callaghan Limited,616.00, 23-Apr-2015
464,Revenue,CCHD,Bed and Breakfast,Bed & Breakfast,Connolly & Callaghan Limited,522.90, 23-Apr-2015
465,Revenue,CCHD,Bed and Breakfast,Bed & Breakfast,Connolly & Callaghan Limited,522.90, 23-Apr-2015
466,Revenue,CCHD,Bed and Breakfast,Bed & Breakfast,Connolly & Callaghan Limited,522.90, 23-Apr-2015
467,Revenue,CCHD,Bed and Breakfast,Bed & Breakfast,Connolly & Callaghan Limited,441.00, 23-Apr-2015
468,Revenue,CCHD,Bed and Breakfast,Bed & Breakfast,Connolly & Callaghan Limited,441.00, 23-Apr-2015
469,Revenue,CCHD,Bed and Breakfast,Bed & Breakfast,Connolly & Callaghan Limited,630.00, 23-Apr-2015
470,Revenue,CCHD,Bed and Breakfast,Bed & Breakfast,Connolly & Callaghan Limited,441.00, 23-Apr-2015
471,Revenue,CCHD,Bed and Breakfast,Bed & Breakfast,Connolly & Callaghan Limited,686.00, 30-Apr-2015
472,Revenue,CCHD,Bed and Breakfast,Bed & Breakfast,Connolly & Callaghan Limited,700.00, 30-Apr-2015
473,Revenue,CCHD,Bed and Breakfast,Bed & Breakfast,Connolly & Callaghan Limited,522.90, 30-Apr-2015
474,Revenue,CCHD,Bed and Breakfast,Bed & Breakfast,Connolly & Callaghan Limited,522.90, 30-Apr-2015
475,Revenue,CCHD,Bed and Breakfast,Bed & Breakfast,Connolly & Callaghan Limited,441.00, 30-Apr-2015
476,Revenue,CCHD,Bed and Breakfast,Bed & Breakfast,Connolly & Callaghan Limited,441.00, 30-Apr-2015
477,Revenue,CCHD,Bed and Breakfast,Bed & Breakfast,Connolly & Callaghan Limited,630.00, 30-Apr-2015
478,Revenue,CCHD,Bed Purchasing - Southmead Hospital,Permanent Residential,Coombs Wood House,968.35, 14-Apr-2015
479,Revenue,CCHD,Bed Purchasing - S28A - Over 65- North,Permanent Residential,Cream Ii Ltd  Longrun House,8102.01, 14-Apr-2015
480,Revenue,CCHD,Bed Purchasing - South,Permanent Residential,Cream Ii Ltd  Longrun House,5674.12, 14-Apr-2015
481,Revenue,CCHD,Bed purchasing -S28A  Under 65 - North,Permanent Residential,Creedy Court,6713.22, 14-Apr-2015
482,Revenue,CCHD,Bed purchasing -S28A  Under 65 - North,Permanent Residential,Creedy Court,2323.60, 14-Apr-2015
483,Revenue,CCHD,Bed Purchasing - S28A - Over 65- North,Permanent Residential,Creedy Court,5575.91, 14-Apr-2015
484,Revenue,CCHD,Bed Purchasing - S28A - Over 65- North,Permanent Residential,Creedy Court,1931.72, 14-Apr-2015
485,Revenue,CCHD,Bed Purchasing - North,Permanent Residential,Creedy Court,12682.65, 10-Apr-2015
486,Revenue,CCHD,Public Health Project Funding,Consultants Fees,D Harvey Consulting Limited,3808.10, 02-Apr-2015
487,Revenue,CCHD,Bed Purchasing - South,Permanent Residential,Daneswood,7949.60, 14-Apr-2015
488,Revenue,CCHD,Bed Purchasing - South,Permanent Residential,Daneswood,2752.37, 14-Apr-2015
489,Revenue,CCHD,Bed Purchasing - North,Permanent Residential,Daneswood,6910.23, 14-Apr-2015
490,Revenue,CCHD,Bed Purchasing - North,Permanent Residential,Daneswood,2278.72, 14-Apr-2015
491,Revenue,CCHD,Bed Purchasing - Elderly S117- North,Permanent Nursing,Danshell Healthcare Group,11622.39, 14-Apr-2015
492,Revenue,CCHD,Learning Difficulties PSL,Other Supplies & Services,Individual,2105.50, 22-Apr-2015
493,Revenue,CCHD,Public Health Project Funding,Membership Fees,Debigno Ltd trading as Pathway Analytics,2500.00, 24-Apr-2015
494,Revenue,CCHD,SLA Grants - Support Serv,Grants to Voluntary Bodies,Delia Robins,500.00, 24-Apr-2015
495,Revenue,CCHD,General EPH budgets,Other Supplies & Services,Derek Browne & Associates,1588.00, 29-Apr-2015
496,Revenue,CCHD,Purchase of Non-Res Care - North,Day Care / Social Activities,Design 4 Life Ltd,1574.64, 02-Apr-2015
497,Revenue,CCHD,Home Care - Elderly - South,Supported Living,Design House,3930.08, 14-Apr-2015
498,Revenue,CCHD,Bed Purchasing - South,Permanent Residential,Devon & Cornwall Autistic Community Trus,8859.86, 14-Apr-2015
499,Revenue,CCHD,Home Care - Elderly - South,Day Care / Social Activities,Dhek Bhal,193.60, 07-Apr-2015
500,Revenue,CCHD,Home Care - Elderly - South,Other Small Contracts,Dhek Bhal,271.04, 07-Apr-2015
501,Revenue,CCHD,Home Care - Elderly - North,Other Small Contracts,Dhek Bhal,193.60, 07-Apr-2015
502,Revenue,CCHD,Home Care - Elderly - South,Day Care / Social Activities,Dhek Bhal,135.52, 20-Apr-2015
503,Revenue,CCHD,Home Care - Elderly - South,Other Small Contracts,Dhek Bhal,266.20, 20-Apr-2015
504,Revenue,CCHD,Home Care - Elderly - North,Other Small Contracts,Dhek Bhal,150.04, 20-Apr-2015
505,Revenue,CCHD,Home Care - Elderly - South,Day Care / Social Activities,Dhek Bhal,254.80, 20-Apr-2015
506,Revenue,CCHD,Home Care - Elderly - South,Other Small Contracts,Dhek Bhal,274.40, 20-Apr-2015
507,Revenue,CCHD,Home Care - Elderly - North,Other Small Contracts,Dhek Bhal,122.50, 20-Apr-2015
508,Revenue,CCHD,Home Care - Elderly - South,Day Care / Social Activities,Dhek Bhal,196.00, 30-Apr-2015
509,Revenue,CCHD,Home Care - Elderly - South,Other Small Contracts,Dhek Bhal,274.40, 30-Apr-2015
510,Revenue,CCHD,Home Care - Elderly - North,Other Small Contracts,Dhek Bhal,117.60, 30-Apr-2015
511,Revenue,CCHD,Health Inequalities,Other Small Contracts,Dhek Bhal,500.00, 17-Apr-2015
512,Revenue,CCHD,Bed Purchasing - South,Permanent Residential,Dimensions,4920.32, 14-Apr-2015
513,Revenue,CCHD,Supported Living - South,Private & Voluntary Home Care,Dimensions (UK) Ltd,7748.40, 28-Apr-2015
514,Revenue,CCHD,User Involvement,Training Expenses,Distance Learning College & Training,1485.25, 24-Apr-2015
515,Revenue,CCHD,Home Care - Elderly - South,Day Care / Social Activities,DoCare Ltd,38.00, 09-Apr-2015
516,Revenue,CCHD,Home Care - Elderly - South,Other Small Contracts,DoCare Ltd,1928.51, 09-Apr-2015
517,Revenue,CCHD,Home Care - Elderly - North,Other Small Contracts,DoCare Ltd,6745.00, 09-Apr-2015
518,Revenue,CCHD,Home Care - Elderly - South,Day Care / Social Activities,DoCare Ltd,42.75, 09-Apr-2015
519,Revenue,CCHD,Home Care - Elderly - South,Other Small Contracts,DoCare Ltd,1762.25, 09-Apr-2015
520,Revenue,CCHD,Home Care - Elderly - North,Other Small Contracts,DoCare Ltd,6930.25, 09-Apr-2015
521,Revenue,CCHD,Sexual Health,Other Supplies & Services,Dr Annie Egginton,1450.00, 08-Apr-2015
522,Revenue,CCHD,Social Lettings Agency,Other Supplies & Services,Individual,580.74, 24-Apr-2015
523,Revenue,CCHD,MH Purchasing - Younger,Permanent Residential,Dunraven House,1870.13, 14-Apr-2015
524,Revenue,CCHD,Bed and Breakfast,Bed & Breakfast,E J Bartlett,504.00, 09-Apr-2015
525,Revenue,CCHD,Bed and Breakfast,Bed & Breakfast,E J Bartlett,420.00, 09-Apr-2015
526,Revenue,CCHD,Bed and Breakfast,Bed & Breakfast,E J Bartlett,504.00, 09-Apr-2015
527,Revenue,CCHD,Bed and Breakfast,Bed & Breakfast,E J Bartlett,420.00, 09-Apr-2015
528,Revenue,CCHD,Bed and Breakfast,Bed & Breakfast,E J Bartlett,504.00, 09-Apr-2015
529,Revenue,CCHD,Bed and Breakfast,Bed & Breakfast,E J Bartlett,420.00, 09-Apr-2015
530,Revenue,CCHD,Bed and Breakfast,Bed & Breakfast,E J Bartlett,520.00, 23-Apr-2015
531,Revenue,CCHD,Bed and Breakfast,Bed & Breakfast,E J Bartlett,504.00, 14-Apr-2015
532,Revenue,CCHD,Bed and Breakfast,Bed & Breakfast,E J Bartlett,504.00, 14-Apr-2015
533,Revenue,CCHD,Bed and Breakfast,Bed & Breakfast,E J Bartlett,420.00, 14-Apr-2015
534,Revenue,CCHD,Bed and Breakfast,Bed & Breakfast,E J Bartlett,504.00, 23-Apr-2015
535,Revenue,CCHD,Bed and Breakfast,Bed & Breakfast,E J Bartlett,504.00, 23-Apr-2015
536,Revenue,CCHD,Bed and Breakfast,Bed & Breakfast,E J Bartlett,450.00, 23-Apr-2015
537,Revenue,CCHD,Bed and Breakfast,Bed & Breakfast,E J Bartlett,504.00, 30-Apr-2015
538,Revenue,CCHD,Bed and Breakfast,Bed & Breakfast,E J Bartlett,504.00, 30-Apr-2015
539,Revenue,CCHD,Bed Purchasing - North,Permanent Residential,East Court,2232.16, 14-Apr-2015
540,Revenue,CCHD,Home Care - Elderly - South,Day Care / Social Activities,Easton Community Centre,524.70, 14-Apr-2015
541,Revenue,CCHD,Home Care - Elderly - South,Day Care / Social Activities,Easton Community Centre,524.70, 14-Apr-2015
542,Revenue,CCHD,Home Care - Elderly - North,Day Care / Social Activities,Easton Community Centre,524.70, 14-Apr-2015
543,Revenue,CCHD,Home Care - Elderly - North,Day Care / Social Activities,Easton Community Centre,524.70, 14-Apr-2015
544,Revenue,CCHD,Home Care - Elderly - South,Day Care / Social Activities,Eclipse Office Park,741.06, 14-Apr-2015
545,Revenue,CCHD,Home Care - Elderly - North,Day Care / Social Activities,Eclipse Office Park,988.08, 14-Apr-2015
546,Revenue,CCHD,Home Care - Elderly - South,Day Care / Social Activities,Eclipse Office Park,617.55, 14-Apr-2015
547,Revenue,CCHD,Home Care - Elderly - South,Day Care / Social Activities,Eclipse Office Park,864.57, 14-Apr-2015
548,Revenue,CCHD,Home Care - Elderly - South,Day Care / Social Activities,Eclipse Office Park,741.06, 14-Apr-2015
549,Revenue,CCHD,Home Care - Elderly - South,Day Care / Social Activities,Eclipse Office Park,864.57, 14-Apr-2015
550,Revenue,CCHD,Home Care - Elderly - South,Day Care / Social Activities,Eclipse Office Park,735.12, 14-Apr-2015
551,Revenue,CCHD,Home Care - Elderly - South,Day Care / Social Activities,Eclipse Office Park,1235.10, 14-Apr-2015
552,Revenue,CCHD,Home Care - Elderly - South,Day Care / Social Activities,Eclipse Office Park,741.06, 14-Apr-2015
553,Revenue,CCHD,Home Care - Elderly - South,Day Care / Social Activities,Eclipse Office Park,864.57, 14-Apr-2015
554,Revenue,CCHD,Home Care - Elderly - South,Day Care / Social Activities,Eclipse Office Park,988.08, 14-Apr-2015
555,Revenue,CCHD,Bed Purchasing - South,Permanent Residential,Edgecumbe Lodge,886.02, 14-Apr-2015
556,Revenue,CCHD,Bed Purchasing - Southmead Hospital,Permanent Residential,Edgecumbe Lodge,907.71, 14-Apr-2015
557,Revenue,CCHD,Bed Purchasing - South,Permanent Residential,Edgecumbe Lodge,1080.18, 14-Apr-2015
558,Revenue,CCHD,Bed Purchasing - South,Permanent Residential,Edgecumbe Lodge,952.32, 14-Apr-2015
559,Revenue,CCHD,Bed Purchasing - South,Permanent Residential,Edgecumbe Lodge,795.30, 14-Apr-2015
560,Revenue,CCHD,Bed Purchasing - Southmead Hospital,Permanent Residential,Edgecumbe Lodge,1155.34, 14-Apr-2015
561,Revenue,CCHD,Bed Purchasing - South,Permanent Residential,Edgecumbe Lodge,1032.03, 14-Apr-2015
562,Revenue,CCHD,Bed Purchasing - Southmead Hospital,Permanent Residential,Edgecumbe Lodge,1104.51, 14-Apr-2015
563,Revenue,CCHD,Bed Purchasing - South,Permanent Residential,Edgecumbe Lodge,859.44, 14-Apr-2015
564,Revenue,CCHD,Bed Purchasing - North,Permanent Residential,Edgecumbe Lodge,984.43, 14-Apr-2015
565,Revenue,CCHD,Bed Purchasing - South,Respite Planned - Residential,Edgemont House Ltd,960.26, 14-Apr-2015
566,Revenue,CCHD,Bed Purchasing - South,Permanent Residential,Edgemont House Ltd,1029.80, 14-Apr-2015
567,Revenue,CCHD,Bed Purchasing - South,Permanent Residential,Edgemont House Ltd,936.69, 14-Apr-2015
568,Revenue,CCHD,Bed Purchasing - North,Permanent Nursing,Edgemont View Nursing Home,924.12, 14-Apr-2015
569,Revenue,CCHD,Bed Purchasing - South,Permanent Nursing,Edgemont View Nursing Home,1196.35, 14-Apr-2015
570,Revenue,CCHD,Bed Purchasing - South,Permanent Nursing,Edgemont View Nursing Home,1093.08, 14-Apr-2015
571,Revenue,CCHD,Bed Purchasing - South,Permanent Nursing,Edgemont View Nursing Home,1177.43, 14-Apr-2015
572,Revenue,CCHD,Bed Purchasing - South,Permanent Nursing,Edgemont View Nursing Home,907.41, 14-Apr-2015
573,Revenue,CCHD,Supporting People Programme,Grants to Voluntary Bodies,Elim Housing Association Limited,5072.70, 08-Apr-2015
574,Revenue,CCHD,Home Care - Elderly - South,Day Care / Social Activities,Elite Home Care Ltd,34.96, 21-Apr-2015
575,Revenue,CCHD,Home Care - Elderly - South,Other Small Contracts,Elite Home Care Ltd,6458.86, 21-Apr-2015
576,Revenue,CCHD,Home Care - Elderly - North,Other Small Contracts,Elite Home Care Ltd,332.12, 21-Apr-2015
577,Revenue,CCHD,Home Care - Elderly - South,Day Care / Social Activities,Elite Home Care Ltd,34.96, 21-Apr-2015
578,Revenue,CCHD,Home Care - Elderly - South,Other Small Contracts,Elite Home Care Ltd,6380.20, 21-Apr-2015
579,Revenue,CCHD,Home Care - Elderly - North,Other Small Contracts,Elite Home Care Ltd,327.75, 21-Apr-2015
580,Revenue,CCHD,Bed Purchasing - North,Permanent Residential,Epworth House,1052.40, 14-Apr-2015
581,Revenue,CCHD,Home Care - Elderly - South,Other Small Contracts,Everycare (Bristol) Ltd,4284.00, 20-Apr-2015
582,Revenue,CCHD,Home Care - Elderly - North,Day Care / Social Activities,Everycare (Bristol) Ltd,178.50, 20-Apr-2015
583,Revenue,CCHD,Home Care - Elderly - North,Other Small Contracts,Everycare (Bristol) Ltd,3434.00, 20-Apr-2015
584,Revenue,CCHD,Under 65s -MH  Home Care Purch,Other Small Contracts,Everycare (Bristol) Ltd,51.00, 20-Apr-2015
585,Revenue,CCHD,Home Care - Elderly - South,Other Small Contracts,Everycare (Bristol) Ltd,4874.75, 21-Apr-2015
586,Revenue,CCHD,Home Care - Elderly - North,Day Care / Social Activities,Everycare (Bristol) Ltd,148.75, 21-Apr-2015
587,Revenue,CCHD,Home Care - Elderly - North,Other Small Contracts,Everycare (Bristol) Ltd,3417.00, 21-Apr-2015
588,Revenue,CCHD,Under 65s -MH  Home Care Purch,Other Small Contracts,Everycare (Bristol) Ltd,51.00, 21-Apr-2015
589,Revenue,CCHD,Home Care - Elderly - South,Other Small Contracts,Everycare (Bristol) Ltd,4866.25, 21-Apr-2015
590,Revenue,CCHD,Home Care - Elderly - North,Day Care / Social Activities,Everycare (Bristol) Ltd,148.75, 21-Apr-2015
591,Revenue,CCHD,Home Care - Elderly - North,Other Small Contracts,Everycare (Bristol) Ltd,2996.25, 21-Apr-2015
592,Revenue,CCHD,Under 65s -MH  Home Care Purch,Other Small Contracts,Everycare (Bristol) Ltd,51.00, 21-Apr-2015
593,Revenue,CCHD,Home Care - Elderly - South,Other Small Contracts,Everycare (Bristol) Ltd,4687.75, 20-Apr-2015
594,Revenue,CCHD,Home Care - Elderly - North,Day Care / Social Activities,Everycare (Bristol) Ltd,114.75, 20-Apr-2015
595,Revenue,CCHD,Home Care - Elderly - North,Other Small Contracts,Everycare (Bristol) Ltd,2881.50, 20-Apr-2015
596,Revenue,CCHD,Under 65s -MH  Home Care Purch,Other Small Contracts,Everycare (Bristol) Ltd,51.00, 20-Apr-2015
597,Revenue,CCHD,Home Care - Elderly - South,Other Small Contracts,Everycare (Bristol) Ltd,4658.00, 21-Apr-2015
598,Revenue,CCHD,Home Care - Elderly - North,Day Care / Social Activities,Everycare (Bristol) Ltd,131.75, 21-Apr-2015
599,Revenue,CCHD,Home Care - Elderly - North,Other Small Contracts,Everycare (Bristol) Ltd,2426.75, 21-Apr-2015
600,Revenue,CCHD,Under 65s -MH  Home Care Purch,Other Small Contracts,Everycare (Bristol) Ltd,59.50, 21-Apr-2015
601,Revenue,CCHD,Bed Purchasing - Southmead Hospital,Permanent Nursing,Fairview Court,1422.03, 14-Apr-2015
602,Revenue,CCHD,South Glos Users in South Glos Homes,Permanent Nursing,Fairview Court,2724.73, 14-Apr-2015
603,Revenue,CCHD,Swift Dump Code,Permanent Residential,Fairview Court,2711.18, 14-Apr-2015
604,Revenue,CCHD,Bed purchasing - Elderly S117 - South,Permanent Nursing,Fairview Court,1509.00, 14-Apr-2015
605,Revenue,CCHD,South Glos Users in South Glos Homes,Permanent Nursing,Fairview Court,712.86, 14-Apr-2015
606,Revenue,CCHD,Bed Purchasing - South,Permanent Nursing,Fairview Court,1182.22, 14-Apr-2015
607,Revenue,CCHD,Bed Purchasing - South,Permanent Nursing,Fairview Court,1275.97, 14-Apr-2015
608,Revenue,CCHD,Bed Purchasing - South,Permanent Nursing,Fairview Court,1442.17, 14-Apr-2015
609,Revenue,CCHD,Bed Purchasing - South,Permanent Nursing,Fairview Court,500.37, 14-Apr-2015
610,Revenue,CCHD,Bed Purchasing - South,Permanent Nursing,Fairview Court,1342.88, 14-Apr-2015
611,Revenue,CCHD,Bed Purchasing - North,Permanent Nursing,Fairview Court,1760.97, 14-Apr-2015
612,Revenue,CCHD,South Glos Users in South Glos Homes,Permanent Nursing,Fairview Court,934.64, 14-Apr-2015
613,Revenue,CCHD,Bed Purchasing - North,Permanent Nursing,Fairview Court,580.07, 14-Apr-2015
614,Revenue,CCHD,Bed Purchasing - South,Permanent Nursing,Fairview Court,1409.07, 14-Apr-2015
615,Revenue,CCHD,Bed Purchasing - Southmead Hospital,Permanent Nursing,Fairview Court,1426.11, 14-Apr-2015
616,Revenue,CCHD,Bed Purchasing - South,Permanent Nursing,Fairview Court Care Home,1125.84, 29-Apr-2015
617,Revenue,CCHD,Bed Purchasing - South,Permanent Nursing,Fairview Court Care Home,984.11, 29-Apr-2015
618,Revenue,CCHD,Bed Purchasing - South,Permanent Nursing,Fairview Court Care Home,2013.98, 29-Apr-2015
619,Revenue,CCHD,Bed Purchasing - South,Permanent Nursing,Fairview Court Care Home,2010.66, 29-Apr-2015
620,Revenue,CCHD,Bed Purchasing - Southmead Hospital,Permanent Nursing,Fairview Court Care Home,1487.74, 29-Apr-2015
621,Revenue,CCHD,Bed purchasing - Elderly S117 - South,Permanent Nursing,Fairview Court Care Home,2550.27, 29-Apr-2015
622,Revenue,CCHD,Bed purchasing - Elderly S117 - South,Permanent Residential,Fairview House,1268.57, 14-Apr-2015
623,Revenue,CCHD,Bed purchasing - Elderly S117 - South,Permanent Residential,Fairview House,1453.17, 14-Apr-2015
624,Revenue,CCHD,Bed Purchasing - Southmead Hospital,Permanent Residential,Fairview House,782.37, 14-Apr-2015
625,Revenue,CCHD,Bed Purchasing - South,Permanent Residential,Fairview House,651.60, 14-Apr-2015
626,Revenue,CCHD,Bed Purchasing - South,Permanent Residential,Fairview House,907.71, 14-Apr-2015
627,Revenue,CCHD,Bed Purchasing - South,Permanent Residential,Fairview House,864.28, 14-Apr-2015
628,Revenue,CCHD,Bed Purchasing - South,Permanent Residential,Fairview House,810.68, 14-Apr-2015
629,Revenue,CCHD,Bed Purchasing - Southmead Hospital,Permanent Residential,Fairview House,907.71, 14-Apr-2015
630,Revenue,CCHD,Bed Purchasing - Southmead Hospital,Permanent Residential,Fairview House,774.57, 14-Apr-2015
631,Revenue,CCHD,Bed Purchasing - South,Permanent Residential,Fairview House,783.00, 14-Apr-2015
632,Revenue,CCHD,Bed Purchasing - South,Permanent Residential,Fairview House,1091.67, 14-Apr-2015
633,Revenue,CCHD,Bed Purchasing - Southmead Hospital,Permanent Residential,Faith House,1305.15, 14-Apr-2015
634,Revenue,CCHD,Bed Purchasing - Southmead Hospital,Permanent Residential,Faith House,930.51, 14-Apr-2015
635,Revenue,CCHD,Bed Purchasing - North,Permanent Residential,Fernbank,7769.21, 14-Apr-2015
636,Revenue,CCHD,Home Care - Elderly - South,Day Care / Social Activities,Firstpoint Homecare Ltd,61.44, 09-Apr-2015
637,Revenue,CCHD,Home Care - Elderly - South,Other Small Contracts,Firstpoint Homecare Ltd,1390.08, 09-Apr-2015
638,Revenue,CCHD,Home Care - Elderly - North,Day Care / Social Activities,Firstpoint Homecare Ltd,46.08, 09-Apr-2015
639,Revenue,CCHD,Home Care - Elderly - North,Other Small Contracts,Firstpoint Homecare Ltd,1393.92, 09-Apr-2015
640,Revenue,CCHD,Under 65s -MH  Home Care Purch,Other Small Contracts,Firstpoint Homecare Ltd,46.08, 09-Apr-2015
641,Revenue,CCHD,Younger MH non-res purchasing,Day Care / Social Activities,Firstpoint Homecare Ltd,46.08, 09-Apr-2015
642,Revenue,CCHD,Home Care - Elderly - South,Day Care / Social Activities,Firstpoint Homecare Ltd,92.16, 09-Apr-2015
643,Revenue,CCHD,Home Care - Elderly - South,Other Small Contracts,Firstpoint Homecare Ltd,1324.80, 09-Apr-2015
644,Revenue,CCHD,Home Care - Elderly - North,Day Care / Social Activities,Firstpoint Homecare Ltd,46.08, 09-Apr-2015
645,Revenue,CCHD,Home Care - Elderly - North,Other Small Contracts,Firstpoint Homecare Ltd,1455.36, 09-Apr-2015
646,Revenue,CCHD,Under 65s -MH  Home Care Purch,Other Small Contracts,Firstpoint Homecare Ltd,46.08, 09-Apr-2015
647,Revenue,CCHD,Younger MH non-res purchasing,Day Care / Social Activities,Firstpoint Homecare Ltd,46.08, 09-Apr-2015
648,Revenue,CCHD,Home Care - Elderly - South,Day Care / Social Activities,Firstpoint Homecare Ltd,96.00, 10-Apr-2015
649,Revenue,CCHD,Home Care - Elderly - South,Other Small Contracts,Firstpoint Homecare Ltd,1735.68, 10-Apr-2015
650,Revenue,CCHD,Home Care - Elderly - North,Day Care / Social Activities,Firstpoint Homecare Ltd,42.24, 10-Apr-2015
651,Revenue,CCHD,Home Care - Elderly - North,Other Small Contracts,Firstpoint Homecare Ltd,983.04, 10-Apr-2015
652,Revenue,CCHD,Under 65s -MH  Home Care Purch,Other Small Contracts,Firstpoint Homecare Ltd,46.08, 10-Apr-2015
653,Revenue,CCHD,Younger MH non-res purchasing,Day Care / Social Activities,Firstpoint Homecare Ltd,15.36, 10-Apr-2015
654,Revenue,CCHD,Home Care - Elderly - South,Day Care / Social Activities,Firstpoint Homecare Ltd,92.16, 10-Apr-2015
655,Revenue,CCHD,Home Care - Elderly - South,Other Small Contracts,Firstpoint Homecare Ltd,1666.56, 10-Apr-2015
656,Revenue,CCHD,Home Care - Elderly - North,Day Care / Social Activities,Firstpoint Homecare Ltd,42.24, 10-Apr-2015
657,Revenue,CCHD,Home Care - Elderly - North,Other Small Contracts,Firstpoint Homecare Ltd,1201.92, 10-Apr-2015
658,Revenue,CCHD,Under 65s -MH  Home Care Purch,Other Small Contracts,Firstpoint Homecare Ltd,46.08, 10-Apr-2015
659,Revenue,CCHD,Younger MH non-res purchasing,Day Care / Social Activities,Firstpoint Homecare Ltd,46.08, 10-Apr-2015
660,Revenue,CCHD,Home Care - Elderly - South,Day Care / Social Activities,Firstpoint Homecare Ltd,92.16, 30-Apr-2015
661,Revenue,CCHD,Home Care - Elderly - South,Other Small Contracts,Firstpoint Homecare Ltd,1751.04, 30-Apr-2015
662,Revenue,CCHD,Home Care - Elderly - North,Day Care / Social Activities,Firstpoint Homecare Ltd,49.92, 30-Apr-2015
663,Revenue,CCHD,Home Care - Elderly - North,Other Small Contracts,Firstpoint Homecare Ltd,1251.84, 30-Apr-2015
664,Revenue,CCHD,Under 65s -MH  Home Care Purch,Other Small Contracts,Firstpoint Homecare Ltd,46.08, 30-Apr-2015
665,Revenue,CCHD,Younger MH non-res purchasing,Day Care / Social Activities,Firstpoint Homecare Ltd,49.92, 30-Apr-2015
666,Revenue,CCHD,Home Care - Elderly - South,Day Care / Social Activities,Firstpoint Homecare Ltd,85.58, 30-Apr-2015
667,Revenue,CCHD,Home Care - Elderly - South,Other Small Contracts,Firstpoint Homecare Ltd,1867.20, 30-Apr-2015
668,Revenue,CCHD,Home Care - Elderly - North,Day Care / Social Activities,Firstpoint Homecare Ltd,42.79, 30-Apr-2015
669,Revenue,CCHD,Home Care - Elderly - North,Other Small Contracts,Firstpoint Homecare Ltd,1090.29, 30-Apr-2015
670,Revenue,CCHD,Under 65s -MH  Home Care Purch,Other Small Contracts,Firstpoint Homecare Ltd,46.68, 30-Apr-2015
671,Revenue,CCHD,Younger MH non-res purchasing,Day Care / Social Activities,Firstpoint Homecare Ltd,46.68, 30-Apr-2015
672,Revenue,CCHD,SW HAWB Support,Consultants Fees,Five Square Solutions Limited,1100.00, 10-Apr-2015
673,Revenue,CCHD,Health Inequalities,Other Small Contracts,Frampton Cotterell Carers Group,500.00, 17-Apr-2015
674,Revenue,CCHD,Supporting People Programme,Grants to Voluntary Bodies,Freeways Trust Limited,8053.04, 08-Apr-2015
675,Revenue,CCHD,Freeways,Permanent Residential,Freeways Trust Limited,3611.80, 07-Apr-2015
676,Revenue,CCHD,Freeways,Permanent Residential,Freeways Trust Limited,2269.08, 07-Apr-2015
677,Revenue,CCHD,Freeways,Permanent Residential,Freeways Trust Limited,2346.88, 07-Apr-2015
678,Revenue,CCHD,Freeways,Permanent Residential,Freeways Trust Limited,2993.72, 07-Apr-2015
679,Revenue,CCHD,Freeways,Permanent Residential,Freeways Trust Limited,2346.88, 07-Apr-2015
680,Revenue,CCHD,Freeways,Permanent Residential,Freeways Trust Limited,4357.44, 07-Apr-2015
681,Revenue,CCHD,Freeways,Permanent Residential,Freeways Trust Limited,3242.64, 07-Apr-2015
682,Revenue,CCHD,Freeways,Permanent Residential,Freeways Trust Limited,3522.28, 07-Apr-2015
683,Revenue,CCHD,Freeways,Permanent Residential,Freeways Trust Limited,2666.28, 07-Apr-2015
684,Revenue,CCHD,Freeways,Permanent Residential,Freeways Trust Limited,2681.60, 07-Apr-2015
685,Revenue,CCHD,Freeways,Permanent Residential,Freeways Trust Limited,3211.48, 07-Apr-2015
686,Revenue,CCHD,Freeways,Permanent Residential,Freeways Trust Limited,3077.36, 07-Apr-2015
687,Revenue,CCHD,Freeways,Permanent Residential,Freeways Trust Limited,3573.72, 07-Apr-2015
688,Revenue,CCHD,Freeways,Permanent Residential,Freeways Trust Limited,7276.56, 07-Apr-2015
689,Revenue,CCHD,Bed Purchasing - North,Permanent Residential,Freeways Trust Ltd,2065.68, 14-Apr-2015
690,Revenue,CCHD,Bed Purchasing - North,Permanent Residential,Freeways Trust Ltd,715.01, 14-Apr-2015
691,Revenue,CCHD,Bed purchasing - S28A Under 65 - South,Permanent Residential,Freeways Trust Ltd,2950.45, 14-Apr-2015
692,Revenue,CCHD,Bed Purchasing - North,Permanent Residential,Freeways Trust Ltd,2260.48, 14-Apr-2015
693,Revenue,CCHD,Bed Purchasing - North,Permanent Residential,Freeways Trust Ltd,782.46, 14-Apr-2015
694,Revenue,CCHD,Bed Purchasing - North,Permanent Residential,Freeways Trust Ltd,1651.94, 14-Apr-2015
695,Revenue,CCHD,Bed Purchasing - North,Permanent Residential,Freeways Trust Ltd,571.74, 14-Apr-2015
696,Revenue,CCHD,Bed Purchasing - North,Permanent Residential,Freeways Trust Ltd,1972.80, 14-Apr-2015
697,Revenue,CCHD,Bed Purchasing - North,Permanent Residential,Freeways Trust Ltd,682.84, 14-Apr-2015
698,Revenue,CCHD,Bed Purchasing - South,Permanent Residential,Freeways Trust Ltd,2411.34, 14-Apr-2015
699,Revenue,CCHD,Bed Purchasing - South,Permanent Residential,Freeways Trust Ltd,834.69, 14-Apr-2015
700,Revenue,CCHD,Bed Purchasing - North,Permanent Residential,Freeways Trust Ltd,1633.45, 14-Apr-2015
701,Revenue,CCHD,Bed Purchasing - North,Permanent Residential,Freeways Trust Ltd,566.60, 14-Apr-2015
702,Revenue,CCHD,Bed Purchasing - South,Permanent Residential,Freeways Trust Ltd,1732.83, 14-Apr-2015
703,Revenue,CCHD,Bed Purchasing - South,Permanent Residential,Freeways Trust Ltd,599.37, 14-Apr-2015
704,Revenue,CCHD,Bed Purchasing - North,Permanent Residential,Freeways Trust Ltd,2754.28, 14-Apr-2015
705,Revenue,CCHD,Bed Purchasing - North,Permanent Residential,Freeways Trust Ltd,2275.54, 14-Apr-2015
706,Revenue,CCHD,Bed Purchasing - North,Permanent Residential,Freeways Trust Ltd,788.93, 14-Apr-2015
707,Revenue,CCHD,18-25 Year Olds,Permanent Residential,Freeways Trust Ltd,3400.53, 14-Apr-2015
708,Revenue,CCHD,Bed Purchasing - North,Permanent Residential,Freeways Trust Ltd,2899.56, 14-Apr-2015
709,Revenue,CCHD,Bed Purchasing - North,Permanent Residential,Freeways Trust Ltd,955.97, 14-Apr-2015
710,Revenue,CCHD,Bed Purchasing - South,Permanent Residential,Freeways Trust Ltd,5857.20, 14-Apr-2015
711,Revenue,CCHD,Bed Purchasing - South,Permanent Residential,Freeways Trust Ltd,1932.54, 14-Apr-2015
712,Revenue,CCHD,Bed Purchasing - South,Permanent Nursing,Fshc  1St Floor,675.24, 14-Apr-2015
713,Revenue,CCHD,Bed Purchasing - Southmead Hospital,Respite Planned - Nursing,Fshc  1St Floor,1884.00, 14-Apr-2015
714,Revenue,CCHD,Bed Purchasing - Southmead Hospital,Permanent Residential,Fshc  1St Floor,640.66, 14-Apr-2015
715,Revenue,CCHD,Bed Purchasing - South,Permanent Nursing,Fshc  1St Floor,714.60, 14-Apr-2015
716,Revenue,CCHD,Bed Purchasing - Southmead Hospital,Permanent Nursing,Fshc  1St Floor,981.36, 14-Apr-2015
717,Revenue,CCHD,Bed Purchasing - South,Permanent Nursing,Fshc  1St Floor,999.14, 14-Apr-2015
718,Revenue,CCHD,Bed Purchasing - Southmead Hospital,Permanent Nursing,Fshc  1St Floor,973.43, 14-Apr-2015
719,Revenue,CCHD,Bed Purchasing - Southmead Hospital,Permanent Nursing,Fshc  1St Floor,999.14, 14-Apr-2015
720,Revenue,CCHD,Bed Purchasing - Southmead Hospital,Permanent Nursing,Fshc  1St Floor,999.14, 14-Apr-2015
721,Revenue,CCHD,Bed Purchasing - Southmead Hospital,Permanent Nursing,Fshc  1St Floor,959.17, 14-Apr-2015
722,Revenue,CCHD,Bed Purchasing - Southmead Hospital,Permanent Nursing,Fshc  1St Floor,798.21, 14-Apr-2015
723,Revenue,CCHD,Bed Purchasing - Southmead Hospital,Permanent Nursing,Fshc  1St Floor,1932.74, 14-Apr-2015
724,Revenue,CCHD,Bed Purchasing - Southmead Hospital,Permanent Nursing,Fshc  1St Floor,715.26, 14-Apr-2015
725,Revenue,CCHD,Bed Purchasing - South,Permanent Residential,Fshc  1St Floor,881.20, 14-Apr-2015
726,Revenue,CCHD,Bed Purchasing - Southmead Hospital,Permanent Nursing,Fshc  1St Floor,860.43, 14-Apr-2015
727,Revenue,CCHD,South Glos Users in South Glos Homes,Permanent Nursing,Fshc  1St Floor,1520.78, 14-Apr-2015
728,Revenue,CCHD,Bed Purchasing - South,Permanent Nursing,Fshc  1St Floor,762.21, 14-Apr-2015
729,Revenue,CCHD,Bed Purchasing - Southmead Hospital,Permanent Nursing,Fshc  1St Floor,999.14, 14-Apr-2015
730,Revenue,CCHD,Bed Purchasing - South,Permanent Nursing,Fshc  1St Floor,816.26, 14-Apr-2015
731,Revenue,CCHD,Bed Purchasing - Southmead Hospital,Permanent Nursing,Fshc  1St Floor,1049.10, 14-Apr-2015
732,Revenue,CCHD,Bed Purchasing - Southmead Hospital,Permanent Nursing,Fshc  1St Floor,987.46, 14-Apr-2015
733,Revenue,CCHD,Bed Purchasing - Southmead Hospital,Permanent Nursing,Fshc  1St Floor,999.14, 14-Apr-2015
734,Revenue,CCHD,Bed Purchasing - North,Permanent Nursing,Fshc  1St Floor,1428.00, 14-Apr-2015
735,Revenue,CCHD,Bed Purchasing - Southmead Hospital,Permanent Nursing,Fshc  1St Floor,864.31, 14-Apr-2015
736,Revenue,CCHD,Bed Purchasing - South,Permanent Nursing,Fshc  1St Floor,999.14, 14-Apr-2015
737,Revenue,CCHD,Bed Purchasing - South,Permanent Nursing,Fshc  1St Floor,967.23, 14-Apr-2015
738,Revenue,CCHD,Bed Purchasing - Southmead Hospital,Permanent Residential,Fshc  1St Floor,585.10, 14-Apr-2015
739,Revenue,CCHD,Bed Purchasing - South,Permanent Nursing,Fshc  1St Floor,881.17, 14-Apr-2015
740,Revenue,CCHD,Bed Purchasing - North,Permanent Nursing,Fshc  1St Floor,583.98, 14-Apr-2015
741,Revenue,CCHD,Bed Purchasing - North,Permanent Residential,Fshc  1St Floor,907.71, 14-Apr-2015
742,Revenue,CCHD,Bed Purchasing - Southmead Hospital,Permanent Nursing,Fshc  1St Floor,1108.02, 14-Apr-2015
743,Revenue,CCHD,Bed Purchasing - Southmead Hospital,Permanent Nursing,Fshc  1St Floor,678.29, 14-Apr-2015
744,Revenue,CCHD,Bed Purchasing - North,Permanent Nursing,Fshc  1St Floor,924.54, 14-Apr-2015
745,Revenue,CCHD,Bed Purchasing - Southmead Hospital,Permanent Nursing,Fshc  1St Floor,1216.53, 14-Apr-2015
746,Revenue,CCHD,Bed Purchasing - Southmead Hospital,Permanent Residential,Fshc  1St Floor,827.14, 14-Apr-2015
747,Revenue,CCHD,Bed Purchasing - North,Permanent Nursing,Fshc  1St Floor,782.13, 14-Apr-2015
748,Revenue,CCHD,Bed Purchasing - Southmead Hospital,Permanent Nursing,Fshc  1St Floor,831.12, 14-Apr-2015
749,Revenue,CCHD,Bed Purchasing - Southmead Hospital,Permanent Nursing,Fshc  1St Floor,849.09, 14-Apr-2015
750,Revenue,CCHD,Bed Purchasing - Southmead Hospital,Permanent Nursing,Fshc  1St Floor,931.60, 14-Apr-2015
751,Revenue,CCHD,Bed Purchasing - Southmead Hospital,Permanent Nursing,Fshc  1St Floor,3420.92, 14-Apr-2015
752,Revenue,CCHD,Bed Purchasing - Southmead Hospital,Permanent Nursing,Fshc  1St Floor,1049.10, 14-Apr-2015
753,Revenue,CCHD,Bed Purchasing - Southmead Hospital,Permanent Nursing,Fshc  1St Floor,848.07, 14-Apr-2015
754,Revenue,CCHD,Bed Purchasing - Southmead Hospital,Permanent Nursing,Fshc  1St Floor,869.46, 14-Apr-2015
755,Revenue,CCHD,Bed Purchasing - North,Permanent Residential,Fshc  1St Floor,891.71, 14-Apr-2015
756,Revenue,CCHD,South Glos Users in South Glos Homes,Permanent Nursing,Fshc  1St Floor,1980.18, 14-Apr-2015
757,Revenue,CCHD,Bed Purchasing - South,Permanent Residential,Fshc  1St Floor,820.54, 14-Apr-2015
758,Revenue,CCHD,Bed Purchasing - Southmead Hospital,Permanent Nursing,Fshc  1St Floor,1560.00, 14-Apr-2015
759,Revenue,CCHD,Bed Purchasing - Southmead Hospital,Permanent Nursing,Fshc  1St Floor,515.00, 14-Apr-2015
760,Revenue,CCHD,Bed Purchasing - Southmead Hospital,Permanent Nursing,Fshc  1St Floor,995.17, 14-Apr-2015
761,Revenue,CCHD,Bed Purchasing - Southmead Hospital,Permanent Nursing,Fshc  1St Floor,999.14, 14-Apr-2015
762,Revenue,CCHD,Bed Purchasing - North,Permanent Nursing,Fshc  1St Floor,1076.60, 14-Apr-2015
763,Revenue,CCHD,Bed Purchasing - North,Permanent Nursing,Fshc  1St Floor,931.74, 14-Apr-2015
764,Revenue,CCHD,Bed Purchasing - North,Permanent Nursing,Fshc  1St Floor,940.37, 14-Apr-2015
765,Revenue,CCHD,Bed Purchasing - North,Permanent Nursing,Fshc  1St Floor,648.77, 14-Apr-2015
766,Revenue,CCHD,Bed Purchasing - Southmead Hospital,Permanent Residential,Fshc  1St Floor,570.39, 14-Apr-2015
767,Revenue,CCHD,Bed Purchasing - Southmead Hospital,Permanent Nursing,Fshc  1St Floor,1124.85, 14-Apr-2015
768,Revenue,CCHD,Bed Purchasing - South,Permanent Nursing,Fshc  1St Floor,961.17, 14-Apr-2015
769,Revenue,CCHD,Bed Purchasing - North,Permanent Nursing,Fshc  1St Floor,1063.57, 14-Apr-2015
770,Revenue,CCHD,Bed Purchasing - North,Permanent Residential,Fshc  1St Floor,1015.60, 14-Apr-2015
771,Revenue,CCHD,Bed Purchasing - North,Permanent Nursing,Fshc  1St Floor,1121.31, 14-Apr-2015
772,Revenue,CCHD,Bed purchasing - Elderly S117 - South,Permanent Nursing,Fshc  1St Floor,1360.00, 14-Apr-2015
773,Revenue,CCHD,Bed Purchasing - North,Permanent Residential,Fshc  1St Floor,905.77, 14-Apr-2015
774,Revenue,CCHD,Bed Purchasing - Southmead Hospital,Permanent Nursing,Fshc  1St Floor,791.63, 14-Apr-2015
775,Revenue,CCHD,Bed Purchasing - Southmead Hospital,Permanent Residential,Fshc  1St Floor,907.71, 14-Apr-2015
776,Revenue,CCHD,Bed Purchasing - North,Permanent Nursing,Fshc  1St Floor,1049.10, 14-Apr-2015
777,Revenue,CCHD,Bed Purchasing - North,Permanent Residential,Fshc  1St Floor,1015.43, 14-Apr-2015
778,Revenue,CCHD,Bed Purchasing - North,Permanent Nursing,Fshc  1St Floor,1144.85, 14-Apr-2015
779,Revenue,CCHD,Bed Purchasing - North,Permanent Residential,Fshc  1St Floor,907.71, 14-Apr-2015
780,Revenue,CCHD,Bed Purchasing - Southmead Hospital,Permanent Nursing,Fshc  1St Floor,855.63, 14-Apr-2015
781,Revenue,CCHD,Bed Purchasing - North,Permanent Nursing,Fshc  1St Floor,999.14, 14-Apr-2015
782,Revenue,CCHD,Bed Purchasing - Southmead Hospital,Respite Planned - Nursing,Fshc  1St Floor,1749.43, 14-Apr-2015
783,Revenue,CCHD,Bed Purchasing - Southmead Hospital,Permanent Nursing,Fshc  1St Floor,999.14, 14-Apr-2015
784,Revenue,CCHD,Bed Purchasing - North,Permanent Nursing,Fshc  1St Floor,565.23, 14-Apr-2015
785,Revenue,CCHD,Bed Purchasing - North,Permanent Nursing,Fshc  1St Floor,999.14, 14-Apr-2015
786,Revenue,CCHD,Bed Purchasing - Southmead Hospital,Permanent Nursing,Fshc  1St Floor,960.03, 14-Apr-2015
787,Revenue,CCHD,Bed Purchasing - North,Permanent Nursing,Fshc  1St Floor,764.58, 14-Apr-2015
788,Revenue,CCHD,Bed Purchasing - Southmead Hospital,Permanent Nursing,Fshc  1St Floor,999.14, 14-Apr-2015
789,Revenue,CCHD,Bed Purchasing - Southmead Hospital,Permanent Nursing,Fshc  1St Floor,999.14, 14-Apr-2015
790,Revenue,CCHD,Bed Purchasing - Southmead Hospital,Permanent Nursing,Fshc  1St Floor,655.50, 14-Apr-2015
791,Revenue,CCHD,Bed Purchasing - Southmead Hospital,Respite Emergency - Residential,Fshc  1St Floor,942.00, 14-Apr-2015
792,Revenue,CCHD,Bed Purchasing - Southmead Hospital,Respite Emergency - Nursing,Fshc  1St Floor,942.00, 14-Apr-2015
793,Revenue,CCHD,Bed Purchasing - Southmead Hospital,Permanent Nursing,Fshc  1St Floor,777.31, 14-Apr-2015
794,Revenue,CCHD,Bed Purchasing - Southmead Hospital,Permanent Nursing,Fshc  1St Floor,949.57, 14-Apr-2015
795,Revenue,CCHD,Bed Purchasing - North,Permanent Nursing,Fshc  1St Floor,919.31, 14-Apr-2015
796,Revenue,CCHD,Bed Purchasing - South,Permanent Nursing,Fshc  1St Floor,1017.27, 14-Apr-2015
797,Revenue,CCHD,Bed Purchasing - Southmead Hospital,Permanent Nursing,Fshc  1St Floor,1320.65, 14-Apr-2015
798,Revenue,CCHD,Bed Purchasing - North,Permanent Residential,Fshc  1St Floor,2276.01, 14-Apr-2015
799,Revenue,CCHD,Bed Purchasing - North,Permanent Residential,Fshc  1St Floor,750.16, 14-Apr-2015
800,Revenue,CCHD,Bed Purchasing - North,Permanent Nursing,Fshc  1St Floor,1003.60, 14-Apr-2015
801,Revenue,CCHD,Bed Purchasing - Southmead Hospital,Permanent Residential,Fshc  1St Floor,1479.00, 14-Apr-2015
802,Revenue,CCHD,Bed Purchasing - Southmead Hospital,Permanent Nursing,Fshc  1St Floor,953.60, 14-Apr-2015
803,Revenue,CCHD,South Glos Users in South Glos Homes,Permanent Nursing,Fshc  1St Floor,934.64, 14-Apr-2015
804,Revenue,CCHD,Bed Purchasing - South,Permanent Residential,Fshc  1St Floor,1479.00, 14-Apr-2015
805,Revenue,CCHD,Bed Purchasing - Southmead Hospital,Permanent Nursing,Fshc  1St Floor,999.00, 14-Apr-2015
806,Revenue,CCHD,Bed Purchasing - South,Permanent Nursing,Fshc  1St Floor,5701.54, 14-Apr-2015
807,Revenue,CCHD,Bed Purchasing - South,Permanent Nursing,Fshc  1St Floor,1049.10, 14-Apr-2015
808,Revenue,CCHD,Bed Purchasing - Southmead Hospital,Permanent Residential,Fshc  1St Floor,1067.71, 14-Apr-2015
809,Revenue,CCHD,Bed Purchasing - Southmead Hospital,Respite Planned - Residential,Fshc  1St Floor,1141.71, 14-Apr-2015
810,Revenue,CCHD,Bed Purchasing - North,Respite Emergency - Residential,Fshc  1St Floor,1756.00, 14-Apr-2015
811,Revenue,CCHD,Bed Purchasing - North,Permanent Residential,Fshc  1St Floor,879.00, 14-Apr-2015
812,Revenue,CCHD,Bed Purchasing - North,Permanent Nursing,Fshc  1St Floor,858.39, 14-Apr-2015
813,Revenue,CCHD,South Glos Users in South Glos Homes,Permanent Nursing,Fshc  1St Floor,1599.98, 14-Apr-2015
814,Revenue,CCHD,Bed Purchasing - South,Permanent Nursing,Fshc  1St Floor,899.54, 14-Apr-2015
815,Revenue,CCHD,Bed Purchasing - Southmead Hospital,Permanent Nursing,Fshc  1St Floor,858.54, 14-Apr-2015
816,Revenue,CCHD,Bed Purchasing - South,Permanent Nursing,Fshc  1St Floor,976.29, 14-Apr-2015
817,Revenue,CCHD,Bed Purchasing - North,Permanent Nursing,Fshc  1St Floor,1428.00, 14-Apr-2015
818,Revenue,CCHD,South Glos Users in South Glos Homes,Permanent Nursing,Fshc  1St Floor,1024.89, 14-Apr-2015
819,Revenue,CCHD,Bed Purchasing - Southmead Hospital,Permanent Nursing,Fshc  1St Floor,999.14, 14-Apr-2015
820,Revenue,CCHD,Bed Purchasing - Southmead Hospital,Permanent Nursing,Fshc  1St Floor,996.29, 14-Apr-2015
821,Revenue,CCHD,Bed Purchasing - South,Permanent Residential,Fshc  1St Floor,646.00, 14-Apr-2015
822,Revenue,CCHD,Bed Purchasing - South,Permanent Nursing,Fshc  1St Floor,930.63, 14-Apr-2015
823,Revenue,CCHD,South Glos Users in South Glos Homes,Permanent Nursing,Fshc  1St Floor,554.45, 14-Apr-2015
824,Revenue,CCHD,Bed Purchasing - Southmead Hospital,Permanent Residential,Fshc  1St Floor,6032.83, 14-Apr-2015
825,Revenue,CCHD,Bed Purchasing - Southmead Hospital,Permanent Residential,Fshc  1St Floor,1100.10, 14-Apr-2015
826,Revenue,CCHD,Bed Purchasing - South,Respite Emergency - Residential,Fshc  1St Floor,1045.71, 14-Apr-2015
827,Revenue,CCHD,Bed Purchasing - South,Permanent Residential,Fshc  1St Floor,907.71, 14-Apr-2015
828,Revenue,CCHD,Bed Purchasing - Southmead Hospital,Permanent Nursing,Fshc  1St Floor,999.14, 14-Apr-2015
829,Revenue,CCHD,Bed Purchasing - Southmead Hospital,Permanent Nursing,Fshc  1St Floor,999.14, 14-Apr-2015
830,Revenue,CCHD,Bed Purchasing - Southmead Hospital,Permanent Nursing,Fshc  1St Floor,946.23, 14-Apr-2015
831,Revenue,CCHD,Bed Purchasing - Southmead Hospital,Permanent Nursing,Fshc  1St Floor,751.68, 14-Apr-2015
832,Revenue,CCHD,Bed Purchasing - Southmead Hospital,Permanent Residential,Fshc  1St Floor,1066.68, 14-Apr-2015
833,Revenue,CCHD,Bed Purchasing - Southmead Hospital,Respite Planned - Residential,Fshc  1St Floor,1693.29, 14-Apr-2015
834,Revenue,CCHD,Bed Purchasing - Southmead Hospital,Respite Planned - Residential,Fshc  1St Floor,1332.00, 14-Apr-2015
835,Revenue,CCHD,Bed Purchasing - Southmead Hospital,Permanent Nursing,Fshc  1St Floor,1239.46, 14-Apr-2015
836,Revenue,CCHD,Bed Purchasing - Southmead Hospital,Permanent Nursing,Fshc  1St Floor,1049.10, 14-Apr-2015
837,Revenue,CCHD,Bed purchasing - Elderly S117 - South,Permanent Nursing,Fshc  1St Floor,1360.00, 14-Apr-2015
838,Revenue,CCHD,Bed Purchasing - Southmead Hospital,Permanent Residential,Fshc  1St Floor,808.23, 14-Apr-2015
839,Revenue,CCHD,Bed Purchasing - South,Permanent Nursing,Fshc  1St Floor,1001.80, 14-Apr-2015
840,Revenue,CCHD,Bed Purchasing - South,Permanent Residential,Fshc  1St Floor,990.68, 14-Apr-2015
841,Revenue,CCHD,Bed Purchasing - South,Permanent Nursing,Fshc  1St Floor,2677.24, 14-Apr-2015
842,Revenue,CCHD,Bed Purchasing - South,Permanent Nursing,Fshc  1St Floor,1049.10, 14-Apr-2015
843,Revenue,CCHD,Bed Purchasing - Southmead Hospital,Permanent Nursing,Fshc  1St Floor,554.97, 14-Apr-2015
844,Revenue,CCHD,Bed Purchasing - North,Permanent Residential,Fshc  1St Floor,880.94, 14-Apr-2015
845,Revenue,CCHD,Bed Purchasing - South,Permanent Nursing,Fshc  1St Floor,858.97, 14-Apr-2015
846,Revenue,CCHD,Bed Purchasing - South,Permanent Nursing,Fshc  1St Floor,965.80, 14-Apr-2015
847,Revenue,CCHD,Bed Purchasing - South,Permanent Nursing,Fshc  1St Floor,1260.81, 14-Apr-2015
848,Revenue,CCHD,Bed Purchasing - South,Permanent Nursing,Fshc  1St Floor,810.71, 14-Apr-2015
849,Revenue,CCHD,Bed Purchasing - Southmead Hospital,Permanent Nursing,Fshc  1St Floor,886.17, 14-Apr-2015
850,Revenue,CCHD,Bed Purchasing - Southmead Hospital,Permanent Nursing,Fshc  1St Floor,683.37, 14-Apr-2015
851,Revenue,CCHD,Bed Purchasing - Southmead Hospital,Permanent Nursing,Fshc  1St Floor,1174.80, 14-Apr-2015
852,Revenue,CCHD,Bed Purchasing - Southmead Hospital,Permanent Nursing,Fshc  1St Floor,987.49, 14-Apr-2015
853,Revenue,CCHD,Bed Purchasing - Southmead Hospital,Permanent Nursing,Fshc  1St Floor,999.14, 14-Apr-2015
854,Revenue,CCHD,Bed Purchasing - Southmead Hospital,Permanent Nursing,Fshc  1St Floor,671.04, 14-Apr-2015
855,Revenue,CCHD,Bed Purchasing - South,Permanent Nursing,Fshc  1St Floor,878.94, 14-Apr-2015
856,Revenue,CCHD,Bed Purchasing - South,Permanent Nursing,Fshc  1St Floor,1106.94, 14-Apr-2015
857,Revenue,CCHD,Bed Purchasing - South,Permanent Residential,Fshc  1St Floor,2723.07, 14-Apr-2015
858,Revenue,CCHD,Bed Purchasing - North,Permanent Nursing,Fshc  1St Floor,1060.14, 14-Apr-2015
859,Revenue,CCHD,Bed Purchasing - Southmead Hospital,Permanent Nursing,Fshc  1St Floor,702.36, 14-Apr-2015
860,Revenue,CCHD,Bed Purchasing - North,Respite Emergency - Residential,Fshc  1St Floor,1439.04, 14-Apr-2015
861,Revenue,CCHD,Bed Purchasing - Southmead Hospital,Permanent Nursing,Fshc  1St Floor,929.51, 14-Apr-2015
862,Revenue,CCHD,Bed Purchasing - North,Permanent Nursing,Fshc  1St Floor,1018.35, 14-Apr-2015
863,Revenue,CCHD,Bed Purchasing - South,Permanent Nursing,Fshc  1St Floor,1207.87, 14-Apr-2015
864,Revenue,CCHD,Bed Purchasing - Southmead Hospital,Permanent Residential,Fshc  1St Floor,1509.09, 14-Apr-2015
865,Revenue,CCHD,Bed Purchasing - North,Permanent Nursing,Fshc  1St Floor,845.83, 14-Apr-2015
866,Revenue,CCHD,Bed Purchasing - North,Permanent Nursing,Fshc  1St Floor,1130.10, 14-Apr-2015
867,Revenue,CCHD,Bed Purchasing - North,Permanent Nursing,Fshc  1St Floor,934.35, 14-Apr-2015
868,Revenue,CCHD,Bed Purchasing - Southmead Hospital,Permanent Nursing,Fshc  1St Floor,964.86, 14-Apr-2015
869,Revenue,CCHD,Bed Purchasing - South,Permanent Nursing,Fshc  1St Floor,654.18, 14-Apr-2015
870,Revenue,CCHD,Bed Purchasing - Southmead Hospital,Permanent Nursing,Fshc  1St Floor,1076.28, 14-Apr-2015
871,Revenue,CCHD,South Glos Users in South Glos Homes,Permanent Nursing,Fshc  1St Floor,5496.98, 14-Apr-2015
872,Revenue,CCHD,Bed Purchasing - North,Permanent Nursing,Fshc  1St Floor,981.65, 14-Apr-2015
873,Revenue,CCHD,Bed Purchasing - Southmead Hospital,Permanent Nursing,Fshc  1St Floor,2132.57, 14-Apr-2015
874,Revenue,CCHD,Swift Dump Code,Permanent Residential,Fshc  1St Floor,882.69, 14-Apr-2015
875,Revenue,CCHD,Bed Purchasing - South,Permanent Nursing,Fshc  1St Floor,950.57, 14-Apr-2015
876,Revenue,CCHD,Bed Purchasing - Southmead Hospital,Permanent Residential,Fshc  1St Floor,893.34, 14-Apr-2015
877,Revenue,CCHD,Bed Purchasing - Southmead Hospital,Permanent Nursing,Fshc  1St Floor,907.74, 14-Apr-2015
878,Revenue,CCHD,Bed Purchasing - Southmead Hospital,Permanent Nursing,Fshc  1St Floor,931.71, 14-Apr-2015
879,Revenue,CCHD,Bed purchasing - Elderly S117 - South,Permanent Nursing,Fshc  1St Floor,1509.00, 14-Apr-2015
880,Revenue,CCHD,Bed Purchasing - North,Permanent Residential,Fshc  1St Floor,806.37, 14-Apr-2015
881,Revenue,CCHD,Bed Purchasing - Southmead Hospital,Permanent Nursing,Fshc  1St Floor,713.10, 14-Apr-2015
882,Revenue,CCHD,Bed Purchasing - Elderly S117- North,Permanent Nursing,Fshc  1St Floor,1509.00, 14-Apr-2015
883,Revenue,CCHD,Bed Purchasing - Southmead Hospital,Permanent Nursing,Fshc  1St Floor,1346.04, 14-Apr-2015
884,Revenue,CCHD,Bed Purchasing - Southmead Hospital,Permanent Nursing,Fshc  1St Floor,1023.33, 14-Apr-2015
885,Revenue,CCHD,Bed Purchasing - North,Permanent Residential,Fshc  1St Floor,1030.57, 14-Apr-2015
886,Revenue,CCHD,Bed Purchasing - Southmead Hospital,Permanent Nursing,Fshc  1St Floor,786.63, 14-Apr-2015
887,Revenue,CCHD,Bed Purchasing - North,Permanent Residential,Fshc  1St Floor,1045.61, 14-Apr-2015
888,Revenue,CCHD,Bed Purchasing - South,Permanent Residential,Fshc  1St Floor,1364.28, 14-Apr-2015
889,Revenue,CCHD,Bed Purchasing - South,Permanent Nursing,Fshc  1St Floor,1504.15, 14-Apr-2015
890,Revenue,CCHD,Bed Purchasing - Southmead Hospital,Permanent Residential,Fshc  1St Floor,808.48, 14-Apr-2015
891,Revenue,CCHD,Bed Purchasing - South,Permanent Residential,Gatchell House,1434.58, 14-Apr-2015
892,Revenue,CCHD,CAH Assistant Directors,Agency Staff (Admin/Support Staff) Pay,Gatenby Sanderson Limited,14750.00, 14-Apr-2015
893,Revenue,CCHD,Section 117 Placements MH Younger,Permanent Residential,Gladstone House,2784.54, 14-Apr-2015
894,Revenue,CCHD,Bed Purchasing - South,Permanent Residential,Glasallt Fawr,4653.76, 14-Apr-2015
895,Revenue,CCHD,Bed Purchasing - North,Permanent Residential,Glebe House Nursing Home,1545.11, 14-Apr-2015
896,Revenue,CCHD,Bed Purchasing - North,Permanent Residential,Glebe House Nursing Home,536.90, 14-Apr-2015
897,Revenue,CCHD,Bed Purchasing - North,Permanent Nursing,Glebe House Nursing Home,1982.08, 14-Apr-2015
898,Revenue,CCHD,Bed Purchasing - South,Permanent Residential,Glebe House Nursing Home,1555.32, 14-Apr-2015
899,Revenue,CCHD,Bed Purchasing - South,Permanent Residential,Glebe House Nursing Home,511.02, 14-Apr-2015
900,Revenue,CCHD,Bed Purchasing - North,Permanent Residential,Glebe House Nursing Home,1410.63, 14-Apr-2015
901,Revenue,CCHD,South Glos Users in South Glos Homes,Permanent Nursing,Glebe House Nursing Home,2075.23, 14-Apr-2015
902,Revenue,CCHD,Bed Purchasing - North,Permanent Nursing,Glebe House Nursing Home,1390.53, 14-Apr-2015
903,Revenue,CCHD,Bed Purchasing - North,Permanent Nursing,Glebe House Nursing Home,1639.11, 14-Apr-2015
904,Revenue,CCHD,Bed Purchasing - North,Permanent Nursing,Glebe House Nursing Home,541.68, 14-Apr-2015
905,Revenue,CCHD,Bed Purchasing - North,Permanent Residential,Glebe House Nursing Home,1875.31, 14-Apr-2015
906,Revenue,CCHD,Bed Purchasing - North,Permanent Residential,Glebe House Nursing Home,648.25, 14-Apr-2015
907,Revenue,CCHD,Bed Purchasing - South,Permanent Nursing,Goatacre Manor Care Centre,8303.93, 07-Apr-2015
908,Revenue,CCHD,Bed Purchasing - South,Permanent Residential,Gordena Care Home,1526.80, 14-Apr-2015
909,Revenue,CCHD,Bed Purchasing - South,Permanent Residential,Gordena Care Home,528.41, 14-Apr-2015
910,Revenue,CCHD,Bed Purchasing - South,Permanent Residential,Gordena Care Home,3462.60, 14-Apr-2015
911,Revenue,CCHD,Bed Purchasing - South,Permanent Residential,Gordena Care Home,1199.96, 14-Apr-2015
912,Revenue,CCHD,Bed Purchasing - South,Permanent Residential,Gordena Care Home,2278.45, 14-Apr-2015
913,Revenue,CCHD,Bed Purchasing - South,Permanent Residential,Gordena Care Home,789.94, 14-Apr-2015
914,Revenue,CCHD,Bed Purchasing - South,Permanent Residential,Gordena Care Home,2140.11, 14-Apr-2015
915,Revenue,CCHD,Bed Purchasing - South,Permanent Residential,Gordena Care Home,742.04, 14-Apr-2015
916,Revenue,CCHD,Bed Purchasing - South,Permanent Residential,Gordena Care Home,1392.91, 14-Apr-2015
917,Revenue,CCHD,Bed Purchasing - South,Permanent Residential,Gordena Care Limited,3046.15, 14-Apr-2015
918,Revenue,CCHD,Bed Purchasing - South,Permanent Residential,Gordena Care Limited,1054.44, 14-Apr-2015
919,Revenue,CCHD,Bed purchasing - S28A Under 65 - South,Permanent Residential,Gordena Care Limited,2972.34, 14-Apr-2015
920,Revenue,CCHD,Bed purchasing - S28A Under 65 - South,Permanent Residential,Gordena Care Limited,1029.00, 14-Apr-2015
921,Revenue,CCHD,Bed Purchasing - North,Permanent Residential,Gordena Care Limited,3043.20, 14-Apr-2015
922,Revenue,CCHD,Bed Purchasing - North,Permanent Residential,Gordena Care Limited,1054.74, 14-Apr-2015
923,Revenue,CCHD,Bed Purchasing - South,Permanent Nursing,Gracefields Nursing Home,1223.37, 14-Apr-2015
924,Revenue,CCHD,Bed purchasing - Elderly S117 - South,Permanent Nursing,Gracefields Nursing Home,1729.77, 14-Apr-2015
925,Revenue,CCHD,Bed purchasing - Elderly S117 - South,Permanent Nursing,Gracefields Nursing Home,598.95, 14-Apr-2015
926,Revenue,CCHD,Bed Purchasing - Southmead Hospital,Permanent Nursing,Gracefields Nursing Home,1241.97, 14-Apr-2015
927,Revenue,CCHD,Bed Purchasing - Southmead Hospital,Permanent Nursing,Gracefields Nursing Home,762.50, 14-Apr-2015
928,Revenue,CCHD,Bed purchasing - Elderly S117 - South,Permanent Nursing,Gracefields Nursing Home,1701.34, 14-Apr-2015
929,Revenue,CCHD,Bed purchasing - Elderly S117 - South,Permanent Nursing,Gracefields Nursing Home,589.11, 14-Apr-2015
930,Revenue,CCHD,Bed Purchasing - South,Permanent Nursing,Gracefields Nursing Home,1702.26, 14-Apr-2015
931,Revenue,CCHD,Bed Purchasing - South,Permanent Nursing,Gracefields Nursing Home,556.95, 14-Apr-2015
932,Revenue,CCHD,Bed Purchasing - Southmead Hospital,Permanent Nursing,Gracefields Nursing Home,1133.25, 14-Apr-2015
933,Revenue,CCHD,Bed Purchasing - South,Permanent Nursing,Gracefields Nursing Home,13784.09, 14-Apr-2015
934,Revenue,CCHD,Swift Dump Code,Permanent Residential,Gracefields Nursing Home,1045.29, 14-Apr-2015
935,Revenue,CCHD,Bed Purchasing - South,Permanent Nursing,Gracefields Nursing Home,656.58, 14-Apr-2015
936,Revenue,CCHD,Bed Purchasing - South,Permanent Nursing,Gracefields Nursing Home,1407.51, 14-Apr-2015
937,Revenue,CCHD,Bed Purchasing - South,Permanent Nursing,Gracefields Nursing Home,1196.12, 14-Apr-2015
938,Revenue,CCHD,South Glos Users in South Glos Homes,Permanent Nursing,Gracefields Nursing Home,1203.95, 14-Apr-2015
939,Revenue,CCHD,Bed Purchasing - Southmead Hospital,Permanent Nursing,Gracefields Nursing Home,1340.48, 14-Apr-2015
940,Revenue,CCHD,Bed Purchasing - Southmead Hospital,Permanent Nursing,Gracefields Nursing Home,1099.28, 14-Apr-2015
941,Revenue,CCHD,Bed Purchasing - North,Permanent Residential,Greensleeves,1341.85, 14-Apr-2015
942,Revenue,CCHD,Bed Purchasing - South,Permanent Residential,Grove Care,1881.49, 14-Apr-2015
943,Revenue,CCHD,Bed Purchasing - North,Permanent Residential,Gwendoline House,545.96, 14-Apr-2015
944,Revenue,CCHD,Bed Purchasing - South,Permanent Residential,Gwendoline House,682.83, 14-Apr-2015
945,Revenue,CCHD,Bed Purchasing - South,Permanent Residential,Gwendoline House,828.43, 14-Apr-2015
946,Revenue,CCHD,Swift Dump Code,Permanent Residential,Gwendoline House,3445.62, 14-Apr-2015
947,Revenue,CCHD,Bed Purchasing - South,Permanent Residential,Gwendoline House,1090.26, 14-Apr-2015
948,Revenue,CCHD,Swift Dump Code,Permanent Residential,Gwendoline House,615.56, 14-Apr-2015
949,Revenue,CCHD,Bed Purchasing - Southmead Hospital,Permanent Residential,Gwendoline House,1167.17, 14-Apr-2015
950,Revenue,CCHD,Supporting People Programme,Grants to Voluntary Bodies,Habinteg Housing Association,1372.26, 08-Apr-2015
951,Revenue,CCHD,Social Lettings Agency,Fees - General,Individual,15.78, 27-Apr-2015
952,Revenue,CCHD,Social Lettings Agency,Other Supplies & Services,Individual,508.21, 27-Apr-2015
953,Revenue,CCHD,Supporting People Programme,Grants to Voluntary Bodies,Hanover Housing Association,982.83, 08-Apr-2015
954,Revenue,CCHD,Bed Purchasing - South,Permanent Residential,Harefield Hall,1683.90, 14-Apr-2015
955,Revenue,CCHD,Bed Purchasing - South,Permanent Residential,Harefield Hall,1170.17, 14-Apr-2015
956,Revenue,CCHD,Bed Purchasing - South,Permanent Residential,Harefield Hall,914.43, 14-Apr-2015
957,Revenue,CCHD,Bed Purchasing - South,Permanent Residential,Harefield Hall,22561.50, 14-Apr-2015
958,Revenue,CCHD,Bed Purchasing - South,Permanent Residential,Harefield Hall,858.36, 14-Apr-2015
959,Revenue,CCHD,Bed Purchasing - South,Permanent Residential,Harefield Hall,742.18, 14-Apr-2015
960,Revenue,CCHD,Bed Purchasing - South,Permanent Residential,Harefield Hall,984.84, 14-Apr-2015
961,Revenue,CCHD,Bed Purchasing - South,Permanent Residential,Harefield Hall,662.28, 14-Apr-2015
962,Revenue,CCHD,Bed Purchasing - South,Permanent Residential,Harefield Hall,7428.11, 14-Apr-2015
963,Revenue,CCHD,Swift Dump Code,Permanent Residential,Harefield Hall,1353.47, 14-Apr-2015
964,Revenue,CCHD,Bed Purchasing - South,Permanent Residential,Harefield Hall,940.77, 14-Apr-2015
965,Revenue,CCHD,Bed Purchasing - North,Permanent Nursing,Hc-One Ltd,1133.37, 14-Apr-2015
966,Revenue,CCHD,Bed Purchasing - North,Permanent Residential,Hc-One Ltd,721.06, 14-Apr-2015
967,Revenue,CCHD,Bed Purchasing - North,Permanent Nursing,Hc-One Ltd,1148.22, 14-Apr-2015
968,Revenue,CCHD,Bed Purchasing - North,Respite Planned - Nursing,Hc-One Ltd,2192.80, 14-Apr-2015
969,Revenue,CCHD,Bed Purchasing - North,Permanent Nursing,Hc-One Ltd,2944.58, 14-Apr-2015
970,Revenue,CCHD,Bed Purchasing - North,Permanent Nursing,Hc-One Ltd,1077.37, 14-Apr-2015
971,Revenue,CCHD,Bed Purchasing - South,Permanent Residential,Heathwood Rest Home,768.24, 14-Apr-2015
972,Revenue,CCHD,Bed Purchasing - Southmead Hospital,Permanent Residential,Heathwood Rest Home,768.24, 14-Apr-2015
973,Revenue,CCHD,S117 Placements PCT,Permanent Residential,Hesley Hall,18357.03, 14-Apr-2015
974,Revenue,CCHD,Bed Purchasing - Southmead Hospital,Permanent Residential,High Border Lodge,1466.54, 14-Apr-2015
975,Revenue,CCHD,Bed Purchasing - Southmead Hospital,Permanent Residential,Highfield House,2086.97, 14-Apr-2015
976,Revenue,CCHD,Bed Purchasing - Southmead Hospital,Permanent Residential,Highgate Studios,1177.87, 14-Apr-2015
977,Revenue,CCHD,Planning and Partnerships Team,Other Supplies & Services,Hitachi Capital Invoice Finance Limited,2160.00, 22-Apr-2015
978,Revenue,CCHD,SW HAWB Support,Conference Expenses,Holiday Inn Taunton,2109.96, 10-Apr-2015
979,Revenue,CCHD,Bed Purchasing - North,Permanent Residential,Holmleigh Care Homes Ltd,4093.65, 14-Apr-2015
980,Revenue,CCHD,Bed Purchasing - South,Permanent Residential,Holmleigh Care Homes Ltd,5144.72, 14-Apr-2015
981,Revenue,CCHD,Bed Purchasing - North,Permanent Residential,Home Farm Trust Ltd  5-6 Brook Office Pa,2060.09, 14-Apr-2015
982,Revenue,CCHD,Bed Purchasing - North,Permanent Residential,Home Farm Trust Ltd  5-6 Brook Office Pa,816.02, 14-Apr-2015
983,Revenue,CCHD,Bed Purchasing - South,Permanent Residential,Home Farm Trust Ltd  5-6 Brook Office Pa,3696.26, 14-Apr-2015
984,Revenue,CCHD,Bed Purchasing - South,Permanent Residential,Home Farm Trust Ltd  5-6 Brook Office Pa,1281.57, 14-Apr-2015
985,Revenue,CCHD,Bed Purchasing - North,Permanent Residential,Home Farm Trust Ltd  5-6 Brook Office Pa,2610.24, 14-Apr-2015
986,Revenue,CCHD,Bed Purchasing - North,Permanent Residential,Home Farm Trust Ltd  5-6 Brook Office Pa,860.68, 14-Apr-2015
987,Revenue,CCHD,Bed Purchasing - South,Permanent Residential,Home Farm Trust Ltd  5-6 Brook Office Pa,4008.03, 14-Apr-2015
988,Revenue,CCHD,Bed Purchasing - South,Permanent Residential,Home Farm Trust Ltd  5-6 Brook Office Pa,1387.63, 14-Apr-2015
989,Revenue,CCHD,18-25 Year Olds,Permanent Residential,Home From Home Care Ltd,9061.67, 14-Apr-2015
990,Revenue,CCHD,Tenancy Start Up Scheme,Other Supplies & Services,Home Turf Lettings,1316.60, 01-Apr-2015
991,Revenue,CCHD,Tenancy Start Up Scheme,Other Supplies & Services,Home Turf Lettings,1522.00, 24-Apr-2015
992,Revenue,CCHD,Home Care - Elderly - South,Other Small Contracts,Homecare 4U,487.08, 10-Apr-2015
993,Revenue,CCHD,Home Care - Elderly - North,Other Small Contracts,Homecare 4U,229.68, 10-Apr-2015
994,Revenue,CCHD,Home Care - Elderly - South,Other Small Contracts,Homecare 4U,487.08, 20-Apr-2015
995,Revenue,CCHD,Home Care - Elderly - North,Other Small Contracts,Homecare 4U,154.44, 20-Apr-2015
996,Revenue,CCHD,Home Care - Elderly - South,Other Small Contracts,Homecare 4U,463.32, 13-Apr-2015
997,Revenue,CCHD,Home Care - Elderly - North,Other Small Contracts,Homecare 4U,162.36, 13-Apr-2015
998,Revenue,CCHD,Home Care - Elderly - South,Other Small Contracts,Homecare 4U,431.64, 20-Apr-2015
999,Revenue,CCHD,Home Care - Elderly - North,Other Small Contracts,Homecare 4U,174.24, 20-Apr-2015
1000,Revenue,CCHD,Home Care - Elderly - South,Other Small Contracts,Homecare 4U,453.13, 28-Apr-2015
1001,Revenue,CCHD,Home Care - Elderly - North,Day Care / Social Activities,Homecare 4U,48.12, 28-Apr-2015
1002,Revenue,CCHD,Home Care - Elderly - North,Other Small Contracts,Homecare 4U,92.23, 28-Apr-2015
1003,Revenue,CCHD,Bed Purchasing - North,Permanent Residential,Homes Caring For Autism Ltd  Churchill H,9988.24, 14-Apr-2015
1004,Revenue,CCHD,18-25 Year Olds,Permanent Residential,Homes Caring For Autism Ltd  Churchill H,13008.90, 14-Apr-2015
1005,Revenue,CCHD,Home Care - Elderly - North,Private & Voluntary Home Care,Housing & Care 21,1977.50, 30-Apr-2015
1006,Revenue,CCHD,Home Care - Elderly - South,Private & Voluntary Home Care,Housing & Care 21,8973.62, 02-Apr-2015
1007,Revenue,CCHD,Home Care - Elderly - North,Private & Voluntary Home Care,Housing & Care 21,8973.62, 02-Apr-2015
1008,Revenue,CCHD,Supporting People Programme,Grants to Voluntary Bodies,Housing 21,623.07, 08-Apr-2015
1009,Revenue,CCHD,Supporting People Programme,Grants to Voluntary Bodies,Housing 21,945.10, 08-Apr-2015
1010,Revenue,CCHD,Home Care - Elderly - North,Private & Voluntary Home Care,Housing 21,38183.98, 10-Apr-2015
1011,Revenue,CCHD,Home Care - Elderly - South,Private & Voluntary Home Care,Housing 21,24541.48, 01-Apr-2015
1012,Revenue,CCHD,Home Care - Elderly - North,Day Care / Social Activities,Humphrey Repton Day Centre,645.28, 10-Apr-2015
1013,Revenue,CCHD,Information Systems - Software,Software Support & Maintenance,IBM United Kingdom,1485.75, 17-Apr-2015
1014,Revenue,CCHD,Care Management Team - South,Agency Staff (Operational)/PCT Pay,IPE,2762.51, 10-Apr-2015
1015,Revenue,CCHD,Alexandra Way,Office Supplies & Equipment,ITEC,446.20, 14-Apr-2015
1016,Revenue,CCHD,Social Lettings Agency,Fees - General,Individual,11.60, 10-Apr-2015
1017,Revenue,CCHD,Social Lettings Agency,Other Supplies & Services,Individual,655.41, 10-Apr-2015
1018,Revenue,CCHD,Homeless - Private Sector Leasing,Other Supplies & Services,Individual,594.00, 15-Apr-2015
1019,Revenue,CCHD,Training - Adult Services,Training Expenses,JK Training,2100.00, 24-Apr-2015
1020,Revenue,CCHD,Sexual Health,Other Small Contracts,JRW Billing,548.20, 07-Apr-2015
1021,Revenue,CCHD,Home Care - Elderly - South,Supported Living,Julia Simone- Supp. Ind.,1165.80, 14-Apr-2015
1022,Revenue,CCHD,Younger MH non-res purchasing,Supported Living,Julia Simone- Supp. Ind.,1165.80, 14-Apr-2015
1023,Revenue,CCHD,Home Care - Elderly - North,Supported Living,Julia Simone- Supp. Ind.,3169.84, 14-Apr-2015
1024,Revenue,CCHD,Bed Purchasing - South,Permanent Residential,Julia Simone- Supp. Ind.,2860.25, 14-Apr-2015
1025,Revenue,CCHD,Bed Purchasing - South,Permanent Residential,Julia Simone- Supp. Ind.,990.13, 14-Apr-2015
1026,Revenue,CCHD,Bed purchasing -S28A  Under 65 - North,Permanent Residential,Julia Simone- Supp. Ind.,2523.80, 14-Apr-2015
1027,Revenue,CCHD,Bed purchasing -S28A  Under 65 - North,Permanent Residential,Julia Simone- Supp. Ind.,873.63, 14-Apr-2015
1028,Revenue,CCHD,Bed Purchasing - South,Permanent Residential,Karenza Ltd,1212.34, 14-Apr-2015
1029,Revenue,CCHD,Community Support - South,Preventative Assistance,KCC Cleaning Services Limited,790.00, 29-Apr-2015
1030,Revenue,CCHD,Bed Purchasing - Southmead Hospital,Permanent Residential,Kenver House Residential Home,1188.60, 14-Apr-2015
1031,Revenue,CCHD,Bed Purchasing - Southmead Hospital,Permanent Residential,Kenver House Residential Home,1203.63, 14-Apr-2015
1032,Revenue,CCHD,Bed Purchasing - South,Permanent Residential,Kenver House Residential Home,1099.43, 14-Apr-2015
1033,Revenue,CCHD,Bed Purchasing - South,Permanent Residential,Kenver House Residential Home,864.75, 14-Apr-2015
1034,Revenue,CCHD,Bed Purchasing - South,Permanent Residential,Kenver House Residential Home,1041.63, 14-Apr-2015
1035,Revenue,CCHD,Bed Purchasing - South,Permanent Residential,Kenver House Residential Home,1284.42, 14-Apr-2015
1036,Revenue,CCHD,Bed Purchasing - Southmead Hospital,Respite Planned - Residential,Kenver House Residential Home,1642.71, 14-Apr-2015
1037,Revenue,CCHD,Bed Purchasing - Southmead Hospital,Respite Planned - Residential,Kenver House Residential Home,541.72, 14-Apr-2015
1038,Revenue,CCHD,Bed Purchasing - South,Permanent Residential,Kenver House Residential Home,1203.63, 14-Apr-2015
1039,Revenue,CCHD,Bed Purchasing - South,Permanent Residential,Kenver House Residential Home,1642.71, 14-Apr-2015
1040,Revenue,CCHD,Bed Purchasing - South,Permanent Residential,Kenver House Residential Home,541.72, 14-Apr-2015
1041,Revenue,CCHD,Bed Purchasing - South,Permanent Residential,Kenver House Residential Home,1236.48, 14-Apr-2015
1042,Revenue,CCHD,Bed Purchasing - Southmead Hospital,Permanent Residential,Kenver House Residential Home,1203.57, 14-Apr-2015
1043,Revenue,CCHD,Bed Purchasing - Southmead Hospital,Permanent Residential,Kenver House Residential Home,958.17, 14-Apr-2015
1044,Revenue,CCHD,Bed Purchasing - Southmead Hospital,Permanent Residential,Kenver House Residential Home,635.06, 14-Apr-2015
1045,Revenue,CCHD,Bed Purchasing - Southmead Hospital,Permanent Residential,Kenver House Residential Home,1130.12, 14-Apr-2015
1046,Revenue,CCHD,Supporting People Programme,Grants to Voluntary Bodies,Keyring Living Support Networks,2948.50, 08-Apr-2015
1047,Revenue,CCHD,Bed Purchasing - North,Permanent Nursing,Kingfisher Lodge Care Centre,2528.10, 14-Apr-2015
1048,Revenue,CCHD,Supporting People Programme,Grants to Voluntary Bodies,Kingswood Young Homeless Project,17126.66, 08-Apr-2015
1049,Revenue,CCHD,Bed Purchasing - North,Permanent Residential,Kisimul Group,11481.82, 14-Apr-2015
1050,Revenue,CCHD,Supporting People Programme,Grants to Voluntary Bodies,Knightstone Housing Association Limited,13659.70, 08-Apr-2015
1051,Revenue,CCHD,Supporting People Programme,Grants to Voluntary Bodies,Knightstone Housing Association Limited,8630.13, 08-Apr-2015
1052,Revenue,CCHD,Supporting People Programme,Grants to Voluntary Bodies,Knightstone Housing Association Limited,7684.61, 08-Apr-2015
1053,Revenue,CCHD,Supporting People Programme,Grants to Voluntary Bodies,Knightstone Housing Association Limited,1809.08, 08-Apr-2015
1054,Revenue,CCHD,Supporting People Programme,Grants to Voluntary Bodies,Knightstone Housing Association Limited,2509.56, 08-Apr-2015
1055,Revenue,CCHD,Supporting People Programme,Grants to Voluntary Bodies,Knightstone Housing Association Limited,2510.15, 08-Apr-2015
1056,Revenue,CCHD,Supporting People Programme,Grants to Voluntary Bodies,Knightstone Housing Association Limited,853.70, 08-Apr-2015
1057,Revenue,CCHD,Home Care - Elderly - South,Day Care / Social Activities,Kumari Care Limited,96.50, 20-Apr-2015
1058,Revenue,CCHD,Home Care - Elderly - South,Other Small Contracts,Kumari Care Limited,2860.26, 20-Apr-2015
1059,Revenue,CCHD,Home Care - Elderly - North,Other Small Contracts,Kumari Care Limited,833.86, 20-Apr-2015
1060,Revenue,CCHD,Home Care - Elderly - South,Day Care / Social Activities,Kumari Care Limited,96.50, 07-Apr-2015
1061,Revenue,CCHD,Home Care - Elderly - South,Other Small Contracts,Kumari Care Limited,2869.08, 07-Apr-2015
1062,Revenue,CCHD,Home Care - Elderly - North,Other Small Contracts,Kumari Care Limited,833.86, 07-Apr-2015
1063,Revenue,CCHD,Home Care - Elderly - South,Day Care / Social Activities,Kumari Care Limited,96.50, 28-Apr-2015
1064,Revenue,CCHD,Home Care - Elderly - South,Other Small Contracts,Kumari Care Limited,2875.70, 28-Apr-2015
1065,Revenue,CCHD,Home Care - Elderly - North,Other Small Contracts,Kumari Care Limited,833.92, 28-Apr-2015
1066,Revenue,CCHD,Home Care - Elderly - South,Day Care / Social Activities,Kumari Care Limited,96.50, 28-Apr-2015
1067,Revenue,CCHD,Home Care - Elderly - South,Other Small Contracts,Kumari Care Limited,2790.78, 28-Apr-2015
1068,Revenue,CCHD,Home Care - Elderly - North,Other Small Contracts,Kumari Care Limited,834.32, 28-Apr-2015
1069,Revenue,CCHD,Home Care - Elderly - South,Other Small Contracts,Kumari Care Limited,2622.20, 30-Apr-2015
1070,Revenue,CCHD,Home Care - Elderly - North,Other Small Contracts,Kumari Care Limited,833.86, 30-Apr-2015
1071,Revenue,CCHD,Learning Difficulties Development Fund,Other Supplies & Services,L D Awareness,1335.00, 29-Apr-2015
1072,Revenue,CCHD,Bed Purchasing - North,Permanent Nursing,Leonard Cheshire  National Account Centr,3818.16, 14-Apr-2015
1073,Revenue,CCHD,Bed Purchasing - North,Permanent Nursing,Leonard Cheshire  National Account Centr,1259.12, 14-Apr-2015
1074,Revenue,CCHD,Bed Purchasing - North,Permanent Residential,Leonard Cheshire  National Account Centr,2106.17, 14-Apr-2015
1075,Revenue,CCHD,Bed Purchasing - North,Permanent Residential,Leonard Cheshire  National Account Centr,727.73, 14-Apr-2015
1076,Revenue,CCHD,Bed Purchasing - South,Permanent Residential,Leonard Cheshire  National Account Centr,2411.54, 14-Apr-2015
1077,Revenue,CCHD,Bed Purchasing - South,Permanent Residential,Leonard Cheshire  National Account Centr,834.76, 14-Apr-2015
1078,Revenue,CCHD,Bed Purchasing - North,Permanent Nursing,Leonard Cheshire  National Account Centr,2542.63, 14-Apr-2015
1079,Revenue,CCHD,Bed Purchasing - North,Permanent Nursing,Leonard Cheshire  National Account Centr,880.15, 14-Apr-2015
1080,Revenue,CCHD,Bed Purchasing - North,Permanent Nursing,Leonard Cheshire  National Account Centr,2096.49, 14-Apr-2015
1081,Revenue,CCHD,Bed Purchasing - North,Permanent Nursing,Leonard Cheshire  National Account Centr,691.14, 14-Apr-2015
1082,Revenue,CCHD,18-25 Year Olds,Permanent Residential,Leonard Cheshire  National Account Centr,799.13, 14-Apr-2015
1083,Revenue,CCHD,Bed Purchasing - North,Permanent Residential,Leonard Cheshire  National Account Centr,4303.48, 14-Apr-2015
1084,Revenue,CCHD,Bed Purchasing - North,Permanent Residential,Leonard Cheshire  National Account Centr,1489.87, 14-Apr-2015
1085,Revenue,CCHD,Bed Purchasing - North,Permanent Residential,Leonard Cheshire  National Account Centr,4302.37, 14-Apr-2015
1086,Revenue,CCHD,Bed Purchasing - North,Permanent Residential,Leonard Cheshire  National Account Centr,1489.48, 14-Apr-2015
1087,Revenue,CCHD,Bed Purchasing - South,Permanent Residential,Leonard Cheshire  National Account Centr,3408.09, 14-Apr-2015
1088,Revenue,CCHD,Bed Purchasing - South,Permanent Residential,Leonard Cheshire  National Account Centr,1123.02, 14-Apr-2015
1089,Revenue,CCHD,Bed Purchasing - North,Permanent Nursing,Leonard Cheshire  National Account Centr,2080.91, 14-Apr-2015
1090,Revenue,CCHD,Bed Purchasing - North,Permanent Nursing,Leonard Cheshire  National Account Centr,720.28, 14-Apr-2015
1091,Revenue,CCHD,Bed Purchasing - North,Permanent Nursing,Leonard Cheshire  National Account Centr,2794.40, 14-Apr-2015
1092,Revenue,CCHD,Bed Purchasing - North,Permanent Nursing,Leonard Cheshire  National Account Centr,967.33, 14-Apr-2015
1093,Revenue,CCHD,Bed Purchasing - North,Permanent Residential,Leonard Cheshire  National Account Centr,2118.11, 14-Apr-2015
1094,Revenue,CCHD,Bed Purchasing - North,Permanent Residential,Leonard Cheshire  National Account Centr,733.16, 14-Apr-2015
1095,Revenue,CCHD,Bed Purchasing - North,Permanent Nursing,Leonard Cheshire  National Account Centr,3298.01, 14-Apr-2015
1096,Revenue,CCHD,Bed Purchasing - North,Permanent Nursing,Leonard Cheshire  National Account Centr,4247.70, 14-Apr-2015
1097,Revenue,CCHD,Bed Purchasing - North,Permanent Nursing,Leonard Cheshire  National Account Centr,1400.77, 14-Apr-2015
1098,Revenue,CCHD,Bed Purchasing - South,Permanent Nursing,Leonard Cheshire  National Account Centr,2205.69, 14-Apr-2015
1099,Revenue,CCHD,Bed Purchasing - South,Permanent Nursing,Leonard Cheshire  National Account Centr,727.15, 14-Apr-2015
1100,Revenue,CCHD,Bed Purchasing - Southmead Hospital,Permanent Nursing,Leonard Cheshire  National Account Centr,3066.78, 14-Apr-2015
1101,Revenue,CCHD,South Glos Users in all other LA Homes,Permanent Nursing,Leonard Cheshire  National Account Centr,616.12, 14-Apr-2015
1102,Revenue,CCHD,Bed Purchasing - North,Permanent Nursing,Leonard Cheshire  National Account Centr,2425.68, 14-Apr-2015
1103,Revenue,CCHD,Bed Purchasing - North,Permanent Nursing,Leonard Cheshire  National Account Centr,839.66, 14-Apr-2015
1104,Revenue,CCHD,Bed Purchasing - North,Permanent Nursing,Leonard Cheshire  National Account Centr,3127.92, 14-Apr-2015
1105,Revenue,CCHD,Bed Purchasing - North,Permanent Nursing,Leonard Cheshire  National Account Centr,1030.63, 14-Apr-2015
1106,Revenue,CCHD,Bed Purchasing - Southmead Hospital,Permanent Residential,Little Croft,775.17, 14-Apr-2015
1107,Revenue,CCHD,Bed Purchasing - Southmead Hospital,Permanent Residential,Little Croft,906.66, 14-Apr-2015
1108,Revenue,CCHD,Bed Purchasing - Southmead Hospital,Permanent Residential,Little Croft,913.43, 14-Apr-2015
1109,Revenue,CCHD,Bed Purchasing - Southmead Hospital,Respite Planned - Residential,Little Croft,2774.43, 14-Apr-2015
1110,Revenue,CCHD,Bed Purchasing - South,Permanent Residential,Little Croft,1136.80, 14-Apr-2015
1111,Revenue,CCHD,Bed Purchasing - Southmead Hospital,Permanent Residential,Little Croft,924.37, 14-Apr-2015
1112,Revenue,CCHD,Bed Purchasing - South,Permanent Residential,Little Croft,681.45, 14-Apr-2015
1113,Revenue,CCHD,Bed Purchasing - Southmead Hospital,Permanent Residential,Little Croft,1259.62, 14-Apr-2015
1114,Revenue,CCHD,Bed Purchasing - South,Permanent Residential,Little Croft,2455.20, 14-Apr-2015
1115,Revenue,CCHD,Bed Purchasing - South,Permanent Residential,Little Croft,1082.10, 14-Apr-2015
1116,Revenue,CCHD,Bed Purchasing - Southmead Hospital,Permanent Residential,Little Croft,1030.57, 14-Apr-2015
1117,Revenue,CCHD,Bed Purchasing - Southmead Hospital,Permanent Residential,Little Croft,3486.13, 14-Apr-2015
1118,Revenue,CCHD,Bed Purchasing - Southmead Hospital,Permanent Residential,Little Croft,916.86, 14-Apr-2015
1119,Revenue,CCHD,Swift Dump Code,Permanent Residential,Little Croft,2389.71, 14-Apr-2015
1120,Revenue,CCHD,Bed Purchasing - South,Permanent Residential,Little Croft,1414.45, 14-Apr-2015
1121,Revenue,CCHD,Bed Purchasing - Southmead Hospital,Respite Emergency - Residential,Little Croft,6285.71, 14-Apr-2015
1122,Revenue,CCHD,Bed Purchasing - Southmead Hospital,Respite Emergency - Residential,Little Croft,1191.30, 14-Apr-2015
1123,Revenue,CCHD,Bed Purchasing - Southmead Hospital,Respite Emergency - Residential,Little Croft,550.00, 14-Apr-2015
1124,Revenue,CCHD,Bed Purchasing - South,Permanent Residential,Little Croft,1067.19, 14-Apr-2015
1125,Revenue,CCHD,Bed Purchasing - Southmead Hospital,Permanent Residential,Little Croft,907.71, 14-Apr-2015
1126,Revenue,CCHD,Bed Purchasing - North,Permanent Residential,Little Croft,981.97, 14-Apr-2015
1127,Revenue,CCHD,Bed Purchasing - Southmead Hospital,Permanent Residential,Little Croft,907.71, 14-Apr-2015
1128,Revenue,CCHD,Bed Purchasing - North,Permanent Residential,Littlecroft Residential Homes  Longcroft,6534.56, 14-Apr-2015
1129,Revenue,CCHD,Home Care - Elderly - North,Day Care / Social Activities,Lloyds TSB Commercial Finance Limited,210.00, 20-Apr-2015
1130,Revenue,CCHD,Home Care - Elderly - North,Other Small Contracts,Lloyds TSB Commercial Finance Limited,7177.80, 20-Apr-2015
1131,Revenue,CCHD,Supported Living - South,Private & Voluntary Home Care,Lloyds TSB Commercial Finance Limited,11907.36, 20-Apr-2015
1132,Revenue,CCHD,Supported Living - South,Private & Voluntary Home Care,Lloyds TSB Commercial Finance Limited,4118.51, 20-Apr-2015
1133,Revenue,CCHD,Supported Living - South,Private & Voluntary Home Care,Lloyds TSB Commercial Finance Limited,4405.72, 20-Apr-2015
1134,Revenue,CCHD,Supported Living - South,Private & Voluntary Home Care,Lloyds TSB Commercial Finance Limited,4036.81, 20-Apr-2015
1135,Revenue,CCHD,Supported Living - South,Private & Voluntary Home Care,Lloyds TSB Commercial Finance Limited,10138.24, 20-Apr-2015
1136,Revenue,CCHD,Supported Living - South,Private & Voluntary Home Care,Lloyds TSB Commercial Finance Limited,4134.26, 20-Apr-2015
1137,Revenue,CCHD,Supported Living - South,Private & Voluntary Home Care,Lloyds TSB Commercial Finance Limited,8492.80, 20-Apr-2015
1138,Revenue,CCHD,Supported Living - South,Private & Voluntary Home Care,Lloyds TSB Commercial Finance Limited,4178.19, 20-Apr-2015
1139,Revenue,CCHD,Supported Living - North,Private & Voluntary Home Care,Lloyds TSB Commercial Finance Limited,10267.20, 20-Apr-2015
1140,Revenue,CCHD,Supported Living - South,Private & Voluntary Home Care,Lloyds TSB Commercial Finance Limited,4047.26, 20-Apr-2015
1141,Revenue,CCHD,Supported Living - South,Private & Voluntary Home Care,Lloyds TSB Commercial Finance Limited,3640.02, 20-Apr-2015
1142,Revenue,CCHD,Supported Living - South,Private & Voluntary Home Care,Lloyds TSB Commercial Finance Limited,6372.05, 20-Apr-2015
1143,Revenue,CCHD,Supported Living - South,Private & Voluntary Home Care,Lloyds TSB Commercial Finance Limited,3932.87, 20-Apr-2015
1144,Revenue,CCHD,Supported Living - South,Private & Voluntary Home Care,Lloyds TSB Commercial Finance Limited,3870.03, 20-Apr-2015
1145,Revenue,CCHD,Supported Living - North,Private & Voluntary Home Care,Lloyds TSB Commercial Finance Limited,8709.76, 20-Apr-2015
1146,Revenue,CCHD,Supported Living - South,Private & Voluntary Home Care,Lloyds TSB Commercial Finance Limited,3788.84, 20-Apr-2015
1147,Revenue,CCHD,Supported Living - South,Private & Voluntary Home Care,Loga Care Ltd (T/A Logacare),3428.04, 22-Apr-2015
1148,Revenue,CCHD,Social Lettings Agency,Fees - General,Individual,10.00, 01-Apr-2015
1149,Revenue,CCHD,Social Lettings Agency,Other Supplies & Services,Individual,565.00, 01-Apr-2015
1150,Revenue,CCHD,Home Care - Elderly - North,Day Care / Social Activities,Lower Kilcott,1466.00, 14-Apr-2015
1151,Revenue,CCHD,Home Care - Elderly - North,Day Care / Social Activities,Lower Kilcott,702.56, 14-Apr-2015
1152,Revenue,CCHD,Home Care - Elderly - North,Day Care / Social Activities,Lower Kilcott,560.64, 14-Apr-2015
1153,Revenue,CCHD,Bed Purchasing - Southmead Hospital,Permanent Nursing,Majestic 3 Limited,1003.62, 14-Apr-2015
1154,Revenue,CCHD,Bed Purchasing - South,Permanent Residential,Manor Cottage,5316.94, 14-Apr-2015
1155,Revenue,CCHD,Bed Purchasing - Southmead Hospital,Permanent Residential,Manor Cottage,907.71, 14-Apr-2015
1156,Revenue,CCHD,Bed Purchasing - Southmead Hospital,Permanent Residential,Manor Cottage,740.77, 14-Apr-2015
1157,Revenue,CCHD,Bed Purchasing - South,Permanent Residential,Manor Cottage,1054.08, 14-Apr-2015
1158,Revenue,CCHD,Bed Purchasing - Southmead Hospital,Permanent Residential,Manor Cottage,907.71, 14-Apr-2015
1159,Revenue,CCHD,Bed Purchasing - North,Permanent Residential,Manton Hall Residential Home,1537.75, 14-Apr-2015
1160,Revenue,CCHD,Social Lettings Agency,Fees - General,Individual,11.60, 20-Apr-2015
1161,Revenue,CCHD,Social Lettings Agency,Other Supplies & Services,Individual,655.41, 20-Apr-2015
1162,Revenue,CCHD,Bed Purchasing - South,Permanent Residential,Marsden Healthcare Ltd,954.78, 14-Apr-2015
1163,Revenue,CCHD,Bed Purchasing - South,Permanent Residential,Marsden Healthcare Ltd,2342.03, 14-Apr-2015
1164,Revenue,CCHD,Bed Purchasing - South,Permanent Residential,Marsden Healthcare Ltd,811.95, 14-Apr-2015
1165,Revenue,CCHD,Bed Purchasing - South,Permanent Residential,Marsden Healthcare Ltd,1153.56, 14-Apr-2015
1166,Revenue,CCHD,Bed Purchasing - South,Permanent Nursing,Meadow Care Home,1549.49, 14-Apr-2015
1167,Revenue,CCHD,Home Care - Elderly - South,Day Care / Social Activities,Mears Care,92.40, 02-Apr-2015
1168,Revenue,CCHD,Home Care - Elderly - South,Other Small Contracts,Mears Care,604.45, 02-Apr-2015
1169,Revenue,CCHD,Home Care - Elderly - North,Day Care / Social Activities,Mears Care,30.80, 02-Apr-2015
1170,Revenue,CCHD,Home Care - Elderly - North,Other Small Contracts,Mears Care,3615.15, 02-Apr-2015
1171,Revenue,CCHD,Under 65s -MH  Home Care Purch,Other Small Contracts,Mears Care,115.50, 02-Apr-2015
1172,Revenue,CCHD,Home Care - Elderly - South,Day Care / Social Activities,Mears Care,88.55, 24-Apr-2015
1173,Revenue,CCHD,Home Care - Elderly - South,Other Small Contracts,Mears Care,912.45, 24-Apr-2015
1174,Revenue,CCHD,Home Care - Elderly - North,Day Care / Social Activities,Mears Care,30.80, 24-Apr-2015
1175,Revenue,CCHD,Home Care - Elderly - North,Other Small Contracts,Mears Care,3130.05, 24-Apr-2015
1176,Revenue,CCHD,Under 65s -MH  Home Care Purch,Other Small Contracts,Mears Care,115.50, 24-Apr-2015
1177,Revenue,CCHD,Home Care - Elderly - South,Day Care / Social Activities,Mears Care,88.55, 24-Apr-2015
1178,Revenue,CCHD,Home Care - Elderly - South,Other Small Contracts,Mears Care,843.15, 24-Apr-2015
1179,Revenue,CCHD,Home Care - Elderly - North,Day Care / Social Activities,Mears Care,30.80, 24-Apr-2015
1180,Revenue,CCHD,Home Care - Elderly - North,Other Small Contracts,Mears Care,3484.25, 24-Apr-2015
1181,Revenue,CCHD,Under 65s -MH  Home Care Purch,Other Small Contracts,Mears Care,115.50, 24-Apr-2015
1182,Revenue,CCHD,Home Care - Elderly - South,Private & Voluntary Home Care,Mears Care,49219.00, 28-Apr-2015
1183,Revenue,CCHD,Kingswood Centre - Maple Suite,Equipment Maintenance,Medaco,616.00, 02-Apr-2015
1184,Revenue,CCHD,Home Care - Elderly - South,Other Small Contracts,Medacs Home Care,147.00, 30-Apr-2015
1185,Revenue,CCHD,Home Care - Elderly - North,Other Small Contracts,Medacs Home Care,458.20, 30-Apr-2015
1186,Revenue,CCHD,Home care - Elderly MH - North,Other Small Contracts,Medacs Home Care,91.00, 30-Apr-2015
1187,Revenue,CCHD,Home Care - Elderly - South,Other Small Contracts,Medacs Home Care,416.50, 20-Apr-2015
1188,Revenue,CCHD,Home Care - Elderly - North,Other Small Contracts,Medacs Home Care,427.00, 20-Apr-2015
1189,Revenue,CCHD,Younger MH non-res purchasing,Other Small Contracts,Medacs Home Care,105.00, 20-Apr-2015
1190,Revenue,CCHD,Home Care - Elderly - South,Other Small Contracts,Medacs Home Care,416.50, 20-Apr-2015
1191,Revenue,CCHD,Home Care - Elderly - North,Other Small Contracts,Medacs Home Care,444.50, 20-Apr-2015
1192,Revenue,CCHD,Younger MH non-res purchasing,Other Small Contracts,Medacs Home Care,98.00, 20-Apr-2015
1193,Revenue,CCHD,Home Care - Elderly - South,Other Small Contracts,Medacs Home Care,420.00, 20-Apr-2015
1194,Revenue,CCHD,Home Care - Elderly - North,Other Small Contracts,Medacs Home Care,462.00, 20-Apr-2015
1195,Revenue,CCHD,Younger MH non-res purchasing,Other Small Contracts,Medacs Home Care,94.50, 20-Apr-2015
1196,Revenue,CCHD,Home Care - Elderly - South,Other Small Contracts,Medacs Home Care,399.00, 20-Apr-2015
1197,Revenue,CCHD,Home Care - Elderly - North,Other Small Contracts,Medacs Home Care,448.00, 20-Apr-2015
1198,Revenue,CCHD,Younger MH non-res purchasing,Other Small Contracts,Medacs Home Care,84.00, 20-Apr-2015
1199,Revenue,CCHD,NRS Contract,Daily Living Equipment,Medequip Assistive Technology Ltd,22810.75, 27-Apr-2015
1200,Revenue,CCHD,NRS Contract,Daily Living Equipment,Medequip Assistive Technology Ltd,106933.04, 27-Apr-2015
1201,Revenue,CCHD,Bed Purchasing - South,Permanent Residential,Mencap,2271.50, 14-Apr-2015
1202,Revenue,CCHD,Supported Living (S28a) South,Private & Voluntary Home Care,Mencap - PS Central & Cymru,3841.88, 29-Apr-2015
1203,Revenue,CCHD,Supported Living (S28a) South,Private & Voluntary Home Care,Mencap - PS Central & Cymru,3841.88, 28-Apr-2015
1204,Revenue,CCHD,Supported Living (S28a) South,Private & Voluntary Home Care,Mencap - PS Central & Cymru,3841.88, 28-Apr-2015
1205,Revenue,CCHD,Supporting People Programme,Grants to Voluntary Bodies,Merlin Housing Society,14786.49, 08-Apr-2015
1206,Revenue,CCHD,Supporting People Programme,Grants to Voluntary Bodies,Merlin Housing Society,2485.47, 08-Apr-2015
1207,Revenue,CCHD,Supporting People Programme,Grants to Voluntary Bodies,Merlin Housing Society,39319.50, 08-Apr-2015
1208,Revenue,CCHD,Supporting People Programme,Grants to Voluntary Bodies,Merlin Housing Society,1053.09, 08-Apr-2015
1209,Revenue,CCHD,Mental Capacity Act - Advocacy,Other Supplies & Services,MHA & MCA Law Ltd,1200.00, 24-Apr-2015
1210,Revenue,CCHD,Home Care - Elderly - South,Other Small Contracts,MiHomecare,214.65, 10-Apr-2015
1211,Revenue,CCHD,Home Care - Elderly - North,Other Small Contracts,MiHomecare,299.70, 10-Apr-2015
1212,Revenue,CCHD,Home Care - Elderly - South,Other Small Contracts,MiHomecare,202.50, 23-Apr-2015
1213,Revenue,CCHD,Home Care - Elderly - North,Other Small Contracts,MiHomecare,299.70, 23-Apr-2015
1214,Revenue,CCHD,Home Care - Elderly - South,Supported Living,Mike Durrant - Cherry Orchards,1380.00, 14-Apr-2015
1215,Revenue,CCHD,Home Care - Elderly - South,Supported Living,Mike Durrant - Cherry Orchards,1780.00, 14-Apr-2015
1216,Revenue,CCHD,Home Care - Elderly - South,Supported Living,Mike Durrant - Cherry Orchards,1780.00, 14-Apr-2015
1217,Revenue,CCHD,Home Care - Elderly - South,Supported Living,Milestones - Unit 10,3592.96, 14-Apr-2015
1218,Revenue,CCHD,Home Care - Elderly - North,Supported Living,Milestones - Unit 10,4293.72, 14-Apr-2015
1219,Revenue,CCHD,Home Care - Elderly - South,Supported Living,Milestones - Unit 10,3592.96, 14-Apr-2015
1220,Revenue,CCHD,Supported Living (S28a) North,Private & Voluntary Home Care,Milestones - Unit 10,4032.80, 14-Apr-2015
1221,Revenue,CCHD,Home Care - Elderly - South,Supported Living,Milestones - Unit 10,3604.68, 14-Apr-2015
1222,Revenue,CCHD,Home Care - Elderly - South,Supported Living,Milestones - Unit 10,2292.92, 14-Apr-2015
1223,Revenue,CCHD,Supported Living (S28a) North,Private & Voluntary Home Care,Milestones - Unit 10,4002.44, 14-Apr-2015
1224,Revenue,CCHD,Supported Living (S28a) North,Private & Voluntary Home Care,Milestones - Unit 10,4002.44, 14-Apr-2015
1225,Revenue,CCHD,Supported Living (S28a) North,Private & Voluntary Home Care,Milestones - Unit 10,4032.80, 14-Apr-2015
1226,Revenue,CCHD,Supported Living (S28a) South,Supported Living,Milestones - Unit 10,3839.88, 14-Apr-2015
1227,Revenue,CCHD,Supported Living (S28a) North,Private & Voluntary Home Care,Milestones - Unit 10,3564.60, 14-Apr-2015
1228,Revenue,CCHD,Supported Living (S28a) North,Private & Voluntary Home Care,Milestones - Unit 10,3564.60, 14-Apr-2015
1229,Revenue,CCHD,Home Care - Elderly - South,Supported Living,Milestones - Unit 10,2949.92, 14-Apr-2015
1230,Revenue,CCHD,Supported Living (S28a) South,Supported Living,Milestones - Unit 10,5447.00, 14-Apr-2015
1231,Revenue,CCHD,Home Care - Elderly - South,Supported Living,Milestones - Unit 10,2208.68, 14-Apr-2015
1232,Revenue,CCHD,Supported Living (S28a) South,Supported Living,Milestones - Unit 10,2208.68, 14-Apr-2015
1233,Revenue,CCHD,Supported Living (S28a) North,Private & Voluntary Home Care,Milestones - Unit 10,4303.72, 14-Apr-2015
1234,Revenue,CCHD,Supported Living (S28a) North,Private & Voluntary Home Care,Milestones - Unit 10,3576.60, 14-Apr-2015
1235,Revenue,CCHD,Supported Living (S28a) South,Supported Living,Milestones - Unit 10,2088.68, 14-Apr-2015
1236,Revenue,CCHD,Supported Living (S28a) South,Supported Living,Milestones - Unit 10,2208.68, 14-Apr-2015
1237,Revenue,CCHD,Supported Living (S28a) South,Supported Living,Milestones - Unit 10,2949.92, 14-Apr-2015
1238,Revenue,CCHD,Bed Purchasing - North,Permanent Residential,Milestones - Unit 10,1912.74, 14-Apr-2015
1239,Revenue,CCHD,Bed Purchasing - North,Permanent Residential,Milestones - Unit 10,663.31, 14-Apr-2015
1240,Revenue,CCHD,Bed Purchasing - North,Permanent Residential,Milestones - Unit 10,2497.37, 14-Apr-2015
1241,Revenue,CCHD,Bed Purchasing - North,Permanent Residential,Milestones - Unit 10,858.82, 14-Apr-2015
1242,Revenue,CCHD,Bed Purchasing - South,Permanent Residential,Milestones - Unit 10,3515.40, 14-Apr-2015
1243,Revenue,CCHD,Bed Purchasing - South,Permanent Residential,Milestones - Unit 10,1216.98, 14-Apr-2015
1244,Revenue,CCHD,Bed Purchasing - South,Permanent Residential,Milestones - Unit 10,3930.23, 14-Apr-2015
1245,Revenue,CCHD,Bed Purchasing - South,Permanent Residential,Milestones - Unit 10,1360.62, 14-Apr-2015
1246,Revenue,CCHD,Bed Purchasing - South,Permanent Nursing,Milestones - Unit 10,1973.89, 14-Apr-2015
1247,Revenue,CCHD,Bed Purchasing - South,Permanent Nursing,Milestones - Unit 10,685.04, 14-Apr-2015
1248,Revenue,CCHD,Bed Purchasing - South,Permanent Nursing,Milestones - Unit 10,918.88, 14-Apr-2015
1249,Revenue,CCHD,Bed Purchasing - South,Permanent Residential,Milestones - Unit 10,3632.12, 14-Apr-2015
1250,Revenue,CCHD,Bed purchasing - Elderly S117 - South,Permanent Nursing,Milestones - Unit 10,1437.14, 14-Apr-2015
1251,Revenue,CCHD,Bed purchasing - Elderly S117 - South,Permanent Nursing,Milestones - Unit 10,1509.00, 14-Apr-2015
1252,Revenue,CCHD,Bed Purchasing - North,Permanent Nursing,Milestones - Unit 10,1028.63, 14-Apr-2015
1253,Revenue,CCHD,Bed Purchasing - South,Permanent Residential,Milestones - Unit 10,2975.45, 14-Apr-2015
1254,Revenue,CCHD,Bed Purchasing - South,Permanent Residential,Milestones - Unit 10,1031.28, 14-Apr-2015
1255,Revenue,CCHD,Bed purchasing -S28A  Under 65 - North,Permanent Nursing,Milestones - Unit 10,3908.20, 14-Apr-2015
1256,Revenue,CCHD,Bed purchasing -S28A  Under 65 - North,Permanent Nursing,Milestones - Unit 10,1352.99, 14-Apr-2015
1257,Revenue,CCHD,Bed purchasing -S28A  Under 65 - North,Permanent Residential,Milestones - Unit 10,3848.34, 14-Apr-2015
1258,Revenue,CCHD,Bed purchasing -S28A  Under 65 - North,Permanent Residential,Milestones - Unit 10,1333.53, 14-Apr-2015
1259,Revenue,CCHD,Bed purchasing - S28A Under 65 - South,Permanent Residential,Milestones - Unit 10,3991.88, 14-Apr-2015
1260,Revenue,CCHD,Bed purchasing - S28A Under 65 - South,Permanent Residential,Milestones - Unit 10,1381.97, 14-Apr-2015
1261,Revenue,CCHD,Bed Purchasing - South,Permanent Residential,Milestones - Unit 10,941.03, 14-Apr-2015
1262,Revenue,CCHD,Bed Purchasing - South,Permanent Residential,Milestones - Unit 10,3601.65, 14-Apr-2015
1263,Revenue,CCHD,Bed Purchasing - South,Permanent Residential,Milestones - Unit 10,1246.85, 14-Apr-2015
1264,Revenue,CCHD,Bed Purchasing - South,Permanent Residential,Milestones - Unit 10,4196.82, 14-Apr-2015
1265,Revenue,CCHD,Bed Purchasing - South,Permanent Residential,Milestones - Unit 10,1383.74, 14-Apr-2015
1266,Revenue,CCHD,Bed purchasing - S28A Under 65 - South,Permanent Nursing,Milestones - Unit 10,5263.60, 14-Apr-2015
1267,Revenue,CCHD,Bed purchasing - S28A Under 65 - South,Permanent Nursing,Milestones - Unit 10,1823.58, 14-Apr-2015
1268,Revenue,CCHD,MH Purchasing - Younger,Permanent Residential,Milestones - Unit 10,619.14, 14-Apr-2015
1269,Revenue,CCHD,Bed Purchasing - South,Permanent Residential,Milestones - Unit 10,3697.00, 14-Apr-2015
1270,Revenue,CCHD,Bed Purchasing - South,Permanent Residential,Milestones - Unit 10,1281.15, 14-Apr-2015
1271,Revenue,CCHD,Bed Purchasing - North,Respite Planned - Nursing,Milestones - Unit 10,5675.24, 14-Apr-2015
1272,Revenue,CCHD,Bed Purchasing - North,Permanent Residential,Milestones - Unit 10,2902.11, 14-Apr-2015
1273,Revenue,CCHD,Bed Purchasing - North,Permanent Residential,Milestones - Unit 10,1005.89, 14-Apr-2015
1274,Revenue,CCHD,Bed purchasing -S28A  Under 65 - North,Permanent Residential,Milestones - Unit 10,3797.71, 14-Apr-2015
1275,Revenue,CCHD,Bed purchasing -S28A  Under 65 - North,Permanent Residential,Milestones - Unit 10,1314.51, 14-Apr-2015
1276,Revenue,CCHD,Bed Purchasing - North,Permanent Residential,Milestones - Unit 10,3347.11, 14-Apr-2015
1277,Revenue,CCHD,Bed Purchasing - North,Permanent Residential,Milestones - Unit 10,1158.71, 14-Apr-2015
1278,Revenue,CCHD,Bed purchasing -S28A  Under 65 - North,Permanent Residential,Milestones - Unit 10,5097.14, 14-Apr-2015
1279,Revenue,CCHD,Bed purchasing -S28A  Under 65 - North,Permanent Residential,Milestones - Unit 10,1764.68, 14-Apr-2015
1280,Revenue,CCHD,Bed purchasing -S28A  Under 65 - North,Permanent Nursing,Milestones - Unit 10,4189.31, 14-Apr-2015
1281,Revenue,CCHD,Bed purchasing -S28A  Under 65 - North,Permanent Nursing,Milestones - Unit 10,1450.33, 14-Apr-2015
1282,Revenue,CCHD,Bed Purchasing - South,Permanent Residential,Milestones - Unit 10,3257.31, 14-Apr-2015
1283,Revenue,CCHD,Bed Purchasing - South,Permanent Residential,Milestones - Unit 10,1128.88, 14-Apr-2015
1284,Revenue,CCHD,Bed Purchasing - South,Permanent Residential,Milestones - Unit 10,2434.29, 14-Apr-2015
1285,Revenue,CCHD,Bed Purchasing - South,Permanent Residential,Milestones - Unit 10,802.54, 14-Apr-2015
1286,Revenue,CCHD,Bed purchasing -S28A  Under 65 - North,Permanent Residential,Milestones - Unit 10,4877.94, 14-Apr-2015
1287,Revenue,CCHD,Bed purchasing -S28A  Under 65 - North,Permanent Residential,Milestones - Unit 10,1688.78, 14-Apr-2015
1288,Revenue,CCHD,Bed purchasing - S28A Under 65 - South,Permanent Residential,Milestones - Unit 10,3268.43, 14-Apr-2015
1289,Revenue,CCHD,Bed purchasing - S28A Under 65 - South,Permanent Residential,Milestones - Unit 10,1131.47, 14-Apr-2015
1290,Revenue,CCHD,Bed Purchasing - S28A - Over 65- North,Permanent Residential,Milestones - Unit 10,4765.57, 14-Apr-2015
1291,Revenue,CCHD,Bed Purchasing - S28A - Over 65- North,Permanent Residential,Milestones - Unit 10,1651.13, 14-Apr-2015
1292,Revenue,CCHD,Bed purchasing -S28A  Under 65 - North,Permanent Residential,Milestones - Unit 10,5395.20, 14-Apr-2015
1293,Revenue,CCHD,Bed purchasing -S28A  Under 65 - North,Permanent Residential,Milestones - Unit 10,1778.68, 14-Apr-2015
1294,Revenue,CCHD,Bed purchasing -S28A  Under 65 - North,Permanent Residential,Milestones - Unit 10,5097.29, 14-Apr-2015
1295,Revenue,CCHD,Bed purchasing -S28A  Under 65 - North,Permanent Residential,Milestones - Unit 10,1764.68, 14-Apr-2015
1296,Revenue,CCHD,Bed Purchasing - LD S28A- Over 65- South,Permanent Residential,Milestones - Unit 10,2956.06, 14-Apr-2015
1297,Revenue,CCHD,Bed Purchasing - LD S28A- Over 65- South,Permanent Residential,Milestones - Unit 10,1024.58, 14-Apr-2015
1298,Revenue,CCHD,Bed purchasing - S28A Under 65 - South,Permanent Residential,Milestones - Unit 10,3234.08, 14-Apr-2015
1299,Revenue,CCHD,Bed purchasing - S28A Under 65 - South,Permanent Residential,Milestones - Unit 10,1119.58, 14-Apr-2015
1300,Revenue,CCHD,Bed purchasing - S28A Under 65 - South,Permanent Residential,Milestones - Unit 10,3438.45, 14-Apr-2015
1301,Revenue,CCHD,Bed purchasing - S28A Under 65 - South,Permanent Residential,Milestones - Unit 10,1190.34, 14-Apr-2015
1302,Revenue,CCHD,Bed purchasing - S28A Under 65 - South,Permanent Residential,Milestones - Unit 10,2646.14, 14-Apr-2015
1303,Revenue,CCHD,Bed purchasing - S28A Under 65 - South,Permanent Residential,Milestones - Unit 10,915.99, 14-Apr-2015
1304,Revenue,CCHD,Bed Purchasing - LD S28A- Over 65- South,Permanent Residential,Milestones - Unit 10,3672.88, 14-Apr-2015
1305,Revenue,CCHD,Bed Purchasing - LD S28A- Over 65- South,Permanent Residential,Milestones - Unit 10,1272.78, 14-Apr-2015
1306,Revenue,CCHD,Bed Purchasing - LD S28A- Over 65- South,Permanent Residential,Milestones - Unit 10,3548.85, 14-Apr-2015
1307,Revenue,CCHD,Bed Purchasing - LD S28A- Over 65- South,Permanent Residential,Milestones - Unit 10,1229.83, 14-Apr-2015
1308,Revenue,CCHD,Bed Purchasing - LD S28A- Over 65- South,Permanent Residential,Milestones - Unit 10,3661.48, 14-Apr-2015
1309,Revenue,CCHD,Bed Purchasing - LD S28A- Over 65- South,Permanent Residential,Milestones - Unit 10,1268.83, 14-Apr-2015
1310,Revenue,CCHD,Bed Purchasing - LD S28A- Over 65- South,Permanent Residential,Milestones - Unit 10,3140.17, 14-Apr-2015
1311,Revenue,CCHD,Bed Purchasing - LD S28A- Over 65- South,Permanent Residential,Milestones - Unit 10,1088.32, 14-Apr-2015
1312,Revenue,CCHD,Bed Purchasing - LD S28A- Over 65- South,Permanent Residential,Milestones - Unit 10,3730.00, 14-Apr-2015
1313,Revenue,CCHD,Bed Purchasing - LD S28A- Over 65- South,Permanent Residential,Milestones - Unit 10,1292.55, 14-Apr-2015
1314,Revenue,CCHD,Bed Purchasing - S28A - Over 65- North,Permanent Residential,Milestones - Unit 10,2072.91, 14-Apr-2015
1315,Revenue,CCHD,Bed Purchasing - S28A - Over 65- North,Permanent Residential,Milestones - Unit 10,718.77, 14-Apr-2015
1316,Revenue,CCHD,Section 117 Placements MH Younger,Permanent Residential,Milestones - Unit 10,1319.00, 14-Apr-2015
1317,Revenue,CCHD,Bed Purchasing - South,Permanent Residential,Milestones - Unit 10,619.14, 14-Apr-2015
1318,Revenue,CCHD,Bed purchasing - S28A Under 65 - South,Permanent Residential,Milestones - Unit 10,3879.18, 14-Apr-2015
1319,Revenue,CCHD,Bed purchasing - S28A Under 65 - South,Permanent Residential,Milestones - Unit 10,1278.98, 14-Apr-2015
1320,Revenue,CCHD,Bed Purchasing - North,Permanent Residential,Milestones - Unit 10,3107.08, 14-Apr-2015
1321,Revenue,CCHD,Bed Purchasing - North,Permanent Residential,Milestones - Unit 10,1076.86, 14-Apr-2015
1322,Revenue,CCHD,Bed Purchasing - North,Permanent Nursing,Milestones - Unit 10,4941.43, 14-Apr-2015
1323,Revenue,CCHD,Bed Purchasing - North,Permanent Nursing,Milestones - Unit 10,1710.65, 14-Apr-2015
1324,Revenue,CCHD,Bed Purchasing - North,Permanent Nursing,Milestones - Unit 10,792.03, 14-Apr-2015
1325,Revenue,CCHD,Bed Purchasing - South,Permanent Residential,Milestones - Unit 10,3084.80, 14-Apr-2015
1326,Revenue,CCHD,Bed Purchasing - South,Permanent Residential,Milestones - Unit 10,1067.88, 14-Apr-2015
1327,Revenue,CCHD,Bed purchasing -S28A  Under 65 - North,Permanent Residential,Milestones - Unit 10,4098.51, 14-Apr-2015
1328,Revenue,CCHD,Bed purchasing -S28A  Under 65 - North,Permanent Residential,Milestones - Unit 10,1418.89, 14-Apr-2015
1329,Revenue,CCHD,Bed Purchasing - S28A - Over 65- North,Permanent Residential,Milestones - Unit 10,2595.65, 14-Apr-2015
1330,Revenue,CCHD,Bed Purchasing - S28A - Over 65- North,Permanent Residential,Milestones - Unit 10,899.77, 14-Apr-2015
1331,Revenue,CCHD,Bed Purchasing - Elderly S117- North,Permanent Residential,Milestones - Unit 10,1332.00, 14-Apr-2015
1332,Revenue,CCHD,MH Purchasing - Younger,Permanent Residential,Milestones - Unit 10,750.14, 14-Apr-2015
1333,Revenue,CCHD,Bed Purchasing - S28A - Over 65- North,Permanent Residential,Milestones - Unit 10,2318.03, 14-Apr-2015
1334,Revenue,CCHD,Bed Purchasing - S28A - Over 65- North,Permanent Residential,Milestones - Unit 10,803.64, 14-Apr-2015
1335,Revenue,CCHD,Bed Purchasing - LD S28A- Over 65- South,Permanent Residential,Milestones - Unit 10,2799.97, 14-Apr-2015
1336,Revenue,CCHD,Bed Purchasing - LD S28A- Over 65- South,Permanent Residential,Milestones - Unit 10,970.52, 14-Apr-2015
1337,Revenue,CCHD,Bed purchasing - S28A Under 65 - South,Permanent Residential,Milestones - Unit 10,3921.21, 14-Apr-2015
1338,Revenue,CCHD,Bed purchasing - S28A Under 65 - South,Permanent Residential,Milestones - Unit 10,1292.89, 14-Apr-2015
1339,Revenue,CCHD,Bed purchasing - S28A Under 65 - South,Permanent Nursing,Milestones - Unit 10,7000.95, 14-Apr-2015
1340,Revenue,CCHD,Bed purchasing - S28A Under 65 - South,Permanent Nursing,Milestones - Unit 10,4067.43, 14-Apr-2015
1341,Revenue,CCHD,Bed purchasing - S28A Under 65 - South,Permanent Nursing,Milestones - Unit 10,1341.06, 14-Apr-2015
1342,Revenue,CCHD,Bed Purchasing - LD S28A- Over 65- South,Permanent Nursing,Milestones - Unit 10,3769.94, 14-Apr-2015
1343,Revenue,CCHD,Bed Purchasing - LD S28A- Over 65- South,Permanent Nursing,Milestones - Unit 10,1306.38, 14-Apr-2015
1344,Revenue,CCHD,Bed Purchasing - LD S28A- Over 65- South,Permanent Residential,Milestones - Unit 10,3429.08, 14-Apr-2015
1345,Revenue,CCHD,Bed Purchasing - LD S28A- Over 65- South,Permanent Residential,Milestones - Unit 10,1188.36, 14-Apr-2015
1346,Revenue,CCHD,Bed Purchasing - LD S28A- Over 65- South,Permanent Residential,Milestones - Unit 10,3318.20, 14-Apr-2015
1347,Revenue,CCHD,Bed Purchasing - LD S28A- Over 65- South,Permanent Residential,Milestones - Unit 10,1149.96, 14-Apr-2015
1348,Revenue,CCHD,Bed purchasing - S28A Under 65 - South,Permanent Residential,Milestones - Unit 10,4370.55, 14-Apr-2015
1349,Revenue,CCHD,Bed purchasing - S28A Under 65 - South,Permanent Residential,Milestones - Unit 10,1513.36, 14-Apr-2015
1350,Revenue,CCHD,Bed Purchasing - LD S28A- Over 65- South,Permanent Residential,Milestones - Unit 10,3366.80, 14-Apr-2015
1351,Revenue,CCHD,Bed Purchasing - LD S28A- Over 65- South,Permanent Residential,Milestones - Unit 10,1166.79, 14-Apr-2015
1352,Revenue,CCHD,Bed Purchasing - S28A - Over 65- North,Permanent Residential,Milestones - Unit 10,3426.89, 14-Apr-2015
1353,Revenue,CCHD,Bed Purchasing - S28A - Over 65- North,Permanent Residential,Milestones - Unit 10,1187.61, 14-Apr-2015
1354,Revenue,CCHD,Bed Purchasing - South,Permanent Nursing,Milestones - Unit 10,2371.29, 14-Apr-2015
1355,Revenue,CCHD,Bed Purchasing - South,Permanent Nursing,Milestones - Unit 10,821.08, 14-Apr-2015
1356,Revenue,CCHD,Bed Purchasing - S28A - Over 65- North,Permanent Residential,Milestones - Unit 10,3310.03, 14-Apr-2015
1357,Revenue,CCHD,Bed Purchasing - S28A - Over 65- North,Permanent Residential,Milestones - Unit 10,1147.13, 14-Apr-2015
1358,Revenue,CCHD,Bed Purchasing - S28A - Over 65- North,Permanent Residential,Milestones - Unit 10,3433.31, 14-Apr-2015
1359,Revenue,CCHD,Bed Purchasing - S28A - Over 65- North,Permanent Residential,Milestones - Unit 10,1189.82, 14-Apr-2015
1360,Revenue,CCHD,Bed purchasing - S28A Under 65 - South,Permanent Residential,Milestones - Unit 10,3434.77, 14-Apr-2015
1361,Revenue,CCHD,Bed purchasing - S28A Under 65 - South,Permanent Residential,Milestones - Unit 10,1189.07, 14-Apr-2015
1362,Revenue,CCHD,Bed Purchasing - S28A - Over 65- North,Permanent Residential,Milestones - Unit 10,3248.40, 14-Apr-2015
1363,Revenue,CCHD,Bed Purchasing - S28A - Over 65- North,Permanent Residential,Milestones - Unit 10,1125.79, 14-Apr-2015
1364,Revenue,CCHD,Bed purchasing - S28A Under 65 - South,Permanent Nursing,Milestones - Unit 10,7787.13, 14-Apr-2015
1365,Revenue,CCHD,Bed purchasing -S28A  Under 65 - North,Permanent Residential,Milestones - Unit 10,5097.29, 14-Apr-2015
1366,Revenue,CCHD,Bed purchasing -S28A  Under 65 - North,Permanent Residential,Milestones - Unit 10,1764.68, 14-Apr-2015
1367,Revenue,CCHD,Bed purchasing -S28A  Under 65 - North,Permanent Residential,Milestones - Unit 10,2386.25, 14-Apr-2015
1368,Revenue,CCHD,Bed purchasing -S28A  Under 65 - North,Permanent Residential,Milestones - Unit 10,826.01, 14-Apr-2015
1369,Revenue,CCHD,Bed Purchasing - S28A - Over 65- North,Permanent Residential,Milestones - Unit 10,2259.65, 14-Apr-2015
1370,Revenue,CCHD,Bed Purchasing - S28A - Over 65- North,Permanent Residential,Milestones - Unit 10,783.43, 14-Apr-2015
1371,Revenue,CCHD,Bed Purchasing - S28A - Over 65- North,Permanent Residential,Milestones - Unit 10,2474.45, 14-Apr-2015
1372,Revenue,CCHD,Bed Purchasing - S28A - Over 65- North,Permanent Residential,Milestones - Unit 10,857.81, 14-Apr-2015
1373,Revenue,CCHD,Bed Purchasing - LD S28A- Over 65- South,Permanent Residential,Milestones - Unit 10,2225.23, 14-Apr-2015
1374,Revenue,CCHD,Bed Purchasing - LD S28A- Over 65- South,Permanent Residential,Milestones - Unit 10,771.51, 14-Apr-2015
1375,Revenue,CCHD,Bed Purchasing - North,Permanent Residential,Milestones - Unit 10,4890.97, 14-Apr-2015
1376,Revenue,CCHD,Bed Purchasing - North,Permanent Residential,Milestones - Unit 10,1693.29, 14-Apr-2015
1377,Revenue,CCHD,Bed Purchasing - South,Permanent Residential,Milestones - Unit 10,949.20, 14-Apr-2015
1378,Revenue,CCHD,MH Purchasing - Younger,Permanent Nursing,Milestones - Unit 10,679.25, 14-Apr-2015
1379,Revenue,CCHD,MH Purchasing - Younger,Permanent Nursing,Milestones - Unit 10,684.85, 14-Apr-2015
1380,Revenue,CCHD,Bed Purchasing - South,Permanent Residential,Milestones - Unit 10,2346.68, 14-Apr-2015
1381,Revenue,CCHD,Bed Purchasing - South,Permanent Residential,Milestones - Unit 10,813.56, 14-Apr-2015
1382,Revenue,CCHD,Bed purchasing - S28A Under 65 - South,Permanent Residential,Milestones - Unit 10,4274.34, 14-Apr-2015
1383,Revenue,CCHD,Bed purchasing - S28A Under 65 - South,Permanent Residential,Milestones - Unit 10,1479.78, 14-Apr-2015
1384,Revenue,CCHD,Bed purchasing - S28A Under 65 - South,Permanent Residential,Milestones - Unit 10,4336.45, 14-Apr-2015
1385,Revenue,CCHD,Bed purchasing - S28A Under 65 - South,Permanent Residential,Milestones - Unit 10,1502.54, 14-Apr-2015
1386,Revenue,CCHD,Bed Purchasing - LD S28A- Over 65- South,Permanent Residential,Milestones - Unit 10,3140.17, 14-Apr-2015
1387,Revenue,CCHD,Bed Purchasing - LD S28A- Over 65- South,Permanent Residential,Milestones - Unit 10,1088.32, 14-Apr-2015
1388,Revenue,CCHD,Bed Purchasing - South,Permanent Residential,Milestones - Unit 10,4274.65, 14-Apr-2015
1389,Revenue,CCHD,Bed Purchasing - South,Permanent Residential,Milestones - Unit 10,1479.88, 14-Apr-2015
1390,Revenue,CCHD,Bed Purchasing - LD S28A- Over 65- South,Permanent Nursing,Milestones - Unit 10,3266.68, 14-Apr-2015
1391,Revenue,CCHD,Bed Purchasing - LD S28A- Over 65- South,Permanent Nursing,Milestones - Unit 10,1132.09, 14-Apr-2015
1392,Revenue,CCHD,Bed Purchasing - LD S28A- Over 65- South,Permanent Nursing,Milestones - Unit 10,3769.94, 14-Apr-2015
1393,Revenue,CCHD,Bed Purchasing - LD S28A- Over 65- South,Permanent Nursing,Milestones - Unit 10,1306.38, 14-Apr-2015
1394,Revenue,CCHD,Bed Purchasing - LD S28A- Over 65- South,Permanent Residential,Milestones - Unit 10,2553.68, 14-Apr-2015
1395,Revenue,CCHD,Bed Purchasing - LD S28A- Over 65- South,Permanent Residential,Milestones - Unit 10,885.24, 14-Apr-2015
1396,Revenue,CCHD,Bed Purchasing - LD S28A- Over 65- South,Permanent Residential,Milestones - Unit 10,3133.03, 14-Apr-2015
1397,Revenue,CCHD,Bed Purchasing - LD S28A- Over 65- South,Permanent Residential,Milestones - Unit 10,1085.84, 14-Apr-2015
1398,Revenue,CCHD,Bed Purchasing - South,Permanent Residential,Milestones - Unit 10,885.26, 14-Apr-2015
1399,Revenue,CCHD,Bed purchasing -S28A  Under 65 - North,Permanent Nursing,Milestones - Unit 10,5819.91, 14-Apr-2015
1400,Revenue,CCHD,Bed purchasing -S28A  Under 65 - North,Permanent Nursing,Milestones - Unit 10,1918.98, 14-Apr-2015
1401,Revenue,CCHD,Bed Purchasing - Southmead Hospital,Permanent Nursing,Milestones - Unit 10,977.20, 14-Apr-2015
1402,Revenue,CCHD,Bed Purchasing - South,Permanent Residential,Milestones - Unit 10,3986.04, 14-Apr-2015
1403,Revenue,CCHD,Bed Purchasing - South,Permanent Residential,Milestones - Unit 10,1314.25, 14-Apr-2015
1404,Revenue,CCHD,Bed Purchasing - Elderly S117- North,Permanent Nursing,Milestones - Unit 10,1509.00, 14-Apr-2015
1405,Revenue,CCHD,Bed Purchasing - North,Permanent Nursing,Milestones - Unit 10,1043.03, 14-Apr-2015
1406,Revenue,CCHD,Bed Purchasing - North,Permanent Nursing,Milestones - Unit 10,625.77, 14-Apr-2015
1407,Revenue,CCHD,Section 117 Placements MH Younger,Permanent Residential,Milestones - Unit 10,1368.00, 14-Apr-2015
1408,Revenue,CCHD,Bed Purchasing - South,Permanent Nursing,Milestones - Unit 10,2448.92, 14-Apr-2015
1409,Revenue,CCHD,Bed Purchasing - South,Permanent Nursing,Milestones - Unit 10,847.34, 14-Apr-2015
1410,Revenue,CCHD,Bed Purchasing - South,Permanent Residential,Milestones - Unit 10,2447.94, 14-Apr-2015
1411,Revenue,CCHD,Bed Purchasing - South,Permanent Residential,Milestones - Unit 10,847.37, 14-Apr-2015
1412,Revenue,CCHD,Bed Purchasing - LD S28A- Over 65- South,Permanent Nursing,Milestones - Unit 10,2149.88, 14-Apr-2015
1413,Revenue,CCHD,Bed Purchasing - LD S28A- Over 65- South,Permanent Nursing,Milestones - Unit 10,745.42, 14-Apr-2015
1414,Revenue,CCHD,Bed Purchasing - LD S28A- Over 65- South,Permanent Nursing,Milestones - Unit 10,1995.20, 14-Apr-2015
1415,Revenue,CCHD,Bed Purchasing - LD S28A- Over 65- South,Permanent Nursing,Milestones - Unit 10,691.86, 14-Apr-2015
1416,Revenue,CCHD,Bed Purchasing - S28A - Over 65- North,Permanent Nursing,Milestones - Unit 10,2826.48, 14-Apr-2015
1417,Revenue,CCHD,Bed Purchasing - S28A - Over 65- North,Permanent Nursing,Milestones - Unit 10,923.18, 14-Apr-2015
1418,Revenue,CCHD,Bed Purchasing - S28A - Over 65- North,Permanent Nursing,Milestones - Unit 10,2817.48, 14-Apr-2015
1419,Revenue,CCHD,Bed Purchasing - S28A - Over 65- North,Permanent Nursing,Milestones - Unit 10,921.18, 14-Apr-2015
1420,Revenue,CCHD,MH Purchasing - Younger,Respite Planned - Residential,Milestones - Unit 10,3764.72, 14-Apr-2015
1421,Revenue,CCHD,Home Care - Elderly - South,Day Care / Social Activities,Milestones Homecare & Dementia Service,31.04, 10-Apr-2015
1422,Revenue,CCHD,Home Care - Elderly - South,Other Small Contracts,Milestones Homecare & Dementia Service,1443.36, 10-Apr-2015
1423,Revenue,CCHD,Home Care - Elderly - North,Other Small Contracts,Milestones Homecare & Dementia Service,1385.16, 10-Apr-2015
1424,Revenue,CCHD,Home care - Elderly MH - North,Other Small Contracts,Milestones Homecare & Dementia Service,54.32, 10-Apr-2015
1425,Revenue,CCHD,Home Care - Elderly - South,Day Care / Social Activities,Milestones Homecare & Dementia Service,31.04, 28-Apr-2015
1426,Revenue,CCHD,Home Care - Elderly - South,Other Small Contracts,Milestones Homecare & Dementia Service,1261.00, 28-Apr-2015
1427,Revenue,CCHD,Home Care - Elderly - North,Other Small Contracts,Milestones Homecare & Dementia Service,1517.08, 28-Apr-2015
1428,Revenue,CCHD,Home care - Elderly MH - North,Other Small Contracts,Milestones Homecare & Dementia Service,54.32, 28-Apr-2015
1429,Revenue,CCHD,Home Care - Elderly - South,Day Care / Social Activities,Milestones Homecare & Dementia Service,27.16, 10-Apr-2015
1430,Revenue,CCHD,Home Care - Elderly - South,Other Small Contracts,Milestones Homecare & Dementia Service,1346.36, 10-Apr-2015
1431,Revenue,CCHD,Home Care - Elderly - North,Other Small Contracts,Milestones Homecare & Dementia Service,1528.72, 10-Apr-2015
1432,Revenue,CCHD,Home care - Elderly MH - North,Other Small Contracts,Milestones Homecare & Dementia Service,42.68, 10-Apr-2015
1433,Revenue,CCHD,Home Care - Elderly - South,Day Care / Social Activities,Milestones Homecare & Dementia Service,31.04, 28-Apr-2015
1434,Revenue,CCHD,Home Care - Elderly - South,Other Small Contracts,Milestones Homecare & Dementia Service,1462.76, 28-Apr-2015
1435,Revenue,CCHD,Home Care - Elderly - North,Day Care / Social Activities,Milestones Homecare & Dementia Service,31.04, 28-Apr-2015
1436,Revenue,CCHD,Home Care - Elderly - North,Other Small Contracts,Milestones Homecare & Dementia Service,1365.76, 28-Apr-2015
1437,Revenue,CCHD,Home care - Elderly MH - North,Other Small Contracts,Milestones Homecare & Dementia Service,46.56, 28-Apr-2015
1438,Revenue,CCHD,Home Care - Elderly - South,Other Small Contracts,Milestones Homecare & Dementia Service,1528.72, 28-Apr-2015
1439,Revenue,CCHD,Home Care - Elderly - North,Day Care / Social Activities,Milestones Homecare & Dementia Service,31.04, 28-Apr-2015
1440,Revenue,CCHD,Home Care - Elderly - North,Other Small Contracts,Milestones Homecare & Dementia Service,1548.12, 28-Apr-2015
1441,Revenue,CCHD,Home care - Elderly MH - North,Other Small Contracts,Milestones Homecare & Dementia Service,38.80, 28-Apr-2015
1442,Revenue,CCHD,Home Care - Elderly - South,Day Care / Social Activities,Milestones Supported Living Services,6125.98, 13-Apr-2015
1443,Revenue,CCHD,Home Care - Elderly - South,Other Small Contracts,Milestones Supported Living Services,3669.15, 13-Apr-2015
1444,Revenue,CCHD,Home Care - Elderly - South,Supported Living,Milestones Supported Living Services,785.96, 13-Apr-2015
1445,Revenue,CCHD,Home Care - Elderly - North,Day Care / Social Activities,Milestones Supported Living Services,3548.85, 13-Apr-2015
1446,Revenue,CCHD,Home Care - Elderly - North,Other Small Contracts,Milestones Supported Living Services,785.96, 13-Apr-2015
1447,Revenue,CCHD,Day Care - South,Day Care / Social Activities,Milestones Supported Living Services,104.88, 13-Apr-2015
1448,Revenue,CCHD,Day Care - North,Day Care / Social Activities,Milestones Supported Living Services,198.92, 13-Apr-2015
1449,Revenue,CCHD,Younger MH non-res purchasing,Day Care / Social Activities,Milestones Supported Living Services,24.06, 13-Apr-2015
1450,Revenue,CCHD,Home care - Elderly MH - North,Other Small Contracts,Milestones Supported Living Services,64.16, 13-Apr-2015
1451,Revenue,CCHD,Home Care - Elderly - South,Day Care / Social Activities,Milestones Supported Living Services,6647.87, 28-Apr-2015
1452,Revenue,CCHD,Home Care - Elderly - South,Other Small Contracts,Milestones Supported Living Services,4030.05, 28-Apr-2015
1453,Revenue,CCHD,Home Care - Elderly - South,Supported Living,Milestones Supported Living Services,777.94, 28-Apr-2015
1454,Revenue,CCHD,Home Care - Elderly - North,Day Care / Social Activities,Milestones Supported Living Services,3400.48, 28-Apr-2015
1455,Revenue,CCHD,Home Care - Elderly - North,Other Small Contracts,Milestones Supported Living Services,834.08, 28-Apr-2015
1456,Revenue,CCHD,Day Care - South,Day Care / Social Activities,Milestones Supported Living Services,109.44, 28-Apr-2015
1457,Revenue,CCHD,Day Care - North,Day Care / Social Activities,Milestones Supported Living Services,189.80, 28-Apr-2015
1458,Revenue,CCHD,Younger MH non-res purchasing,Day Care / Social Activities,Milestones Supported Living Services,28.07, 28-Apr-2015
1459,Revenue,CCHD,Home care - Elderly MH - North,Other Small Contracts,Milestones Supported Living Services,64.16, 28-Apr-2015
1460,Revenue,CCHD,Home Care - Elderly - South,Day Care / Social Activities,Milestones Supported Living Services,7026.27, 13-Apr-2015
1461,Revenue,CCHD,Home Care - Elderly - South,Other Small Contracts,Milestones Supported Living Services,3837.57, 13-Apr-2015
1462,Revenue,CCHD,Home Care - Elderly - South,Supported Living,Milestones Supported Living Services,870.17, 13-Apr-2015
1463,Revenue,CCHD,Home Care - Elderly - North,Day Care / Social Activities,Milestones Supported Living Services,3452.61, 13-Apr-2015
1464,Revenue,CCHD,Home Care - Elderly - North,Other Small Contracts,Milestones Supported Living Services,946.36, 13-Apr-2015
1465,Revenue,CCHD,Day Care - South,Day Care / Social Activities,Milestones Supported Living Services,118.56, 13-Apr-2015
1466,Revenue,CCHD,Day Care - North,Day Care / Social Activities,Milestones Supported Living Services,199.47, 13-Apr-2015
1467,Revenue,CCHD,Younger MH non-res purchasing,Day Care / Social Activities,Milestones Supported Living Services,24.06, 13-Apr-2015
1468,Revenue,CCHD,Home care - Elderly MH - North,Other Small Contracts,Milestones Supported Living Services,64.16, 13-Apr-2015
1469,Revenue,CCHD,Home Care - Elderly - South,Day Care / Social Activities,Milestones Supported Living Services,8790.67, 13-Apr-2015
1470,Revenue,CCHD,Home Care - Elderly - South,Other Small Contracts,Milestones Supported Living Services,2305.75, 13-Apr-2015
1471,Revenue,CCHD,Home Care - Elderly - South,Supported Living,Milestones Supported Living Services,116.29, 13-Apr-2015
1472,Revenue,CCHD,Home Care - Elderly - North,Day Care / Social Activities,Milestones Supported Living Services,3340.33, 13-Apr-2015
1473,Revenue,CCHD,Home Care - Elderly - North,Other Small Contracts,Milestones Supported Living Services,898.24, 13-Apr-2015
1474,Revenue,CCHD,Day Care - South,Day Care / Social Activities,Milestones Supported Living Services,109.44, 13-Apr-2015
1475,Revenue,CCHD,Day Care - North,Day Care / Social Activities,Milestones Supported Living Services,163.38, 13-Apr-2015
1476,Revenue,CCHD,Younger MH non-res purchasing,Day Care / Social Activities,Milestones Supported Living Services,28.07, 13-Apr-2015
1477,Revenue,CCHD,Home care - Elderly MH - North,Other Small Contracts,Milestones Supported Living Services,68.17, 13-Apr-2015
1478,Revenue,CCHD,Home Care - Elderly - South,Day Care / Social Activities,Milestones Supported Living Services,9022.08, 20-Apr-2015
1479,Revenue,CCHD,Home Care - Elderly - South,Other Small Contracts,Milestones Supported Living Services,2129.31, 20-Apr-2015
1480,Revenue,CCHD,Home Care - Elderly - South,Supported Living,Milestones Supported Living Services,112.28, 20-Apr-2015
1481,Revenue,CCHD,Home Care - Elderly - North,Day Care / Social Activities,Milestones Supported Living Services,3492.71, 20-Apr-2015
1482,Revenue,CCHD,Home Care - Elderly - North,Other Small Contracts,Milestones Supported Living Services,898.24, 20-Apr-2015
1483,Revenue,CCHD,Day Care - South,Day Care / Social Activities,Milestones Supported Living Services,109.44, 20-Apr-2015
1484,Revenue,CCHD,Day Care - North,Day Care / Social Activities,Milestones Supported Living Services,171.01, 20-Apr-2015
1485,Revenue,CCHD,Younger MH non-res purchasing,Day Care / Social Activities,Milestones Supported Living Services,32.08, 20-Apr-2015
1486,Revenue,CCHD,Home care - Elderly MH - North,Other Small Contracts,Milestones Supported Living Services,40.09, 20-Apr-2015
1487,Revenue,CCHD,Home Care - Elderly - South,Day Care / Social Activities,Milestones Supported Living Services,7598.32, 28-Apr-2015
1488,Revenue,CCHD,Home Care - Elderly - South,Other Small Contracts,Milestones Supported Living Services,1772.42, 28-Apr-2015
1489,Revenue,CCHD,Home Care - Elderly - South,Supported Living,Milestones Supported Living Services,80.20, 28-Apr-2015
1490,Revenue,CCHD,Home Care - Elderly - North,Day Care / Social Activities,Milestones Supported Living Services,3167.90, 28-Apr-2015
1491,Revenue,CCHD,Home Care - Elderly - North,Other Small Contracts,Milestones Supported Living Services,898.24, 28-Apr-2015
1492,Revenue,CCHD,Day Care - South,Day Care / Social Activities,Milestones Supported Living Services,114.00, 28-Apr-2015
1493,Revenue,CCHD,Day Care - North,Day Care / Social Activities,Milestones Supported Living Services,132.72, 28-Apr-2015
1494,Revenue,CCHD,Home care - Elderly MH - North,Other Small Contracts,Milestones Supported Living Services,64.16, 28-Apr-2015
1495,Revenue,CCHD,Home Care - Elderly - South,Day Care / Social Activities,Milestones Supported Living Services,7499.80, 28-Apr-2015
1496,Revenue,CCHD,Home Care - Elderly - South,Other Small Contracts,Milestones Supported Living Services,894.22, 28-Apr-2015
1497,Revenue,CCHD,Home Care - Elderly - South,Supported Living,Milestones Supported Living Services,3572.91, 28-Apr-2015
1498,Revenue,CCHD,Home Care - Elderly - North,Day Care / Social Activities,Milestones Supported Living Services,3003.49, 28-Apr-2015
1499,Revenue,CCHD,Home Care - Elderly - North,Other Small Contracts,Milestones Supported Living Services,898.24, 28-Apr-2015
1500,Revenue,CCHD,Home Care - Elderly - North,Supported Living,Milestones Supported Living Services,328.82, 28-Apr-2015
1501,Revenue,CCHD,Day Care - South,Day Care / Social Activities,Milestones Supported Living Services,109.44, 28-Apr-2015
1502,Revenue,CCHD,Day Care - North,Day Care / Social Activities,Milestones Supported Living Services,162.83, 28-Apr-2015
1503,Revenue,CCHD,Younger MH non-res purchasing,Day Care / Social Activities,Milestones Supported Living Services,20.05, 28-Apr-2015
1504,Revenue,CCHD,Home care - Elderly MH - North,Other Small Contracts,Milestones Supported Living Services,64.16, 28-Apr-2015
1505,Revenue,CCHD,Home Care - Elderly - South,Day Care / Social Activities,Milestones Supported Living Services,7618.02, 28-Apr-2015
1506,Revenue,CCHD,Home Care - Elderly - South,Other Small Contracts,Milestones Supported Living Services,565.41, 28-Apr-2015
1507,Revenue,CCHD,Home Care - Elderly - South,Supported Living,Milestones Supported Living Services,3292.21, 28-Apr-2015
1508,Revenue,CCHD,Home Care - Elderly - North,Day Care / Social Activities,Milestones Supported Living Services,2879.18, 28-Apr-2015
1509,Revenue,CCHD,Home Care - Elderly - North,Other Small Contracts,Milestones Supported Living Services,898.24, 28-Apr-2015
1510,Revenue,CCHD,Home Care - Elderly - North,Supported Living,Milestones Supported Living Services,248.62, 28-Apr-2015
1511,Revenue,CCHD,Day Care - South,Day Care / Social Activities,Milestones Supported Living Services,109.44, 28-Apr-2015
1512,Revenue,CCHD,Day Care - North,Day Care / Social Activities,Milestones Supported Living Services,221.72, 28-Apr-2015
1513,Revenue,CCHD,Younger MH non-res purchasing,Day Care / Social Activities,Milestones Supported Living Services,40.10, 28-Apr-2015
1514,Revenue,CCHD,Home care - Elderly MH - North,Other Small Contracts,Milestones Supported Living Services,96.24, 28-Apr-2015
1515,Revenue,CCHD,Purchase of Non-Res Care - South,Day Care / Social Activities,Milestones Trust,1084.68, 14-Apr-2015
1516,Revenue,CCHD,Tenancy Start Up Scheme,Other Supplies & Services,Individual,1450.00, 07-Apr-2015
1517,Revenue,CCHD,Health Inequalities,Other Small Contracts,Mo Dymond Support Groups,500.00, 17-Apr-2015
1518,Revenue,CCHD,Health Inequalities,Other Small Contracts,Mo Dymond Support Groups,500.00, 17-Apr-2015
1519,Revenue,CCHD,Health Inequalities,Other Small Contracts,Mo Dymond Support Groups,500.00, 17-Apr-2015
1520,Revenue,CCHD,Bed Purchasing - Southmead Hospital,Permanent Residential,Mostyn Lodge Residential Home,816.58, 14-Apr-2015
1521,Revenue,CCHD,Bed Purchasing - North,Permanent Residential,Mostyn Lodge Residential Home,885.57, 14-Apr-2015
1522,Revenue,CCHD,Mental Health and Emotional Wellbeing,Other Small Contracts,Mothers for Mothers,2250.00, 17-Apr-2015
1523,Revenue,CCHD,Bed Purchasing - Southmead Hospital,Permanent Nursing,Mount Elton Nursing Home,1677.77, 14-Apr-2015
1524,Revenue,CCHD,Social Lettings Agency,Fees - General,Individual,10.00, 07-Apr-2015
1525,Revenue,CCHD,Social Lettings Agency,Other Supplies & Services,Individual,565.00, 07-Apr-2015
1526,Revenue,CCHD,Social Lettings Agency,Fees - General,Individual,10.09, 07-Apr-2015
1527,Revenue,CCHD,Social Lettings Agency,Other Supplies & Services,Individual,570.66, 07-Apr-2015
1528,Revenue,CCHD,Social Lettings Agency,Fees - General,Individual,10.10, 07-Apr-2015
1529,Revenue,CCHD,Social Lettings Agency,Other Supplies & Services,Individual,570.64, 07-Apr-2015
1530,Revenue,CCHD,Social Lettings Agency,Fees - General,Individual,10.00, 22-Apr-2015
1531,Revenue,CCHD,Social Lettings Agency,Other Supplies & Services,Individual,565.00, 22-Apr-2015
1532,Revenue,CCHD,Social Lettings Agency,Fees - General,Individual,8.60, 22-Apr-2015
1533,Revenue,CCHD,Social Lettings Agency,Other Supplies & Services,Individual,516.00, 22-Apr-2015
1534,Revenue,CCHD,Supporting People Programme,Grants to Voluntary Bodies,Mr & Mrs Watts,1009.70, 08-Apr-2015
1535,Revenue,CCHD,Social Lettings Agency,Fees - General,Individual,11.60, 01-Apr-2015
1536,Revenue,CCHD,Social Lettings Agency,Other Supplies & Services,Individual,655.41, 01-Apr-2015
1537,Revenue,CCHD,Homeless - Private Sector Leasing,Other Supplies & Services,Individual,565.00, 23-Apr-2015
1538,Revenue,CCHD,Social Lettings Agency,Fees - General,Individual,10.00, 08-Apr-2015
1539,Revenue,CCHD,Social Lettings Agency,Other Supplies & Services,Individual,565.00, 08-Apr-2015
1540,Revenue,CCHD,Social Lettings Agency,Fees - General,Individual,11.60, 10-Apr-2015
1541,Revenue,CCHD,Social Lettings Agency,Other Supplies & Services,Individual,655.41, 10-Apr-2015
1542,Revenue,CCHD,Social Lettings Agency,Fees - General,Individual,11.71, 02-Apr-2015
1543,Revenue,CCHD,Social Lettings Agency,Other Supplies & Services,Individual,661.96, 02-Apr-2015
1544,Revenue,CCHD,Homeless - Private Sector Leasing,Other Supplies & Services,Individual,1264.62, 08-Apr-2015
1545,Revenue,CCHD,Management & Support costs,Legal Fees,Mr Peter Lockley,500.00, 07-Apr-2015
1546,Revenue,CCHD,Social Lettings Agency,Fees - General,Individual,10.00, 08-Apr-2015
1547,Revenue,CCHD,Social Lettings Agency,Other Supplies & Services,Individual,565.00, 08-Apr-2015
1548,Revenue,CCHD,Social Lettings Agency,Fees - General,Individual,16.16, 21-Apr-2015
1549,Revenue,CCHD,Social Lettings Agency,Other Supplies & Services,Individual,662.78, 21-Apr-2015
1550,Revenue,CCHD,Social Lettings Agency,Fees - General,Individual,10.00, 30-Apr-2015
1551,Revenue,CCHD,Social Lettings Agency,Other Supplies & Services,Individual,565.00, 30-Apr-2015
1552,Revenue,CCHD,Social Lettings Agency,Fees - General,Individual,7.50, 07-Apr-2015
1553,Revenue,CCHD,Social Lettings Agency,Other Supplies & Services,Individual,580.00, 07-Apr-2015
1554,Revenue,CCHD,Home Care - Elderly - South,Day Care / Social Activities,Mrs B Kimber -  CM2000,1099.62, 08-Apr-2015
1555,Revenue,CCHD,Home Care - Elderly - South,Other Small Contracts,Mrs B Kimber -  CM2000,10892.76, 08-Apr-2015
1556,Revenue,CCHD,Home Care - Elderly - South,Supported Living,Mrs B Kimber -  CM2000,32.88, 08-Apr-2015
1557,Revenue,CCHD,Home Care - Elderly - North,Day Care / Social Activities,Mrs B Kimber -  CM2000,460.32, 08-Apr-2015
1558,Revenue,CCHD,Home Care - Elderly - North,Other Small Contracts,Mrs B Kimber -  CM2000,5478.63, 08-Apr-2015
1559,Revenue,CCHD,Under 65s -MH  Home Care Purch,Other Small Contracts,Mrs B Kimber -  CM2000,65.76, 08-Apr-2015
1560,Revenue,CCHD,Elderly MH Day Care North,Day Care / Social Activities,Mrs B Kimber -  CM2000,98.64, 08-Apr-2015
1561,Revenue,CCHD,Home Care - Elderly - South,Day Care / Social Activities,Mrs B Kimber -  CM2000,2108.46, 08-Apr-2015
1562,Revenue,CCHD,Home Care - Elderly - South,Other Small Contracts,Mrs B Kimber -  CM2000,9314.85, 08-Apr-2015
1563,Revenue,CCHD,Home Care - Elderly - South,Supported Living,Mrs B Kimber -  CM2000,32.88, 08-Apr-2015
1564,Revenue,CCHD,Home Care - Elderly - North,Day Care / Social Activities,Mrs B Kimber -  CM2000,394.56, 08-Apr-2015
1565,Revenue,CCHD,Home Care - Elderly - North,Other Small Contracts,Mrs B Kimber -  CM2000,5507.40, 08-Apr-2015
1566,Revenue,CCHD,Under 65s -MH  Home Care Purch,Other Small Contracts,Mrs B Kimber -  CM2000,65.76, 08-Apr-2015
1567,Revenue,CCHD,Elderly MH Day Care North,Day Care / Social Activities,Mrs B Kimber -  CM2000,98.64, 08-Apr-2015
1568,Revenue,CCHD,Home Care - Elderly - South,Day Care / Social Activities,Mrs B Kimber -  CM2000,1161.27, 23-Apr-2015
1569,Revenue,CCHD,Home Care - Elderly - South,Other Small Contracts,Mrs B Kimber -  CM2000,10190.28, 23-Apr-2015
1570,Revenue,CCHD,Home Care - Elderly - South,Supported Living,Mrs B Kimber -  CM2000,32.88, 23-Apr-2015
1571,Revenue,CCHD,Home Care - Elderly - North,Day Care / Social Activities,Mrs B Kimber -  CM2000,345.24, 23-Apr-2015
1572,Revenue,CCHD,Home Care - Elderly - North,Other Small Contracts,Mrs B Kimber -  CM2000,5544.39, 23-Apr-2015
1573,Revenue,CCHD,Under 65s -MH  Home Care Purch,Other Small Contracts,Mrs B Kimber -  CM2000,65.76, 23-Apr-2015
1574,Revenue,CCHD,Elderly MH Day Care North,Day Care / Social Activities,Mrs B Kimber -  CM2000,98.64, 23-Apr-2015
1575,Revenue,CCHD,Home Care - Elderly - South,Day Care / Social Activities,Mrs B Kimber -  CM2000,2282.97, 23-Apr-2015
1576,Revenue,CCHD,Home Care - Elderly - South,Other Small Contracts,Mrs B Kimber -  CM2000,9398.94, 23-Apr-2015
1577,Revenue,CCHD,Home Care - Elderly - South,Supported Living,Mrs B Kimber -  CM2000,32.88, 23-Apr-2015
1578,Revenue,CCHD,Home Care - Elderly - North,Day Care / Social Activities,Mrs B Kimber -  CM2000,411.00, 23-Apr-2015
1579,Revenue,CCHD,Home Care - Elderly - North,Other Small Contracts,Mrs B Kimber -  CM2000,5301.90, 23-Apr-2015
1580,Revenue,CCHD,Under 65s -MH  Home Care Purch,Other Small Contracts,Mrs B Kimber -  CM2000,65.76, 23-Apr-2015
1581,Revenue,CCHD,Elderly MH Day Care North,Day Care / Social Activities,Mrs B Kimber -  CM2000,94.53, 23-Apr-2015
1582,Revenue,CCHD,Social Lettings Agency,Fees - General,Individual,10.00, 17-Apr-2015
1583,Revenue,CCHD,Social Lettings Agency,Other Supplies & Services,Individual,565.00, 17-Apr-2015
1584,Revenue,CCHD,Social Lettings Agency,Fees - General,Individual,10.00, 14-Apr-2015
1585,Revenue,CCHD,Social Lettings Agency,Other Supplies & Services,Individual,565.00, 14-Apr-2015
1586,Revenue,CCHD,Social Lettings Agency,Fees - General,Individual,10.00, 24-Apr-2015
1587,Revenue,CCHD,Social Lettings Agency,Other Supplies & Services,Individual,565.00, 24-Apr-2015
1588,Revenue,CCHD,Social Lettings Agency,Fees - General,Individual,10.00, 01-Apr-2015
1589,Revenue,CCHD,Social Lettings Agency,Other Supplies & Services,Individual,565.00, 01-Apr-2015
1590,Revenue,CCHD,Social Lettings Agency,Fees - General,Individual,10.10, 14-Apr-2015
1591,Revenue,CCHD,Social Lettings Agency,Other Supplies & Services,Individual,570.64, 14-Apr-2015
1592,Revenue,CCHD,Social Lettings Agency,Fees - General,Individual,10.09, 10-Apr-2015
1593,Revenue,CCHD,Social Lettings Agency,Other Supplies & Services,Individual,570.66, 10-Apr-2015
1594,Revenue,CCHD,Tenancy Start Up Scheme,Other Supplies & Services,Individual,1500.00, 28-Apr-2015
1595,Revenue,CCHD,Social Lettings Agency,Fees - General,Individual,10.00, 08-Apr-2015
1596,Revenue,CCHD,Social Lettings Agency,Other Supplies & Services,Individual,565.00, 08-Apr-2015
1597,Revenue,CCHD,Social Lettings Agency,Fees - General,Individual,17.13, 10-Apr-2015
1598,Revenue,CCHD,Social Lettings Agency,Other Supplies & Services,Individual,977.68, 10-Apr-2015
1599,Revenue,CCHD,Community Support - North,Preventative Assistance,Multi-Save Carpets,528.33, 07-Apr-2015
1600,Revenue,CCHD,Alexandra Way,Cleaning & Domestic Services,Muzzell Healthcare,516.25, 07-Apr-2015
1601,Revenue,CCHD,Younger MH non-res purchasing,Day Care / Social Activities,NAS Services Limited,764.00, 24-Apr-2015
1602,Revenue,CCHD,Day Care - North,Day Care / Social Activities,NAS Services Limited,993.20, 24-Apr-2015
1603,Revenue,CCHD,Day Care - South,Day Care / Social Activities,NAS Services Limited,764.00, 24-Apr-2015
1604,Revenue,CCHD,Drug/Alcohol Residential Rehab,Security Systems,National Security Group,21.67, 24-Apr-2015
1605,Revenue,CCHD,Drug/Alcohol Residential Rehab,Security Systems,National Security Group,21.67, 24-Apr-2015
1606,Revenue,CCHD,Bed Purchasing - North,Permanent Residential,National Star College,5021.59, 14-Apr-2015
1607,Revenue,CCHD,Learning Difficulties Development Fund,Other Supplies & Services,Natureworks Training Community Interest,1542.50, 29-Apr-2015
1608,Revenue,CCHD,Home Care - Elderly - South,Day Care / Social Activities,Nestor T/A Allied Healthcare,95.00, 13-Apr-2015
1609,Revenue,CCHD,Home Care - Elderly - South,Other Small Contracts,Nestor T/A Allied Healthcare,3059.00, 13-Apr-2015
1610,Revenue,CCHD,Home Care - Elderly - North,Day Care / Social Activities,Nestor T/A Allied Healthcare,163.40, 13-Apr-2015
1611,Revenue,CCHD,Home Care - Elderly - North,Other Small Contracts,Nestor T/A Allied Healthcare,7887.20, 13-Apr-2015
1612,Revenue,CCHD,Day Care - North,Day Care / Social Activities,Nestor T/A Allied Healthcare,159.60, 13-Apr-2015
1613,Revenue,CCHD,Home care - Elderly MH - North,Other Small Contracts,Nestor T/A Allied Healthcare,53.20, 13-Apr-2015
1614,Revenue,CCHD,Home Care - Elderly - South,Day Care / Social Activities,Nestor T/A Allied Healthcare,68.40, 07-Apr-2015
1615,Revenue,CCHD,Home Care - Elderly - South,Other Small Contracts,Nestor T/A Allied Healthcare,3131.20, 07-Apr-2015
1616,Revenue,CCHD,Home Care - Elderly - North,Day Care / Social Activities,Nestor T/A Allied Healthcare,163.40, 07-Apr-2015
1617,Revenue,CCHD,Home Care - Elderly - North,Other Small Contracts,Nestor T/A Allied Healthcare,8341.16, 07-Apr-2015
1618,Revenue,CCHD,Day Care - North,Day Care / Social Activities,Nestor T/A Allied Healthcare,186.20, 07-Apr-2015
1619,Revenue,CCHD,Home care - Elderly MH - North,Other Small Contracts,Nestor T/A Allied Healthcare,53.20, 07-Apr-2015
1620,Revenue,CCHD,Home Care - Elderly - South,Day Care / Social Activities,Nestor T/A Allied Healthcare,68.40, 13-Apr-2015
1621,Revenue,CCHD,Home Care - Elderly - South,Other Small Contracts,Nestor T/A Allied Healthcare,3078.00, 13-Apr-2015
1622,Revenue,CCHD,Home Care - Elderly - North,Other Small Contracts,Nestor T/A Allied Healthcare,7660.80, 13-Apr-2015
1623,Revenue,CCHD,Day Care - North,Day Care / Social Activities,Nestor T/A Allied Healthcare,190.00, 13-Apr-2015
1624,Revenue,CCHD,Home care - Elderly MH - North,Other Small Contracts,Nestor T/A Allied Healthcare,53.20, 13-Apr-2015
1625,Revenue,CCHD,Home Care - Elderly - South,Day Care / Social Activities,Nestor T/A Allied Healthcare,72.20, 20-Apr-2015
1626,Revenue,CCHD,Home Care - Elderly - South,Other Small Contracts,Nestor T/A Allied Healthcare,2907.00, 20-Apr-2015
1627,Revenue,CCHD,Home Care - Elderly - North,Day Care / Social Activities,Nestor T/A Allied Healthcare,83.60, 20-Apr-2015
1628,Revenue,CCHD,Home Care - Elderly - North,Other Small Contracts,Nestor T/A Allied Healthcare,7850.80, 20-Apr-2015
1629,Revenue,CCHD,Day Care - North,Day Care / Social Activities,Nestor T/A Allied Healthcare,129.20, 20-Apr-2015
1630,Revenue,CCHD,Home care - Elderly MH - North,Other Small Contracts,Nestor T/A Allied Healthcare,53.20, 20-Apr-2015
1631,Revenue,CCHD,Home Care - Elderly - South,Day Care / Social Activities,Nestor T/A Allied Healthcare,98.80, 20-Apr-2015
1632,Revenue,CCHD,Home Care - Elderly - South,Other Small Contracts,Nestor T/A Allied Healthcare,2998.20, 20-Apr-2015
1633,Revenue,CCHD,Home Care - Elderly - North,Day Care / Social Activities,Nestor T/A Allied Healthcare,83.60, 20-Apr-2015
1634,Revenue,CCHD,Home Care - Elderly - North,Other Small Contracts,Nestor T/A Allied Healthcare,7512.60, 20-Apr-2015
1635,Revenue,CCHD,Day Care - North,Day Care / Social Activities,Nestor T/A Allied Healthcare,129.20, 20-Apr-2015
1636,Revenue,CCHD,Home care - Elderly MH - North,Other Small Contracts,Nestor T/A Allied Healthcare,53.20, 20-Apr-2015
1637,Revenue,CCHD,Home Care - Elderly - South,Day Care / Social Activities,Nestor T/A Allied Healthcare,102.60, 20-Apr-2015
1638,Revenue,CCHD,Home Care - Elderly - South,Other Small Contracts,Nestor T/A Allied Healthcare,3021.00, 20-Apr-2015
1639,Revenue,CCHD,Home Care - Elderly - North,Day Care / Social Activities,Nestor T/A Allied Healthcare,83.60, 20-Apr-2015
1640,Revenue,CCHD,Home Care - Elderly - North,Other Small Contracts,Nestor T/A Allied Healthcare,7440.40, 20-Apr-2015
1641,Revenue,CCHD,Day Care - North,Day Care / Social Activities,Nestor T/A Allied Healthcare,133.00, 20-Apr-2015
1642,Revenue,CCHD,Home care - Elderly MH - North,Other Small Contracts,Nestor T/A Allied Healthcare,53.20, 20-Apr-2015
1643,Revenue,CCHD,Home Care - Elderly - South,Day Care / Social Activities,Network Health & Social Care,30.64, 10-Apr-2015
1644,Revenue,CCHD,Home Care - Elderly - South,Other Small Contracts,Network Health & Social Care,1436.25, 10-Apr-2015
1645,Revenue,CCHD,Home Care - Elderly - North,Day Care / Social Activities,Network Health & Social Care,91.92, 10-Apr-2015
1646,Revenue,CCHD,Home Care - Elderly - North,Other Small Contracts,Network Health & Social Care,4113.42, 10-Apr-2015
1647,Revenue,CCHD,Home Care - Elderly - South,Other Small Contracts,Network Health & Social Care,2110.33, 08-Apr-2015
1648,Revenue,CCHD,Home Care - Elderly - North,Day Care / Social Activities,Network Health & Social Care,72.77, 08-Apr-2015
1649,Revenue,CCHD,Home Care - Elderly - North,Other Small Contracts,Network Health & Social Care,4266.62, 08-Apr-2015
1650,Revenue,CCHD,Home Care - Elderly - South,Other Small Contracts,Network Health & Social Care,2179.27, 08-Apr-2015
1651,Revenue,CCHD,Home Care - Elderly - North,Day Care / Social Activities,Network Health & Social Care,15.32, 08-Apr-2015
1652,Revenue,CCHD,Home Care - Elderly - North,Other Small Contracts,Network Health & Social Care,4197.68, 08-Apr-2015
1653,Revenue,CCHD,Home Care - Elderly - South,Other Small Contracts,Network Health & Social Care,2209.91, 08-Apr-2015
1654,Revenue,CCHD,Home Care - Elderly - North,Day Care / Social Activities,Network Health & Social Care,76.60, 08-Apr-2015
1655,Revenue,CCHD,Home Care - Elderly - North,Other Small Contracts,Network Health & Social Care,4347.05, 08-Apr-2015
1656,Revenue,CCHD,Home Care - Elderly - South,Other Small Contracts,Network Health & Social Care,2286.51, 08-Apr-2015
1657,Revenue,CCHD,Home Care - Elderly - North,Day Care / Social Activities,Network Health & Social Care,38.30, 08-Apr-2015
1658,Revenue,CCHD,Home Care - Elderly - North,Other Small Contracts,Network Health & Social Care,4101.93, 08-Apr-2015
1659,Revenue,CCHD,Home Care - Elderly - South,Other Small Contracts,Network Health & Social Care,2056.71, 08-Apr-2015
1660,Revenue,CCHD,Home Care - Elderly - North,Day Care / Social Activities,Network Health & Social Care,76.60, 08-Apr-2015
1661,Revenue,CCHD,Home Care - Elderly - North,Other Small Contracts,Network Health & Social Care,4354.71, 08-Apr-2015
1662,Revenue,CCHD,Home Care - Elderly - South,Other Small Contracts,Network Health & Social Care,2110.33, 08-Apr-2015
1663,Revenue,CCHD,Home Care - Elderly - North,Day Care / Social Activities,Network Health & Social Care,76.60, 08-Apr-2015
1664,Revenue,CCHD,Home Care - Elderly - North,Other Small Contracts,Network Health & Social Care,4435.14, 08-Apr-2015
1665,Revenue,CCHD,Home Care - Elderly - South,Day Care / Social Activities,Network Health & Social Care,3.83, 10-Apr-2015
1666,Revenue,CCHD,Home Care - Elderly - South,Other Small Contracts,Network Health & Social Care,2106.50, 10-Apr-2015
1667,Revenue,CCHD,Home Care - Elderly - North,Day Care / Social Activities,Network Health & Social Care,91.92, 10-Apr-2015
1668,Revenue,CCHD,Home Care - Elderly - North,Other Small Contracts,Network Health & Social Care,4209.17, 10-Apr-2015
1669,Revenue,CCHD,Home Care - Elderly - South,Other Small Contracts,Network Health & Social Care,1792.44, 08-Apr-2015
1670,Revenue,CCHD,Home Care - Elderly - North,Day Care / Social Activities,Network Health & Social Care,30.64, 08-Apr-2015
1671,Revenue,CCHD,Home Care - Elderly - North,Other Small Contracts,Network Health & Social Care,3508.28, 08-Apr-2015
1672,Revenue,CCHD,Home Care - Elderly - South,Other Small Contracts,Network Health & Social Care,229.80, 28-Apr-2015
1673,Revenue,CCHD,Home Care - Elderly - North,Day Care / Social Activities,Network Health & Social Care,30.64, 28-Apr-2015
1674,Revenue,CCHD,Home Care - Elderly - North,Other Small Contracts,Network Health & Social Care,1838.40, 28-Apr-2015
1675,Revenue,CCHD,Home Care - Elderly - South,Other Small Contracts,Network Health & Social Care,233.63, 28-Apr-2015
1676,Revenue,CCHD,Home Care - Elderly - North,Day Care / Social Activities,Network Health & Social Care,30.64, 28-Apr-2015
1677,Revenue,CCHD,Home Care - Elderly - North,Other Small Contracts,Network Health & Social Care,1849.89, 28-Apr-2015
1678,Revenue,CCHD,Home Care - Elderly - South,Other Small Contracts,Network Health & Social Care,252.78, 20-Apr-2015
1679,Revenue,CCHD,Home Care - Elderly - North,Other Small Contracts,Network Health & Social Care,1861.38, 20-Apr-2015
1680,Revenue,CCHD,Home Care - Elderly - South,Other Small Contracts,Network Health & Social Care,225.97, 28-Apr-2015
1681,Revenue,CCHD,Home Care - Elderly - North,Day Care / Social Activities,Network Health & Social Care,30.64, 28-Apr-2015
1682,Revenue,CCHD,Home Care - Elderly - North,Other Small Contracts,Network Health & Social Care,1731.16, 28-Apr-2015
1683,Revenue,CCHD,Home Care - Elderly - South,Other Small Contracts,Network Health & Social Care,229.80, 28-Apr-2015
1684,Revenue,CCHD,Home Care - Elderly - North,Other Small Contracts,Network Health & Social Care,1723.50, 28-Apr-2015
1685,Revenue,CCHD,Home Care - Elderly - South,Other Small Contracts,Network Health & Social Care,222.14, 28-Apr-2015
1686,Revenue,CCHD,Home Care - Elderly - North,Day Care / Social Activities,Network Health & Social Care,30.64, 28-Apr-2015
1687,Revenue,CCHD,Home Care - Elderly - North,Other Small Contracts,Network Health & Social Care,1834.57, 28-Apr-2015
1688,Revenue,CCHD,Home Care - Elderly - South,Other Small Contracts,Network Health & Social Care,241.29, 28-Apr-2015
1689,Revenue,CCHD,Home Care - Elderly - North,Day Care / Social Activities,Network Health & Social Care,30.64, 28-Apr-2015
1690,Revenue,CCHD,Home Care - Elderly - North,Other Small Contracts,Network Health & Social Care,1811.59, 28-Apr-2015
1691,Revenue,CCHD,Social Lettings Agency,Fees - General,Individual,10.00, 07-Apr-2015
1692,Revenue,CCHD,Social Lettings Agency,Other Supplies & Services,Individual,565.00, 07-Apr-2015
1693,Revenue,CCHD,Community Promoting Independence Team,"Holidays, Outings & Visits",Neville Williams,1194.00, 02-Apr-2015
1694,Revenue,CCHD,Children & Young People�s Health,Other Supplies & Services,NHS Bristol CCG,2497.00, 24-Apr-2015
1695,Revenue,CCHD,Community Promoting Independence Team,Agency Staff (Operational)/PCT Pay,NHS South Gloucestershire CCG,156521.58, 16-Apr-2015
1696,Revenue,CCHD,Mental Capacity Act - Advocacy,Other Supplies & Services,NHS South Gloucestershire CCG,16699.55, 16-Apr-2015
1697,Revenue,CCHD,Leadership and Business Support,Other Small Contracts,NHS South Gloucestershire CCG,44153.00, 16-Apr-2015
1698,Revenue,CCHD,Community Promoting Independence Team,Agency Staff (Operational)/PCT Pay,NHS South Gloucestershire CCG,72563.76, 16-Apr-2015
1699,Revenue,CCHD,SLA Grants - Support Serv,Grants to Voluntary Bodies,North Bristol NHS Trust,4350.00, 17-Apr-2015
1700,Revenue,CCHD,Training - Adult Services,Training Expenses,North Bristol NHS Trust,3500.00, 08-Apr-2015
1701,Revenue,CCHD,ASSIST - Health Promotion in Schools,Project Funding,North Somerset Council,1100.00, 02-Apr-2015
1702,Revenue,CCHD,Information Systems - Software,Software Support & Maintenance,Northgate Information Solutions UK Limited,74789.79, 21-Apr-2015
1703,Revenue,CCHD,Bed Purchasing - South,Permanent Residential,Norwood   Broadway House,5013.47, 14-Apr-2015
1704,Revenue,CCHD,Bed Purchasing - Southmead Hospital,Permanent Residential,Notaro Homes Ltd  Queensmead Court,3024.30, 14-Apr-2015
1705,Revenue,CCHD,Bed Purchasing - South,Permanent Residential,Notaro Homes Ltd  Queensmead Court,1360.83, 14-Apr-2015
1706,Revenue,CCHD,Bed Purchasing - Southmead Hospital,Permanent Residential,Notaro Homes Ltd  Queensmead Court,999.97, 14-Apr-2015
1707,Revenue,CCHD,MH Purchasing - Younger,Permanent Residential,Notaro Homes Ltd  Queensmead Court,7845.73, 14-Apr-2015
1708,Revenue,CCHD,Bed Purchasing - South,Permanent Residential,Nova House Care Home,954.25, 14-Apr-2015
1709,Revenue,CCHD,Section 117 Placements MH Younger,Permanent Nursing,Oaklands,6138.12, 14-Apr-2015
1710,Revenue,CCHD,Woodleaze,Refuse Collection Charges,OCS Group UK Ltd,866.58, 23-Apr-2015
1711,Revenue,CCHD,Housing Advice,Grants to Voluntary Bodies,Orchard & Shipman PLC,14206.59, 30-Apr-2015
1712,Revenue,CCHD,Bed purchasing -S28A  Under 65 - North,Permanent Residential,Orchard End Limited,7624.92, 14-Apr-2015
1713,Revenue,CCHD,Bed Purchasing - Southmead Hospital,Permanent Residential,Osbourne Court,1827.94, 14-Apr-2015
1714,Revenue,CCHD,Bed Purchasing - Southmead Hospital,Permanent Residential,Osbourne Court,632.62, 14-Apr-2015
1715,Revenue,CCHD,Bed Purchasing - Southmead Hospital,Permanent Residential,Osbourne Court,729.81, 14-Apr-2015
1716,Revenue,CCHD,Bed Purchasing - North,Permanent Residential,Osbourne Court,1862.32, 14-Apr-2015
1717,Revenue,CCHD,Bed Purchasing - North,Permanent Residential,Osbourne Court,1574.86, 14-Apr-2015
1718,Revenue,CCHD,Bed Purchasing - North,Permanent Residential,Osbourne Court,546.88, 14-Apr-2015
1719,Revenue,CCHD,Bed Purchasing - North,Permanent Residential,Osbourne Court,1373.28, 14-Apr-2015
1720,Revenue,CCHD,Bed Purchasing - North,Permanent Residential,Osbourne Court,1473.65, 14-Apr-2015
1721,Revenue,CCHD,Bed Purchasing - North,Permanent Residential,Osbourne Court,511.74, 14-Apr-2015
1722,Revenue,CCHD,Bed Purchasing - North,Respite Planned - Residential,Osbourne Court,937.14, 14-Apr-2015
1723,Revenue,CCHD,Bed Purchasing - Southmead Hospital,Permanent Residential,Osbourne Court,1209.63, 14-Apr-2015
1724,Revenue,CCHD,Bed Purchasing - Elderly S117- North,Permanent Residential,Osbourne Court,1461.00, 14-Apr-2015
1725,Revenue,CCHD,Bed purchasing - S28A Under 65 - South,Permanent Residential,Osprey Court,4358.67, 14-Apr-2015
1726,Revenue,CCHD,Bed Purchasing - South,Permanent Residential,Osprey Court,7813.81, 14-Apr-2015
1727,Revenue,CCHD,Bed purchasing - S28A Under 65 - South,Permanent Residential,Osprey Court,6444.82, 14-Apr-2015
1728,Revenue,CCHD,Bed purchasing - Elderly S117 - South,Permanent Residential,Osprey Court,11420.33, 14-Apr-2015
1729,Revenue,CCHD,Older People's Commissioned Se,Grants to Voluntary Bodies,Overseas Chinese Association Elderly Peoples Club,975.00, 17-Apr-2015
1730,Revenue,CCHD,Bed Purchasing - Southmead Hospital,Permanent Nursing,Palm Court Nursing Home,1534.65, 14-Apr-2015
1731,Revenue,CCHD,Bed Purchasing - South,Permanent Residential,Park Farm House,1624.21, 14-Apr-2015
1732,Revenue,CCHD,Bed Purchasing - South,Permanent Residential,Park Hall,5602.53, 14-Apr-2015
1733,Revenue,CCHD,Bed Purchasing - North,Permanent Residential,Park Hall,5244.63, 14-Apr-2015
1734,Revenue,CCHD,Bed Purchasing - South,Permanent Residential,Park Hall,5055.84, 14-Apr-2015
1735,Revenue,CCHD,Bed Purchasing - South,Permanent Residential,Park Hall,2573.35, 14-Apr-2015
1736,Revenue,CCHD,Bed Purchasing - North,Permanent Residential,Park Hall,3583.77, 14-Apr-2015
1737,Revenue,CCHD,Bed Purchasing - North,Permanent Residential,Park Hall,1241.92, 14-Apr-2015
1738,Revenue,CCHD,Bed purchasing - S28A Under 65 - South,Permanent Residential,Park Hall,3381.83, 14-Apr-2015
1739,Revenue,CCHD,Bed purchasing - S28A Under 65 - South,Permanent Residential,Park Hall,1170.73, 14-Apr-2015
1740,Revenue,CCHD,Bed Purchasing - South,Permanent Residential,Park Hall,3603.83, 14-Apr-2015
1741,Revenue,CCHD,Bed Purchasing - South,Permanent Residential,Park Hall,1247.60, 14-Apr-2015
1742,Revenue,CCHD,Bed Purchasing - North,Permanent Residential,Park Hall,4359.10, 14-Apr-2015
1743,Revenue,CCHD,Bed Purchasing - South,Permanent Residential,Park Hall,10855.17, 14-Apr-2015
1744,Revenue,CCHD,Bed purchasing -S28A  Under 65 - North,Permanent Residential,Park Hall,5979.96, 14-Apr-2015
1745,Revenue,CCHD,Bed purchasing - S28A Under 65 - South,Permanent Residential,Park Hall,5717.89, 14-Apr-2015
1746,Revenue,CCHD,18-25 Year Olds,Permanent Residential,Park Hall,7239.89, 14-Apr-2015
1747,Revenue,CCHD,Bed Purchasing - North,Respite Planned - Residential,Park House Residential Home,1350.00, 14-Apr-2015
1748,Revenue,CCHD,Social Lettings Agency,Fees - General,Individual,10.00, 27-Apr-2015
1749,Revenue,CCHD,Social Lettings Agency,Other Supplies & Services,Individual,565.00, 27-Apr-2015
1750,Revenue,CCHD,Health Inequalities,Other Small Contracts,Paul`s Place,2000.00, 17-Apr-2015
1751,Revenue,CCHD,Bed Purchasing - South,Permanent Residential,Penleigh House Care Home,3293.43, 14-Apr-2015
1752,Revenue,CCHD,Bed Purchasing - South,Permanent Residential,Penleigh House Care Home,1140.12, 14-Apr-2015
1753,Revenue,CCHD,Bed Purchasing - South,Permanent Residential,Penleigh House Care Home,4643.68, 14-Apr-2015
1754,Revenue,CCHD,Bed Purchasing - South,Permanent Residential,Penleigh House Care Home,1607.66, 14-Apr-2015
1755,Revenue,CCHD,Bed Purchasing - South,Permanent Residential,Penleigh House Care Home,3115.34, 14-Apr-2015
1756,Revenue,CCHD,Bed Purchasing - South,Permanent Residential,Penleigh House Care Home,1079.72, 14-Apr-2015
1757,Revenue,CCHD,Bed purchasing - S28A Under 65 - South,Permanent Residential,Penleigh House Care Home,3970.08, 14-Apr-2015
1758,Revenue,CCHD,Bed purchasing - S28A Under 65 - South,Permanent Residential,Penleigh House Care Home,1374.42, 14-Apr-2015
1759,Revenue,CCHD,Bed Purchasing - South,Permanent Residential,Penleigh House Care Home,3586.31, 14-Apr-2015
1760,Revenue,CCHD,Bed Purchasing - South,Permanent Residential,Penleigh House Care Home,1241.54, 14-Apr-2015
1761,Revenue,CCHD,Kingswood Centre - Maple Suite,Contract Hire & Operational Leases,PHS Group Plc,846.20, 02-Apr-2015
1762,Revenue,CCHD,Home Care - Elderly - North,Day Care / Social Activities,Premier Homecare Limited,191.52, 07-Apr-2015
1763,Revenue,CCHD,Home Care - Elderly - North,Other Small Contracts,Premier Homecare Limited,13556.88, 07-Apr-2015
1764,Revenue,CCHD,Home care - Elderly MH - North,Other Small Contracts,Premier Homecare Limited,127.68, 07-Apr-2015
1765,Revenue,CCHD,Elderly MH Day Care North,Day Care / Social Activities,Premier Homecare Limited,72.96, 07-Apr-2015
1766,Revenue,CCHD,Home Care - Elderly - North,Day Care / Social Activities,Premier Homecare Limited,191.52, 28-Apr-2015
1767,Revenue,CCHD,Home Care - Elderly - North,Other Small Contracts,Premier Homecare Limited,13743.84, 28-Apr-2015
1768,Revenue,CCHD,Home care - Elderly MH - North,Other Small Contracts,Premier Homecare Limited,127.68, 28-Apr-2015
1769,Revenue,CCHD,Elderly MH Day Care North,Day Care / Social Activities,Premier Homecare Limited,72.96, 28-Apr-2015
1770,Revenue,CCHD,Home Care - Elderly - North,Day Care / Social Activities,Premier Homecare Limited,136.80, 28-Apr-2015
1771,Revenue,CCHD,Home Care - Elderly - North,Other Small Contracts,Premier Homecare Limited,12640.32, 28-Apr-2015
1772,Revenue,CCHD,Home care - Elderly MH - North,Other Small Contracts,Premier Homecare Limited,127.68, 28-Apr-2015
1773,Revenue,CCHD,Elderly MH Day Care North,Day Care / Social Activities,Premier Homecare Limited,72.96, 28-Apr-2015
1774,Revenue,CCHD,Home Care - Elderly - North,Day Care / Social Activities,Premier Homecare Limited,82.98, 28-Apr-2015
1775,Revenue,CCHD,Home Care - Elderly - North,Other Small Contracts,Premier Homecare Limited,12965.65, 28-Apr-2015
1776,Revenue,CCHD,Home care - Elderly MH - North,Other Small Contracts,Premier Homecare Limited,129.08, 28-Apr-2015
1777,Revenue,CCHD,Elderly MH Day Care North,Day Care / Social Activities,Premier Homecare Limited,73.76, 28-Apr-2015
1778,Revenue,CCHD,Home Care - Elderly - North,Other Small Contracts,Premier Homecare Limited,4480.00, 07-Apr-2015
1779,Revenue,CCHD,Home Care - Elderly - North,Other Small Contracts,Premier Homecare Limited,4480.00, 13-Apr-2015
1780,Revenue,CCHD,Home Care - Elderly - North,Other Small Contracts,Premier Homecare Limited,4480.00, 20-Apr-2015
1781,Revenue,CCHD,Home Care - Elderly - North,Other Small Contracts,Premier Homecare Limited,4480.00, 27-Apr-2015
1782,Revenue,CCHD,Home Care - Elderly - South,Day Care / Social Activities,Prestige Nursing,52.56, 20-Apr-2015
1783,Revenue,CCHD,Home Care - Elderly - South,Other Small Contracts,Prestige Nursing,468.66, 20-Apr-2015
1784,Revenue,CCHD,Home Care - Elderly - North,Day Care / Social Activities,Prestige Nursing,1384.08, 20-Apr-2015
1785,Revenue,CCHD,Home Care - Elderly - North,Other Small Contracts,Prestige Nursing,481.26, 20-Apr-2015
1786,Revenue,CCHD,Day Care - South,Day Care / Social Activities,Prestige Nursing,122.64, 20-Apr-2015
1787,Revenue,CCHD,Home Care - Elderly - South,Day Care / Social Activities,Prestige Nursing,52.56, 20-Apr-2015
1788,Revenue,CCHD,Home Care - Elderly - South,Other Small Contracts,Prestige Nursing,424.86, 20-Apr-2015
1789,Revenue,CCHD,Home Care - Elderly - North,Day Care / Social Activities,Prestige Nursing,1287.72, 20-Apr-2015
1790,Revenue,CCHD,Home Care - Elderly - North,Other Small Contracts,Prestige Nursing,533.82, 20-Apr-2015
1791,Revenue,CCHD,Day Care - South,Day Care / Social Activities,Prestige Nursing,122.64, 20-Apr-2015
1792,Revenue,CCHD,Home Care - Elderly - South,Day Care / Social Activities,Prestige Nursing,52.56, 20-Apr-2015
1793,Revenue,CCHD,Home Care - Elderly - South,Other Small Contracts,Prestige Nursing,538.74, 20-Apr-2015
1794,Revenue,CCHD,Home Care - Elderly - North,Day Care / Social Activities,Prestige Nursing,1130.04, 20-Apr-2015
1795,Revenue,CCHD,Home Care - Elderly - North,Other Small Contracts,Prestige Nursing,533.82, 20-Apr-2015
1796,Revenue,CCHD,Day Care - South,Day Care / Social Activities,Prestige Nursing,122.64, 20-Apr-2015
1797,Revenue,CCHD,Home Care - Elderly - South,Other Small Contracts,Prestige Nursing,586.92, 20-Apr-2015
1798,Revenue,CCHD,Home Care - Elderly - North,Day Care / Social Activities,Prestige Nursing,1051.20, 20-Apr-2015
1799,Revenue,CCHD,Home Care - Elderly - North,Other Small Contracts,Prestige Nursing,529.44, 20-Apr-2015
1800,Revenue,CCHD,Day Care - South,Day Care / Social Activities,Prestige Nursing,118.26, 20-Apr-2015
1801,Revenue,CCHD,Sexual Health,Other Small Contracts,Preventx Limited,5115.00, 24-Apr-2015
1802,Revenue,CCHD,Bed Purchasing - North,Permanent Nursing,Ravenswood,2212.61, 14-Apr-2015
1803,Revenue,CCHD,Bed Purchasing - Elderly S117- North,Permanent Residential,Real Life Options,6446.93, 14-Apr-2015
1804,Revenue,CCHD,Bed Purchasing - Elderly S117- North,Permanent Nursing,Redholme Memory Care Limited,1936.07, 14-Apr-2015
1805,Revenue,CCHD,Supporting People Programme,Grants to Voluntary Bodies,Redland Housing Association Ltd,745.72, 08-Apr-2015
1806,Revenue,CCHD,Bed Purchasing - South,Permanent Nursing,Regent House,1625.43, 14-Apr-2015
1807,Revenue,CCHD,Bed Purchasing - South,Permanent Nursing,Regent House,563.82, 14-Apr-2015
1808,Revenue,CCHD,Bed Purchasing - South,Permanent Nursing,Regent House,1586.88, 14-Apr-2015
1809,Revenue,CCHD,Bed Purchasing - South,Permanent Nursing,Regent House,525.44, 14-Apr-2015
1810,Revenue,CCHD,Bed Purchasing - South,Permanent Nursing,Regent House,1723.37, 14-Apr-2015
1811,Revenue,CCHD,Bed Purchasing - South,Permanent Nursing,Regent House,597.76, 14-Apr-2015
1812,Revenue,CCHD,Bed Purchasing - South,Permanent Nursing,Regent House,1263.66, 14-Apr-2015
1813,Revenue,CCHD,Bed Purchasing - South,Permanent Nursing,Regent House,1494.27, 14-Apr-2015
1814,Revenue,CCHD,Bed Purchasing - South,Permanent Nursing,Regent House,1525.56, 14-Apr-2015
1815,Revenue,CCHD,Bed Purchasing - South,Permanent Nursing,Regent House,502.11, 14-Apr-2015
1816,Revenue,CCHD,Bed Purchasing - South,Permanent Nursing,Regent House,1313.16, 14-Apr-2015
